Workbook

Sheet ВОРОНКА
C2: Продукт защищен авторским правом. Все права принадлежат автору. Незаконное распространение запрещено и преследуется по закону. | V2: 1 | W2: =VLOOKUP(V2,СПРАВОЧНИК!$A:$I,9,0) -> Месяц | AC2: 3 | AD2: =VLOOKUP(AC2,СПРАВОЧНИК!$A:$C,3,0) -> Заходы-продажи | AK2: 3 | AL2: =VLOOKUP(AK2,СПРАВОЧНИК!$A:$F,6,0) -> Прибыль (- реклама)
C3: Автор: Евгений Новиков (vk.com/truejacko) | F3: mail: evgeny.novikov@mail.ru | J3: Официальное сообщество: | L3: vk.com/voronkaprodazh
B4: Воронка продаж 4.0 (продвинутая версия) | C4: Каналы, ведущие на сайт | L4: Продающие каналы, не ведущие на сайт | S4: Доп.расходы
C5: прямые заходы | D5: директ | E5: adwords | F5: поиск | G5: ссылки | H5: источник n | I5: . . . | J5: Итого сайт | L5: Повторные | M5: Вконтакте | N5: . . . . | O5: Итого площадки | Q5: Итого по каналам | S5: Описание | T5: Сумма, руб. | V5: Период: | Y5: Показывать на графиках:
B6: ЯНВАРЬ | C6: =IF(Q23=0," ","Чистая прибыль: ")&IF(Q23=0,"",Q23)&" "&IF(Q13=""," ","Затраты на рекламу: ")&IF(Q13="","",Q13)&" "&IF(T23=0,"","Доп.расходы: ")&IF(T23=0,"",T23) -> 
B7: Итого за месяц | C7: Дней: | D7: =SUM(D24,D41,D58,D75) -> 31
B8: Показов | C8: =SUM(C25,C42,C59,C76) -> 0 | D8: =SUM(D25,D42,D59,D76) -> 0 | E8: 0 | F8: 0 | H8: 0 | I8: 0 | J8: =IF(SUM(C8:I8)=0,"",SUM(C8:I8)) ->  | L8: =SUM(L25,L42,L59,L76) -> 0 | M8: 0 | N8: 0 | O8: =IF(SUM(L8:N8)=0,"",SUM(L8:N8)) ->  | Q8: =IF(SUM(J8,O8)=0,"",SUM(J8,O8)) ->  | AA8: нед.1 | AB8: нед.2 | AC8: нед.3 | AD8: нед.4
B9: Заходов | C9: =SUM(C26,C43,C60,C77) -> 0 | D9: 0 | E9: 0 | F9: 0 | H9: 0 | I9: 0 | L9: =SUM(L26,L43,L60,L77) -> 0 | M9: 0 | N9: 0 | Q9: =IF(SUM(J9,O9)=0,"",SUM(J9,O9)) ->  | Z9: Заходы-отклики | AA9: =IF(Q37="",#N/A,Q37) ->  | AB9: =IF(Q54="",#N/A,Q54) ->  | AC9: =IF(Q71="",#N/A,Q71) ->  | AD9: =IF(Q88="",#N/A,Q88) -> 
B10: Откликов | C10: =SUM(C27,C44,C61,C78) -> 0 | D10: 0 | E10: 0 | F10: 0 | H10: 0 | I10: 0 | L10: =SUM(L27,L44,L61,L78) -> 0 | M10: 0 | N10: 0 | Z10: Отклики-продажи | AA10: =IF(Q38="",#N/A,Q38) ->  | AB10: =IF(Q55="",#N/A,Q55) ->  | AC10: =IF(Q72="",#N/A,Q72) ->  | AD10: =IF(Q89="",#N/A,Q89) -> 
B11: Продажи | C11: =SUM(C28,C45,C62,C79) -> 0 | D11: 0 | E11: 0 | F11: 0 | H11: 0 | I11: 0 | L11: =SUM(L28,L45,L62,L79) -> 0 | M11: 0 | N11: 0 | S11: ="заходы-продажи"&CHAR(10)&IF(OR(T13=0,T13="",T17=""),"−",ROUND(T17/T13,4)*100)&"%" -> заходы-продажи −% | X11: ="заходы-отклики"&CHAR(10)&IF(OR(T13=0,T13="",T15=""),"−",ROUND(T15/T13,4)*100)&"%" -> заходы-отклики −% | Z11: Заходы-продажи | AA11: =IF(Q39="",#N/A,Q39) ->  | AB11: =IF(Q56="",#N/A,Q56) ->  | AC11: =IF(Q73="",#N/A,Q73) ->  | AD11: =IF(Q90="",#N/A,Q90) -> 
B12: Прибыль, руб. | C12: =SUM(C29,C46,C63,C80) -> 0 | D12: 0 | E12: 0 | F12: 0 | H12: 0 | I12: 0 | L12: =SUM(L29,L46,L63,L80) -> 0 | M12: 0 | N12: 0 | T12: Заходы | Z12: Прибыль | AA12: =IF(Q29="",#N/A,Q29) ->  | AB12: =IF(Q46="",#N/A,Q46) ->  | AC12: =IF(Q63="",#N/A,Q63) ->  | AD12: =IF(Q80="",#N/A,Q80) -> 
B13: Затраты (реклама), руб. | C13: =SUM(C30,C47,C64,C81) -> 0 | D13: 0 | E13: 0 | F13: 0 | H13: 0 | I13: 0 | L13: =SUM(L30,L47,L64,L81) -> 0 | M13: 0 | N13: 0 | T13: =OFFSET(Q9,($V$2-1)*17,0,1,1) ->  | Z13: Затраты (реклама) | AA13: =IF(Q30="",#N/A,Q30) ->  | AB13: =IF(Q47="",#N/A,Q47) ->  | AC13: =IF(Q64="",#N/A,Q64) ->  | AD13: =IF(Q81="",#N/A,Q81) -> 
B14: Цена перехода | C14: =IF(C9=0,"",C13/C9) ->  | J14: =IFERROR(J13/J9,"") ->  | L14: =IF(L9=0,"",L13/L9) ->  | M14: =IF(M9=0,"",M13/M9) ->  | N14: =IF(N9=0,"",N13/N9) ->  | O14: =IFERROR(O13/O9,"") ->  | Q14: =IFERROR(Q13/Q9,"") ->  | T14: Отклики | W14: ="отклики-продажи"&CHAR(10)&IF(OR(T15=0,T15="",T17=""),"−",ROUND(T17/T15,4)*100)&"%" -> отклики-продажи −% | Z14: $ в кассе | AA14: =IF(Q34="",#N/A,Q34) ->  | AB14: =IF(Q51="",#N/A,Q51) ->  | AC14: =IF(Q68="",#N/A,Q68) ->  | AD14: =IF(Q85="",#N/A,Q85) -> 
B15: Цена клиента | C15: =IF(C11=0,"",C13/C11) ->  | J15: =IFERROR(J13/J11,"") ->  | L15: =IF(L11=0,"",L13/L11) ->  | M15: =IF(M11=0,"",M13/M11) ->  | N15: =IF(N11=0,"",N13/N11) ->  | O15: =IFERROR(O13/O11,"") ->  | Q15: =IFERROR(Q13/Q11,"") ->  | T15: =OFFSET(Q10,($V$2-1)*17,0,1,1) ->  | Z15: Чистая прибыль | AA15: =IF(Q40="",#N/A,Q40) -> 0 | AB15: =IF(Q57="",#N/A,Q57) -> 0 | AC15: =IF(Q74="",#N/A,Q74) -> 0 | AD15: =IF(Q91="",#N/A,Q91) -> 0
B16: Средний чек, руб. | C16: =IF(C11=0,"",C12/C11) ->  | J16: =IFERROR(J12/J11,"") ->  | L16: =IF(L11=0,"",L12/L11) ->  | M16: =IF(M11=0,"",M12/M11) ->  | N16: =IF(N11=0,"",N12/N11) ->  | O16: =IFERROR(O12/O11,"") ->  | Q16: =IFERROR(Q12/Q11,"") ->  | T16: Продажи
B17: Прибыль (- затраты) | C17: =IF(C12-C13=0,"",C12-C13) ->  | J17: =IF(SUM(C17:I17)=0,"",SUM(C17:I17)) ->  | L17: =IF(L12-L13=0,"",L12-L13) ->  | M17: =IF(M12-M13=0,"",M12-M13) ->  | N17: =IF(N12-N13=0,"",N12-N13) ->  | O17: =IF(SUM(L17:N17)=0,"",SUM(L17:N17)) ->  | Q17: =IF(SUM(J17,O17)=0,"",SUM(J17,O17)) ->  | T17: =OFFSET(Q11,($V$2-1)*17,0,1,1) ->  | W17: ="продажи-повтор.продажи"&CHAR(10)&IF(OR(T17=0,T17="",T19=""),"−",ROUND(T19/T17,4)*100)&"%" -> продажи-повтор.продажи −%
B18: ROI на 1 рубль | C18: =IF(C13=0,"",(C12-C13)/C13) ->  | J18: =IFERROR((J12-J13)/J13,"") ->  | L18: =IF(L13=0,"",(L12-L13)/L13) ->  | M18: =IF(M13=0,"",(M12-M13)/M13) ->  | N18: =IF(N13=0,"",(N12-N13)/N13) ->  | O18: =IFERROR((O12-O13)/O13,"") ->  | Q18: =IFERROR((Q12-Q13)/Q13,"") ->  | T18: повтор
B19: Показы - заходы | C19: =IF(C8=0,"",C9/C8) ->  | J19: =IFERROR(J9/J8,"") ->  | L19: =IF(L8=0,"",L9/L8) ->  | O19: =IFERROR(O9/O8,"") ->  | Q19: =IFERROR(Q9/Q8,"") ->  | T19: =OFFSET(L11,($V$2-1)*17,0,1,1) -> 0
B20: Заходы - отклики | J20: =IFERROR(J10/J9,"") ->  | O20: =IFERROR(O10/O9,"") ->  | Q20: =IFERROR(Q10/Q9,"") -> 
B21: Отклики - продажи | J21: =IFERROR(J11/J10,"") ->  | O21: =IFERROR(O11/O10,"") ->  | Q21: =IFERROR(Q11/Q10,"") ->  | T21: =UPPER($W$2) -> МЕСЯЦ
B22: Заходы-продажи | C22: =IF(C9=0,"",C11/C9) ->  | J22: =IFERROR(J11/J9,"") ->  | L22: =IF(L9=0,"",L11/L9) ->  | M22: =IF(M9=0,"",M11/M9) ->  | N22: =IF(N9=0,"",N11/N9) ->  | O22: =IFERROR(O11/O9,"") ->  | Q22: =IFERROR(Q11/Q9,"") -> 
B23: Чистая прибыль, руб. (с учетом доп. Расходов) | Q23: =IF(Q17="",-T23,Q17-T23) -> 0 | S23: Итого доп.расходы | T23: =SUM(T25:T39,T42:T56,T59:T73,T76:T90) -> 0
B24: =LEFT(B6,3)&" Неделя 1" -> ЯНВ Неделя 1 | C24: Дней: | D24: 12 | E24: =LOWER("01 "&LEFT(B6,3)&" - "&IF(D24<10,"0"&D24,D24)&" "&LEFT(B6,3)) -> 01 янв - 12 янв
B25: =$B$8 -> Показов | J25: =IF(SUM(C25:I25)=0,"",SUM(C25:I25)) ->  | O25: =IF(SUM(L25:N25)=0,"",SUM(L25:N25)) ->  | Q25: =IF(SUM(J25,O25)=0,"",SUM(J25,O25)) -> 
B26: =$B$9 -> Заходов | Q26: =IF(SUM(J26,O26)=0,"",SUM(J26,O26)) -> 
B27: =$B$10 -> Откликов
B28: =$B$11 -> Продажи
B29: =$B$12 -> Прибыль, руб.
B30: =$B$13 -> Затраты (реклама), руб.
B31: =$B$14 -> Цена перехода | C31: =IF(C26=0,"",C30/C26) ->  | D31: =IF(D26=0,"",D30/D26) ->  | J31: =IFERROR(J30/J26,"") ->  | L31: =IF(L26=0,"",L30/L26) ->  | M31: =IF(M26=0,"",M30/M26) ->  | N31: =IF(N26=0,"",N30/N26) ->  | O31: =IFERROR(O30/O26,"") ->  | Q31: =IFERROR(Q30/Q26,"") -> 
B32: =$B$15 -> Цена клиента | C32: =IF(C28=0,"",C30/C28) ->  | D32: =IF(D28=0,"",D30/D28) ->  | J32: =IFERROR(J30/J28,"") ->  | L32: =IF(L28=0,"",L30/L28) ->  | O32: =IFERROR(O30/O28,"") ->  | Q32: =IFERROR(Q30/Q28,"") -> 
B33: =$B$16 -> Средний чек, руб. | C33: =IF(C28=0,"",C29/C28) ->  | D33: =IF(D28=0,"",D29/D28) ->  | J33: =IFERROR(J29/J28,"") ->  | L33: =IF(L28=0,"",L29/L28) ->  | O33: =IFERROR(O29/O28,"") ->  | Q33: =IFERROR(Q29/Q28,"") -> 
B34: =$B$17 -> Прибыль (- затраты) | C34: =IF(C29-C30=0,"",C29-C30) ->  | J34: =IF(SUM(C34:I34)=0,"",SUM(C34:I34)) ->  | L34: =IF(L29-L30=0,"",L29-L30) ->  | O34: =IF(SUM(L34:N34)=0,"",SUM(L34:N34)) ->  | Q34: =IF(SUM(J34,O34)=0,"",SUM(J34,O34)) -> 
B35: =$B$18 -> ROI на 1 рубль | C35: =IF(C30=0,"",(C29-C30)/C30) ->  | J35: =IFERROR((J29-J30)/J30,"") ->  | L35: =IF(L30=0,"",(L29-L30)/L30) ->  | O35: =IFERROR((O29-O30)/O30,"") ->  | Q35: =IFERROR((Q29-Q30)/Q30,"") -> 
B36: =$B$19 -> Показы - заходы | C36: =IF(C25=0,"",C26/C25) ->  | J36: =IFERROR(J26/J25,"") ->  | L36: =IF(L25=0,"",L26/L25) ->  | O36: =IFERROR(O26/O25,"") ->  | Q36: =IFERROR(Q26/Q25,"") -> 
B37: =$B$20 -> Заходы - отклики | J37: =IFERROR(J27/J26,"") ->  | L37: =IF(L26=0,"",L27/L26) ->  | O37: =IFERROR(O27/O26,"") ->  | Q37: =IFERROR(Q27/Q26,"") -> 
B38: =$B$21 -> Отклики - продажи | J38: =IFERROR(J28/J27,"") ->  | L38: =IF(L27=0,"",L28/L27) ->  | O38: =IFERROR(O28/O27,"") ->  | Q38: =IFERROR(Q28/Q27,"") -> 
B39: =$B$22 -> Заходы-продажи | C39: =IF(C26=0,"",C28/C26) ->  | J39: =IFERROR(J28/J26,"") ->  | L39: =IF(L26=0,"",L28/L26) ->  | O39: =IFERROR(O28/O26,"") ->  | Q39: =IFERROR(Q28/Q26,"") -> 
B40: =$B$23 -> Чистая прибыль, руб. (с учетом доп. Расходов) | Q40: =IF(Q34="",-T40,Q34-T40) -> 0 | S40: Итого доп.расходы | T40: =SUM(T25:T39) -> 0
B41: =LEFT(B6,3)&" Неделя 2" -> ЯНВ Неделя 2 | C41: Дней: | D41: 7 | E41: =LOWER(IF(D24+1<10,"0"&D24+1,D24+1)&" "&LEFT(B6,3)&" - "&IF(D24+1+D41<10,"0"&D24+D41,D24+D41)&" "&LEFT(B6,3)) -> 13 янв - 19 янв
B42: =$B$8 -> Показов | J42: =IF(SUM(C42:I42)=0,"",SUM(C42:I42)) ->  | O42: =IF(SUM(L42:N42)=0,"",SUM(L42:N42)) ->  | Q42: =IF(SUM(J42,O42)=0,"",SUM(J42,O42)) -> 
B43: =$B$9 -> Заходов | Q43: =IF(SUM(J43,O43)=0,"",SUM(J43,O43)) -> 
B44: =$B$10 -> Откликов
B45: =$B$11 -> Продажи
B46: =$B$12 -> Прибыль, руб.
B47: =$B$13 -> Затраты (реклама), руб.
B48: =$B$14 -> Цена перехода | C48: =IF(C43=0,"",C47/C43) ->  | D48: =IF(D43=0,"",D47/D43) ->  | J48: =IFERROR(J47/J43,"") ->  | L48: =IF(L43=0,"",L47/L43) ->  | O48: =IFERROR(O47/O43,"") ->  | Q48: =IFERROR(Q47/Q43,"") -> 
B49: =$B$15 -> Цена клиента | C49: =IF(C45=0,"",C47/C45) ->  | D49: =IF(D45=0,"",D47/D45) ->  | J49: =IFERROR(J47/J45,"") ->  | L49: =IF(L45=0,"",L47/L45) ->  | O49: =IFERROR(O47/O45,"") ->  | Q49: =IFERROR(Q47/Q45,"") -> 
B50: =$B$16 -> Средний чек, руб. | C50: =IF(C45=0,"",C46/C45) ->  | D50: =IF(D45=0,"",D46/D45) ->  | J50: =IFERROR(J46/J45,"") ->  | L50: =IF(L45=0,"",L46/L45) ->  | O50: =IFERROR(O46/O45,"") ->  | Q50: =IFERROR(Q46/Q45,"") -> 
B51: =$B$17 -> Прибыль (- затраты) | C51: =IF(C46-C47=0,"",C46-C47) ->  | J51: =IF(SUM(C51:I51)=0,"",SUM(C51:I51)) ->  | L51: =IF(L46-L47=0,"",L46-L47) ->  | O51: =IF(SUM(L51:N51)=0,"",SUM(L51:N51)) ->  | Q51: =IF(SUM(J51,O51)=0,"",SUM(J51,O51)) -> 
B52: =$B$18 -> ROI на 1 рубль | C52: =IF(C47=0,"",(C46-C47)/C47) ->  | J52: =IFERROR((J46-J47)/J47,"") ->  | L52: =IF(L47=0,"",(L46-L47)/L47) ->  | O52: =IFERROR((O46-O47)/O47,"") ->  | Q52: =IFERROR((Q46-Q47)/Q47,"") -> 
B53: =$B$19 -> Показы - заходы | C53: =IF(C42=0,"",C43/C42) ->  | J53: =IFERROR(J43/J42,"") ->  | L53: =IF(L42=0,"",L43/L42) ->  | O53: =IFERROR(O43/O42,"") ->  | Q53: =IFERROR(Q43/Q42,"") -> 
B54: =$B$20 -> Заходы - отклики | C54: =IF(C43=0,"",C44/C43) ->  | J54: =IFERROR(J44/J43,"") ->  | L54: =IF(L43=0,"",L44/L43) ->  | O54: =IFERROR(O44/O43,"") ->  | Q54: =IFERROR(Q44/Q43,"") -> 
B55: =$B$21 -> Отклики - продажи | C55: =IF(C44=0,"",C45/C44) ->  | J55: =IFERROR(J45/J44,"") ->  | L55: =IF(L44=0,"",L45/L44) ->  | O55: =IFERROR(O45/O44,"") ->  | Q55: =IFERROR(Q45/Q44,"") -> 
B56: =$B$22 -> Заходы-продажи | C56: =IF(C43=0,"",C45/C43) ->  | J56: =IFERROR(J45/J43,"") ->  | L56: =IF(L43=0,"",L45/L43) ->  | O56: =IFERROR(O45/O43,"") ->  | Q56: =IFERROR(Q45/Q43,"") -> 
B57: =$B$23 -> Чистая прибыль, руб. (с учетом доп. Расходов) | Q57: =IF(Q51="",-T57,Q51-T57) -> 0 | S57: Итого доп.расходы | T57: =SUM(T42:T56) -> 0
B58: =LEFT(B6,3)&" Неделя 3" -> ЯНВ Неделя 3 | C58: Дней: | D58: 7 | E58: =LOWER(IF(D24+D41+1<10,"0"&D24+D41+1,D24+D41+1)&" "&LEFT(B6,3)&" - "&IF(D24+D41+D58<10,"0"&D24+D41+D58,D24+D41+D58)&" "&LEFT(B6,3)) -> 20 янв - 26 янв
B59: =$B$8 -> Показов | J59: =IF(SUM(C59:I59)=0,"",SUM(C59:I59)) ->  | O59: =IF(SUM(L59:N59)=0,"",SUM(L59:N59)) ->  | Q59: =IF(SUM(J59,O59)=0,"",SUM(J59,O59)) -> 
B60: =$B$9 -> Заходов | Q60: =IF(SUM(J60,O60)=0,"",SUM(J60,O60)) -> 
B61: =$B$10 -> Откликов
B62: =$B$11 -> Продажи
B63: =$B$12 -> Прибыль, руб.
B64: =$B$13 -> Затраты (реклама), руб.
B65: =$B$14 -> Цена перехода | C65: =IF(C60=0,"",C64/C60) ->  | D65: =IF(D60=0,"",D64/D60) ->  | J65: =IFERROR(J64/J60,"") ->  | L65: =IF(L60=0,"",L64/L60) ->  | O65: =IFERROR(O64/O60,"") ->  | Q65: =IFERROR(Q64/Q60,"") -> 
B66: =$B$15 -> Цена клиента | C66: =IF(C62=0,"",C64/C62) ->  | D66: =IF(D62=0,"",D64/D62) ->  | J66: =IFERROR(J64/J62,"") ->  | L66: =IF(L62=0,"",L64/L62) ->  | O66: =IFERROR(O64/O62,"") ->  | Q66: =IFERROR(Q64/Q62,"") -> 
B67: =$B$16 -> Средний чек, руб. | C67: =IF(C62=0,"",C63/C62) ->  | D67: =IF(D62=0,"",D63/D62) ->  | J67: =IFERROR(J63/J62,"") ->  | L67: =IF(L62=0,"",L63/L62) ->  | O67: =IFERROR(O63/O62,"") ->  | Q67: =IFERROR(Q63/Q62,"") -> 
B68: =$B$17 -> Прибыль (- затраты) | C68: =IF(C63-C64=0,"",C63-C64) ->  | J68: =IF(SUM(C68:I68)=0,"",SUM(C68:I68)) ->  | L68: =IF(L63-L64=0,"",L63-L64) ->  | O68: =IF(SUM(L68:N68)=0,"",SUM(L68:N68)) ->  | Q68: =IF(SUM(J68,O68)=0,"",SUM(J68,O68)) -> 
B69: =$B$18 -> ROI на 1 рубль | C69: =IF(C64=0,"",(C63-C64)/C64) ->  | J69: =IFERROR((J63-J64)/J64,"") ->  | L69: =IF(L64=0,"",(L63-L64)/L64) ->  | O69: =IFERROR((O63-O64)/O64,"") ->  | Q69: =IFERROR((Q63-Q64)/Q64,"") -> 
B70: =$B$19 -> Показы - заходы | C70: =IF(C59=0,"",C60/C59) ->  | J70: =IFERROR(J60/J59,"") ->  | L70: =IF(L59=0,"",L60/L59) ->  | O70: =IFERROR(O60/O59,"") ->  | Q70: =IFERROR(Q60/Q59,"") -> 
B71: =$B$20 -> Заходы - отклики | C71: =IF(C60=0,"",C61/C60) ->  | J71: =IFERROR(J61/J60,"") ->  | L71: =IF(L60=0,"",L61/L60) ->  | O71: =IFERROR(O61/O60,"") ->  | Q71: =IFERROR(Q61/Q60,"") -> 
B72: =$B$21 -> Отклики - продажи | C72: =IF(C61=0,"",C62/C61) ->  | J72: =IFERROR(J62/J61,"") ->  | L72: =IF(L61=0,"",L62/L61) ->  | O72: =IFERROR(O62/O61,"") ->  | Q72: =IFERROR(Q62/Q61,"") -> 
B73: =$B$22 -> Заходы-продажи | C73: =IF(C60=0,"",C62/C60) ->  | J73: =IFERROR(J62/J60,"") ->  | L73: =IF(L60=0,"",L62/L60) ->  | O73: =IFERROR(O62/O60,"") ->  | Q73: =IFERROR(Q62/Q60,"") -> 
B74: =$B$23 -> Чистая прибыль, руб. (с учетом доп. Расходов) | Q74: =IF(Q68="",-T74,Q68-T74) -> 0 | S74: Итого доп.расходы | T74: =SUM(T59:T73) -> 0
B75: =LEFT(B6,3)&" Неделя 4" -> ЯНВ Неделя 4 | C75: Дней: | D75: 5 | E75: =LOWER(IF(D24+D41+D58+1<10,"0"&D24+D41+D58+1,D24+D41+D58+1)&" "&LEFT(B6,3)&" - "&IF(D24+D41+D58+D75<10,"0"&D24+D41+D58+D75,D24+D41+D58+D75)&" "&LEFT(B6,3)) -> 27 янв - 31 янв
B76: =$B$8 -> Показов | J76: =IF(SUM(C76:I76)=0,"",SUM(C76:I76)) ->  | O76: =IF(SUM(L76:N76)=0,"",SUM(L76:N76)) ->  | Q76: =IF(SUM(J76,O76)=0,"",SUM(J76,O76)) -> 
B77: =$B$9 -> Заходов | Q77: =IF(SUM(J77,O77)=0,"",SUM(J77,O77)) -> 
B78: =$B$10 -> Откликов
B79: =$B$11 -> Продажи
B80: =$B$12 -> Прибыль, руб.
B81: =$B$13 -> Затраты (реклама), руб.
B82: =$B$14 -> Цена перехода | C82: =IF(C77=0,"",C81/C77) ->  | D82: =IF(D77=0,"",D81/D77) ->  | J82: =IFERROR(J81/J77,"") ->  | L82: =IF(L77=0,"",L81/L77) ->  | O82: =IFERROR(O81/O77,"") ->  | Q82: =IFERROR(Q81/Q77,"") -> 
B83: =$B$15 -> Цена клиента | C83: =IF(C79=0,"",C81/C79) ->  | D83: =IF(D79=0,"",D81/D79) ->  | J83: =IFERROR(J81/J79,"") ->  | L83: =IF(L79=0,"",L81/L79) ->  | O83: =IFERROR(O81/O79,"") ->  | Q83: =IFERROR(Q81/Q79,"") -> 
B84: =$B$16 -> Средний чек, руб. | C84: =IF(C79=0,"",C80/C79) ->  | D84: =IF(D79=0,"",D80/D79) ->  | J84: =IFERROR(J80/J79,"") ->  | L84: =IF(L79=0,"",L80/L79) ->  | O84: =IFERROR(O80/O79,"") ->  | Q84: =IFERROR(Q80/Q79,"") -> 
B85: =$B$17 -> Прибыль (- затраты) | C85: =IF(C80-C81=0,"",C80-C81) ->  | J85: =IF(SUM(C85:I85)=0,"",SUM(C85:I85)) ->  | L85: =IF(L80-L81=0,"",L80-L81) ->  | O85: =IF(SUM(L85:N85)=0,"",SUM(L85:N85)) ->  | Q85: =IF(SUM(J85,O85)=0,"",SUM(J85,O85)) -> 
B86: =$B$18 -> ROI на 1 рубль | C86: =IF(C81=0,"",(C80-C81)/C81) ->  | J86: =IFERROR((J80-J81)/J81,"") ->  | L86: =IF(L81=0,"",(L80-L81)/L81) ->  | O86: =IFERROR((O80-O81)/O81,"") ->  | Q86: =IFERROR((Q80-Q81)/Q81,"") -> 
B87: =$B$19 -> Показы - заходы | C87: =IF(C76=0,"",C77/C76) ->  | J87: =IFERROR(J77/J76,"") ->  | L87: =IF(L76=0,"",L77/L76) ->  | O87: =IFERROR(O77/O76,"") ->  | Q87: =IFERROR(Q77/Q76,"") -> 
B88: =$B$20 -> Заходы - отклики | C88: =IF(C77=0,"",C78/C77) ->  | J88: =IFERROR(J78/J77,"") ->  | L88: =IF(L77=0,"",L78/L77) ->  | O88: =IFERROR(O78/O77,"") ->  | Q88: =IFERROR(Q78/Q77,"") -> 
B89: =$B$21 -> Отклики - продажи | C89: =IF(C78=0,"",C79/C78) ->  | J89: =IFERROR(J79/J78,"") ->  | L89: =IF(L78=0,"",L79/L78) ->  | O89: =IFERROR(O79/O78,"") ->  | Q89: =IFERROR(Q79/Q78,"") -> 
B90: =$B$22 -> Заходы-продажи | C90: =IF(C77=0,"",C79/C77) ->  | J90: =IFERROR(J79/J77,"") ->  | L90: =IF(L77=0,"",L79/L77) ->  | O90: =IFERROR(O79/O77,"") ->  | Q90: =IFERROR(Q79/Q77,"") -> 
B91: =$B$23 -> Чистая прибыль, руб. (с учетом доп. Расходов) | Q91: =IF(Q85="",-T91,Q85-T91) -> 0 | S91: Итого доп.расходы | T91: =SUM(T76:T90) -> 0
B93: ФЕВРАЛЬ | C93: =IF(Q110=0," ","Чистая прибыль: ")&IF(Q110=0,"",Q110)&" "&IF(Q100=""," ","Затраты на рекламу: ")&IF(Q100="","",Q100)&" "&IF(T110=0,"","Доп.расходы: ")&IF(T110=0,"",T110) -> 
B94: =B7 -> Итого за месяц | C94: Дней: | D94: =SUM(D111,D128,D145,D162) -> 28
B95: =B8 -> Показов | C95: =SUM(C112,C129,C146,C163) -> 0 | D95: =SUM(D112,D129,D146,D163) -> 0 | E95: 0 | F95: 0 | H95: 0 | I95: 0 | J95: =IF(SUM(C95:I95)=0,"",SUM(C95:I95)) ->  | L95: =SUM(L112,L129,L146,L163) -> 0 | M95: 0 | N95: 0 | O95: =IF(SUM(L95:N95)=0,"",SUM(L95:N95)) ->  | Q95: =IF(SUM(J95,O95)=0,"",SUM(J95,O95)) ->  | AA95: нед.1 | AB95: нед.2 | AC95: нед.3 | AD95: нед.4
B96: Заходов | C96: =SUM(C113,C130,C147,C164) -> 0 | D96: 0 | E96: 0 | F96: 0 | H96: 0 | I96: 0 | L96: =SUM(L113,L130,L147,L164) -> 0 | M96: 0 | N96: 0 | Q96: =IF(SUM(J96,O96)=0,"",SUM(J96,O96)) ->  | Z96: Заходы-отклики | AA96: =IF(Q124="",#N/A,Q124) ->  | AB96: =IF(Q141="",#N/A,Q141) ->  | AC96: =IF(Q158="",#N/A,Q158) ->  | AD96: =IF(Q175="",#N/A,Q175) -> 
B97: Откликов | C97: =SUM(C114,C131,C148,C165) -> 0 | D97: 0 | E97: 0 | F97: 0 | H97: 0 | I97: 0 | L97: =SUM(L114,L131,L148,L165) -> 0 | M97: 0 | N97: 0 | Z97: Отклики-продажи | AA97: =IF(Q125="",#N/A,Q125) ->  | AB97: =IF(Q142="",#N/A,Q142) ->  | AC97: =IF(Q159="",#N/A,Q159) ->  | AD97: =IF(Q176="",#N/A,Q176) -> 
B98: Продажи | C98: =SUM(C115,C132,C149,C166) -> 0 | D98: 0 | E98: 0 | F98: 0 | H98: 0 | I98: 0 | L98: =SUM(L115,L132,L149,L166) -> 0 | M98: 0 | N98: 0 | S98: ="заходы-продажи"&CHAR(10)&IF(OR(T100=0,T100="",T104=""),"−",ROUND(T104/T100,4)*100)&"%" -> заходы-продажи −% | X98: ="заходы-отклики"&CHAR(10)&IF(OR(T100=0,T100="",T102=""),"−",ROUND(T102/T100,4)*100)&"%" -> заходы-отклики −% | Z98: Заходы-продажи | AA98: =IF(Q126="",#N/A,Q126) ->  | AB98: =IF(Q143="",#N/A,Q143) ->  | AC98: =IF(Q160="",#N/A,Q160) ->  | AD98: =IF(Q177="",#N/A,Q177) -> 
B99: Прибыль, руб. | C99: =SUM(C116,C133,C150,C167) -> 0 | D99: 0 | E99: 0 | F99: 0 | H99: 0 | I99: 0 | L99: =SUM(L116,L133,L150,L167) -> 0 | M99: 0 | N99: 0 | T99: Заходы | Z99: Прибыль | AA99: =IF(Q116="",#N/A,Q116) ->  | AB99: =IF(Q133="",#N/A,Q133) ->  | AC99: =IF(Q150="",#N/A,Q150) ->  | AD99: =IF(Q167="",#N/A,Q167) -> 
B100: Затраты (реклама), руб. | C100: =SUM(C117,C134,C151,C168) -> 0 | D100: 0 | E100: 0 | F100: 0 | H100: 0 | I100: 0 | L100: =SUM(L117,L134,L151,L168) -> 0 | M100: 0 | N100: 0 | T100: =OFFSET(Q96,($V$2-1)*17,0,1,1) ->  | Z100: Затраты (реклама) | AA100: =IF(Q117="",#N/A,Q117) ->  | AB100: =IF(Q134="",#N/A,Q134) ->  | AC100: =IF(Q151="",#N/A,Q151) ->  | AD100: =IF(Q168="",#N/A,Q168) -> 
B101: Цена перехода | C101: =IF(C96=0,"",C100/C96) ->  | J101: =IFERROR(J100/J96,"") ->  | L101: =IF(L96=0,"",L100/L96) ->  | M101: =IF(M96=0,"",M100/M96) ->  | N101: =IF(N96=0,"",N100/N96) ->  | O101: =IFERROR(O100/O96,"") ->  | Q101: =IFERROR(Q100/Q96,"") ->  | T101: Отклики | W101: ="отклики-продажи"&CHAR(10)&IF(OR(T102=0,T102="",T104=""),"−",ROUND(T104/T102,4)*100)&"%" -> отклики-продажи −% | Z101: $ в кассе | AA101: =IF(Q121="",#N/A,Q121) ->  | AB101: =IF(Q138="",#N/A,Q138) ->  | AC101: =IF(Q155="",#N/A,Q155) ->  | AD101: =IF(Q172="",#N/A,Q172) -> 
B102: Цена клиента | C102: =IF(C98=0,"",C100/C98) ->  | J102: =IFERROR(J100/J98,"") ->  | L102: =IF(L98=0,"",L100/L98) ->  | M102: =IF(M98=0,"",M100/M98) ->  | N102: =IF(N98=0,"",N100/N98) ->  | O102: =IFERROR(O100/O98,"") ->  | Q102: =IFERROR(Q100/Q98,"") ->  | T102: =OFFSET(Q97,($V$2-1)*17,0,1,1) ->  | Z102: Чистая прибыль | AA102: =IF(Q127="",#N/A,Q127) -> 0 | AB102: =IF(Q144="",#N/A,Q144) -> 0 | AC102: =IF(Q161="",#N/A,Q161) -> 0 | AD102: =IF(Q178="",#N/A,Q178) -> 0
B103: Средний чек, руб. | C103: =IF(C98=0,"",C99/C98) ->  | J103: =IFERROR(J99/J98,"") ->  | L103: =IF(L98=0,"",L99/L98) ->  | M103: =IF(M98=0,"",M99/M98) ->  | N103: =IF(N98=0,"",N99/N98) ->  | O103: =IFERROR(O99/O98,"") ->  | Q103: =IFERROR(Q99/Q98,"") ->  | T103: Продажи
B104: Прибыль (- затраты) | C104: =IF(C99-C100=0,"",C99-C100) ->  | J104: =IF(SUM(C104:I104)=0,"",SUM(C104:I104)) ->  | L104: =IF(L99-L100=0,"",L99-L100) ->  | M104: =IF(M99-M100=0,"",M99-M100) ->  | N104: =IF(N99-N100=0,"",N99-N100) ->  | O104: =IF(SUM(L104:N104)=0,"",SUM(L104:N104)) ->  | Q104: =IF(SUM(J104,O104)=0,"",SUM(J104,O104)) ->  | T104: =OFFSET(Q98,($V$2-1)*17,0,1,1) ->  | W104: ="продажи-повтор.продажи"&CHAR(10)&IF(OR(T104=0,T104="",T106=""),"−",ROUND(T106/T104,4)*100)&"%" -> продажи-повтор.продажи −%
B105: ROI на 1 рубль | C105: =IF(C100=0,"",(C99-C100)/C100) ->  | J105: =IFERROR((J99-J100)/J100,"") ->  | L105: =IF(L100=0,"",(L99-L100)/L100) ->  | M105: =IF(M100=0,"",(M99-M100)/M100) ->  | N105: =IF(N100=0,"",(N99-N100)/N100) ->  | O105: =IFERROR((O99-O100)/O100,"") ->  | Q105: =IFERROR((Q99-Q100)/Q100,"") ->  | T105: повтор
B106: Показы - заходы | C106: =IF(C95=0,"",C96/C95) ->  | J106: =IFERROR(J96/J95,"") ->  | L106: =IF(L95=0,"",L96/L95) ->  | O106: =IFERROR(O96/O95,"") ->  | Q106: =IFERROR(Q96/Q95,"") ->  | T106: =OFFSET(L98,($V$2-1)*17,0,1,1) -> 0
B107: Заходы - отклики | C107: =IF(C96=0,"",C97/C96) ->  | J107: =IFERROR(J97/J96,"") ->  | L107: =IF(L96=0,"",L97/L96) ->  | O107: =IFERROR(O97/O96,"") ->  | Q107: =IFERROR(Q97/Q96,"") -> 
B108: Отклики - продажи | C108: =IF(C97=0,"",C98/C97) ->  | J108: =IFERROR(J98/J97,"") ->  | L108: =IF(L97=0,"",L98/L97) ->  | O108: =IFERROR(O98/O97,"") ->  | Q108: =IFERROR(Q98/Q97,"") ->  | T108: =UPPER($W$2) -> МЕСЯЦ
B109: Заходы-продажи | C109: =IF(C96=0,"",C98/C96) ->  | J109: =IFERROR(J98/J96,"") ->  | L109: =IF(L96=0,"",L98/L96) ->  | M109: =IF(M96=0,"",M98/M96) ->  | N109: =IF(N96=0,"",N98/N96) ->  | O109: =IFERROR(O98/O96,"") ->  | Q109: =IFERROR(Q98/Q96,"") -> 
B110: Чистая прибыль, руб. (с учетом доп. Расходов) | Q110: =IF(Q104="",-T110,Q104-T110) -> 0 | S110: Итого доп.расходы | T110: =SUM(T112:T126,T129:T143,T146:T160,T163:T177) -> 0
B111: =LEFT(B93,3)&" Неделя 1" -> ФЕВ Неделя 1 | C111: Дней: | D111: 9 | E111: =LOWER("01 "&LEFT(B93,3)&" - "&IF(D111<10,"0"&D111,D111)&" "&LEFT(B93,3)) -> 01 фев - 09 фев
B112: =$B$8 -> Показов | J112: =IF(SUM(C112:I112)=0,"",SUM(C112:I112)) ->  | O112: =IF(SUM(L112:N112)=0,"",SUM(L112:N112)) ->  | Q112: =IF(SUM(J112,O112)=0,"",SUM(J112,O112)) -> 
B113: =$B$9 -> Заходов | Q113: =IF(SUM(J113,O113)=0,"",SUM(J113,O113)) -> 
B114: =$B$10 -> Откликов
B115: =$B$11 -> Продажи
B116: =$B$12 -> Прибыль, руб.
B117: =$B$13 -> Затраты (реклама), руб.
B118: =$B$14 -> Цена перехода | C118: =IF(C113=0,"",C117/C113) ->  | D118: =IF(D113=0,"",D117/D113) ->  | J118: =IFERROR(J117/J113,"") ->  | L118: =IF(L113=0,"",L117/L113) ->  | O118: =IFERROR(O117/O113,"") ->  | Q118: =IFERROR(Q117/Q113,"") -> 
B119: =$B$15 -> Цена клиента | C119: =IF(C115=0,"",C117/C115) ->  | D119: =IF(D115=0,"",D117/D115) ->  | J119: =IFERROR(J117/J115,"") ->  | L119: =IF(L115=0,"",L117/L115) ->  | O119: =IFERROR(O117/O115,"") ->  | Q119: =IFERROR(Q117/Q115,"") -> 
B120: =$B$16 -> Средний чек, руб. | C120: =IF(C115=0,"",C116/C115) ->  | D120: =IF(D115=0,"",D116/D115) ->  | J120: =IFERROR(J116/J115,"") ->  | L120: =IF(L115=0,"",L116/L115) ->  | O120: =IFERROR(O116/O115,"") ->  | Q120: =IFERROR(Q116/Q115,"") -> 
B121: =$B$17 -> Прибыль (- затраты) | C121: =IF(C116-C117=0,"",C116-C117) ->  | J121: =IF(SUM(C121:I121)=0,"",SUM(C121:I121)) ->  | L121: =IF(L116-L117=0,"",L116-L117) ->  | O121: =IF(SUM(L121:N121)=0,"",SUM(L121:N121)) ->  | Q121: =IF(SUM(J121,O121)=0,"",SUM(J121,O121)) -> 
B122: =$B$18 -> ROI на 1 рубль | C122: =IF(C117=0,"",(C116-C117)/C117) ->  | J122: =IFERROR((J116-J117)/J117,"") ->  | L122: =IF(L117=0,"",(L116-L117)/L117) ->  | O122: =IFERROR((O116-O117)/O117,"") ->  | Q122: =IFERROR((Q116-Q117)/Q117,"") -> 
B123: =$B$19 -> Показы - заходы | C123: =IF(C112=0,"",C113/C112) ->  | J123: =IFERROR(J113/J112,"") ->  | L123: =IF(L112=0,"",L113/L112) ->  | O123: =IFERROR(O113/O112,"") ->  | Q123: =IFERROR(Q113/Q112,"") -> 
B124: =$B$20 -> Заходы - отклики | C124: =IF(C113=0,"",C114/C113) ->  | J124: =IFERROR(J114/J113,"") ->  | L124: =IF(L113=0,"",L114/L113) ->  | O124: =IFERROR(O114/O113,"") ->  | Q124: =IFERROR(Q114/Q113,"") -> 
B125: =$B$21 -> Отклики - продажи | C125: =IF(C114=0,"",C115/C114) ->  | J125: =IFERROR(J115/J114,"") ->  | L125: =IF(L114=0,"",L115/L114) ->  | O125: =IFERROR(O115/O114,"") ->  | Q125: =IFERROR(Q115/Q114,"") -> 
B126: =$B$22 -> Заходы-продажи | C126: =IF(C113=0,"",C115/C113) ->  | J126: =IFERROR(J115/J113,"") ->  | L126: =IF(L113=0,"",L115/L113) ->  | O126: =IFERROR(O115/O113,"") ->  | Q126: =IFERROR(Q115/Q113,"") -> 
B127: =$B$23 -> Чистая прибыль, руб. (с учетом доп. Расходов) | Q127: =IF(Q121="",-T127,Q121-T127) -> 0 | S127: Итого доп.расходы | T127: =SUM(T112:T126) -> 0
B128: =LEFT(B93,3)&" Неделя 2" -> ФЕВ Неделя 2 | C128: Дней: | D128: 7 | E128: =LOWER(IF(D111+1<10,"0"&D111+1,D111+1)&" "&LEFT(B93,3)&" - "&IF(D111+1+D128<10,"0"&D111+D128,D111+D128)&" "&LEFT(B93,3)) -> 10 фев - 16 фев
B129: =$B$8 -> Показов | J129: =IF(SUM(C129:I129)=0,"",SUM(C129:I129)) ->  | O129: =IF(SUM(L129:N129)=0,"",SUM(L129:N129)) ->  | Q129: =IF(SUM(J129,O129)=0,"",SUM(J129,O129)) -> 
B130: =$B$9 -> Заходов | Q130: =IF(SUM(J130,O130)=0,"",SUM(J130,O130)) -> 
B131: =$B$10 -> Откликов
B132: =$B$11 -> Продажи
B133: =$B$12 -> Прибыль, руб.
B134: =$B$13 -> Затраты (реклама), руб.
B135: =$B$14 -> Цена перехода | C135: =IF(C130=0,"",C134/C130) ->  | D135: =IF(D130=0,"",D134/D130) ->  | J135: =IFERROR(J134/J130,"") ->  | L135: =IF(L130=0,"",L134/L130) ->  | O135: =IFERROR(O134/O130,"") ->  | Q135: =IFERROR(Q134/Q130,"") -> 
B136: =$B$15 -> Цена клиента | C136: =IF(C132=0,"",C134/C132) ->  | D136: =IF(D132=0,"",D134/D132) ->  | J136: =IFERROR(J134/J132,"") ->  | L136: =IF(L132=0,"",L134/L132) ->  | O136: =IFERROR(O134/O132,"") ->  | Q136: =IFERROR(Q134/Q132,"") -> 
B137: =$B$16 -> Средний чек, руб. | C137: =IF(C132=0,"",C133/C132) ->  | D137: =IF(D132=0,"",D133/D132) ->  | J137: =IFERROR(J133/J132,"") ->  | L137: =IF(L132=0,"",L133/L132) ->  | O137: =IFERROR(O133/O132,"") ->  | Q137: =IFERROR(Q133/Q132,"") -> 
B138: =$B$17 -> Прибыль (- затраты) | C138: =IF(C133-C134=0,"",C133-C134) ->  | J138: =IF(SUM(C138:I138)=0,"",SUM(C138:I138)) ->  | L138: =IF(L133-L134=0,"",L133-L134) ->  | O138: =IF(SUM(L138:N138)=0,"",SUM(L138:N138)) ->  | Q138: =IF(SUM(J138,O138)=0,"",SUM(J138,O138)) -> 
B139: =$B$18 -> ROI на 1 рубль | C139: =IF(C134=0,"",(C133-C134)/C134) ->  | J139: =IFERROR((J133-J134)/J134,"") ->  | L139: =IF(L134=0,"",(L133-L134)/L134) ->  | O139: =IFERROR((O133-O134)/O134,"") ->  | Q139: =IFERROR((Q133-Q134)/Q134,"") -> 
B140: =$B$19 -> Показы - заходы | C140: =IF(C129=0,"",C130/C129) ->  | J140: =IFERROR(J130/J129,"") ->  | L140: =IF(L129=0,"",L130/L129) ->  | O140: =IFERROR(O130/O129,"") ->  | Q140: =IFERROR(Q130/Q129,"") -> 
B141: =$B$20 -> Заходы - отклики | C141: =IF(C130=0,"",C131/C130) ->  | J141: =IFERROR(J131/J130,"") ->  | L141: =IF(L130=0,"",L131/L130) ->  | O141: =IFERROR(O131/O130,"") ->  | Q141: =IFERROR(Q131/Q130,"") -> 
B142: =$B$21 -> Отклики - продажи | C142: =IF(C131=0,"",C132/C131) ->  | J142: =IFERROR(J132/J131,"") ->  | L142: =IF(L131=0,"",L132/L131) ->  | O142: =IFERROR(O132/O131,"") ->  | Q142: =IFERROR(Q132/Q131,"") -> 
B143: =$B$22 -> Заходы-продажи | C143: =IF(C130=0,"",C132/C130) ->  | J143: =IFERROR(J132/J130,"") ->  | L143: =IF(L130=0,"",L132/L130) ->  | O143: =IFERROR(O132/O130,"") ->  | Q143: =IFERROR(Q132/Q130,"") -> 
B144: =$B$23 -> Чистая прибыль, руб. (с учетом доп. Расходов) | Q144: =IF(Q138="",-T144,Q138-T144) -> 0 | S144: Итого доп.расходы | T144: =SUM(T129:T143) -> 0
B145: =LEFT(B93,3)&" Неделя 3" -> ФЕВ Неделя 3 | C145: Дней: | D145: 7 | E145: =LOWER(IF(D111+D128+1<10,"0"&D111+D128+1,D111+D128+1)&" "&LEFT(B93,3)&" - "&IF(D111+D128+D145<10,"0"&D111+D128+D145,D111+D128+D145)&" "&LEFT(B93,3)) -> 17 фев - 23 фев
B146: =$B$8 -> Показов | J146: =IF(SUM(C146:I146)=0,"",SUM(C146:I146)) ->  | O146: =IF(SUM(L146:N146)=0,"",SUM(L146:N146)) ->  | Q146: =IF(SUM(J146,O146)=0,"",SUM(J146,O146)) -> 
B147: =$B$9 -> Заходов | Q147: =IF(SUM(J147,O147)=0,"",SUM(J147,O147)) -> 
B148: =$B$10 -> Откликов
B149: =$B$11 -> Продажи
B150: =$B$12 -> Прибыль, руб.
B151: =$B$13 -> Затраты (реклама), руб.
B152: =$B$14 -> Цена перехода | C152: =IF(C147=0,"",C151/C147) ->  | D152: =IF(D147=0,"",D151/D147) ->  | J152: =IFERROR(J151/J147,"") ->  | L152: =IF(L147=0,"",L151/L147) ->  | O152: =IFERROR(O151/O147,"") ->  | Q152: =IFERROR(Q151/Q147,"") -> 
B153: =$B$15 -> Цена клиента | C153: =IF(C149=0,"",C151/C149) ->  | D153: =IF(D149=0,"",D151/D149) ->  | J153: =IFERROR(J151/J149,"") ->  | L153: =IF(L149=0,"",L151/L149) ->  | O153: =IFERROR(O151/O149,"") ->  | Q153: =IFERROR(Q151/Q149,"") -> 
B154: =$B$16 -> Средний чек, руб. | C154: =IF(C149=0,"",C150/C149) ->  | D154: =IF(D149=0,"",D150/D149) ->  | J154: =IFERROR(J150/J149,"") ->  | L154: =IF(L149=0,"",L150/L149) ->  | O154: =IFERROR(O150/O149,"") ->  | Q154: =IFERROR(Q150/Q149,"") -> 
B155: =$B$17 -> Прибыль (- затраты) | C155: =IF(C150-C151=0,"",C150-C151) ->  | J155: =IF(SUM(C155:I155)=0,"",SUM(C155:I155)) ->  | L155: =IF(L150-L151=0,"",L150-L151) ->  | O155: =IF(SUM(L155:N155)=0,"",SUM(L155:N155)) ->  | Q155: =IF(SUM(J155,O155)=0,"",SUM(J155,O155)) -> 
B156: =$B$18 -> ROI на 1 рубль | C156: =IF(C151=0,"",(C150-C151)/C151) ->  | J156: =IFERROR((J150-J151)/J151,"") ->  | L156: =IF(L151=0,"",(L150-L151)/L151) ->  | O156: =IFERROR((O150-O151)/O151,"") ->  | Q156: =IFERROR((Q150-Q151)/Q151,"") -> 
B157: =$B$19 -> Показы - заходы | C157: =IF(C146=0,"",C147/C146) ->  | J157: =IFERROR(J147/J146,"") ->  | L157: =IF(L146=0,"",L147/L146) ->  | O157: =IFERROR(O147/O146,"") ->  | Q157: =IFERROR(Q147/Q146,"") -> 
B158: =$B$20 -> Заходы - отклики | C158: =IF(C147=0,"",C148/C147) ->  | J158: =IFERROR(J148/J147,"") ->  | L158: =IF(L147=0,"",L148/L147) ->  | O158: =IFERROR(O148/O147,"") ->  | Q158: =IFERROR(Q148/Q147,"") -> 
B159: =$B$21 -> Отклики - продажи | C159: =IF(C148=0,"",C149/C148) ->  | J159: =IFERROR(J149/J148,"") ->  | L159: =IF(L148=0,"",L149/L148) ->  | O159: =IFERROR(O149/O148,"") ->  | Q159: =IFERROR(Q149/Q148,"") -> 
B160: =$B$22 -> Заходы-продажи | C160: =IF(C147=0,"",C149/C147) ->  | J160: =IFERROR(J149/J147,"") ->  | L160: =IF(L147=0,"",L149/L147) ->  | O160: =IFERROR(O149/O147,"") ->  | Q160: =IFERROR(Q149/Q147,"") -> 
B161: =$B$23 -> Чистая прибыль, руб. (с учетом доп. Расходов) | Q161: =IF(Q155="",-T161,Q155-T161) -> 0 | S161: Итого доп.расходы | T161: =SUM(T146:T160) -> 0
B162: =LEFT(B93,3)&" Неделя 4" -> ФЕВ Неделя 4 | C162: Дней: | D162: 5 | E162: =LOWER(IF(D111+D128+D145+1<10,"0"&D111+D128+D145+1,D111+D128+D145+1)&" "&LEFT(B93,3)&" - "&IF(D111+D128+D145+D162<10,"0"&D111+D128+D145+D162,D111+D128+D145+D162)&" "&LEFT(B93,3)) -> 24 фев - 28 фев
B163: =$B$8 -> Показов | J163: =IF(SUM(C163:I163)=0,"",SUM(C163:I163)) ->  | O163: =IF(SUM(L163:N163)=0,"",SUM(L163:N163)) ->  | Q163: =IF(SUM(J163,O163)=0,"",SUM(J163,O163)) -> 
B164: =$B$9 -> Заходов | Q164: =IF(SUM(J164,O164)=0,"",SUM(J164,O164)) -> 
B165: =$B$10 -> Откликов
B166: =$B$11 -> Продажи
B167: =$B$12 -> Прибыль, руб.
B168: =$B$13 -> Затраты (реклама), руб.
B169: =$B$14 -> Цена перехода | C169: =IF(C164=0,"",C168/C164) ->  | D169: =IF(D164=0,"",D168/D164) ->  | J169: =IFERROR(J168/J164,"") ->  | L169: =IF(L164=0,"",L168/L164) ->  | O169: =IFERROR(O168/O164,"") ->  | Q169: =IFERROR(Q168/Q164,"") -> 
B170: =$B$15 -> Цена клиента | C170: =IF(C166=0,"",C168/C166) ->  | D170: =IF(D166=0,"",D168/D166) ->  | J170: =IFERROR(J168/J166,"") ->  | L170: =IF(L166=0,"",L168/L166) ->  | O170: =IFERROR(O168/O166,"") ->  | Q170: =IFERROR(Q168/Q166,"") -> 
B171: =$B$16 -> Средний чек, руб. | C171: =IF(C166=0,"",C167/C166) ->  | D171: =IF(D166=0,"",D167/D166) ->  | J171: =IFERROR(J167/J166,"") ->  | L171: =IF(L166=0,"",L167/L166) ->  | O171: =IFERROR(O167/O166,"") ->  | Q171: =IFERROR(Q167/Q166,"") -> 
B172: =$B$17 -> Прибыль (- затраты) | C172: =IF(C167-C168=0,"",C167-C168) ->  | J172: =IF(SUM(C172:I172)=0,"",SUM(C172:I172)) ->  | L172: =IF(L167-L168=0,"",L167-L168) ->  | O172: =IF(SUM(L172:N172)=0,"",SUM(L172:N172)) ->  | Q172: =IF(SUM(J172,O172)=0,"",SUM(J172,O172)) -> 
B173: =$B$18 -> ROI на 1 рубль | C173: =IF(C168=0,"",(C167-C168)/C168) ->  | J173: =IFERROR((J167-J168)/J168,"") ->  | L173: =IF(L168=0,"",(L167-L168)/L168) ->  | O173: =IFERROR((O167-O168)/O168,"") ->  | Q173: =IFERROR((Q167-Q168)/Q168,"") -> 
B174: =$B$19 -> Показы - заходы | C174: =IF(C163=0,"",C164/C163) ->  | J174: =IFERROR(J164/J163,"") ->  | L174: =IF(L163=0,"",L164/L163) ->  | O174: =IFERROR(O164/O163,"") ->  | Q174: =IFERROR(Q164/Q163,"") -> 
B175: =$B$20 -> Заходы - отклики | C175: =IF(C164=0,"",C165/C164) ->  | J175: =IFERROR(J165/J164,"") ->  | L175: =IF(L164=0,"",L165/L164) ->  | O175: =IFERROR(O165/O164,"") ->  | Q175: =IFERROR(Q165/Q164,"") -> 
B176: =$B$21 -> Отклики - продажи | C176: =IF(C165=0,"",C166/C165) ->  | J176: =IFERROR(J166/J165,"") ->  | L176: =IF(L165=0,"",L166/L165) ->  | O176: =IFERROR(O166/O165,"") ->  | Q176: =IFERROR(Q166/Q165,"") -> 
B177: =$B$22 -> Заходы-продажи | C177: =IF(C164=0,"",C166/C164) ->  | J177: =IFERROR(J166/J164,"") ->  | L177: =IF(L164=0,"",L166/L164) ->  | O177: =IFERROR(O166/O164,"") ->  | Q177: =IFERROR(Q166/Q164,"") -> 
B178: =$B$23 -> Чистая прибыль, руб. (с учетом доп. Расходов) | Q178: =IF(Q172="",-T178,Q172-T178) -> 0 | S178: Итого доп.расходы | T178: =SUM(T163:T177) -> 0
B180: МАРТ | C180: =IF(Q197=0," ","Чистая прибыль: ")&IF(Q197=0,"",Q197)&" "&IF(Q187=""," ","Затраты на рекламу: ")&IF(Q187="","",Q187)&" "&IF(T197=0,"","Доп.расходы: ")&IF(T197=0,"",T197) -> 
B181: =B94 -> Итого за месяц | C181: Дней: | D181: =SUM(D198,D215,D232,D249) -> 31
B182: =B95 -> Показов | C182: =SUM(C199,C216,C233,C250) -> 0 | D182: =SUM(D199,D216,D233,D250) -> 0 | E182: 0 | F182: 0 | H182: 0 | I182: 0 | J182: =IF(SUM(C182:I182)=0,"",SUM(C182:I182)) ->  | L182: =SUM(L199,L216,L233,L250) -> 0 | M182: 0 | N182: 0 | O182: =IF(SUM(L182:N182)=0,"",SUM(L182:N182)) ->  | Q182: =IF(SUM(J182,O182)=0,"",SUM(J182,O182)) ->  | AA182: нед.1 | AB182: нед.2 | AC182: нед.3 | AD182: нед.4
B183: Заходов | C183: =SUM(C200,C217,C234,C251) -> 0 | D183: 0 | E183: 0 | F183: 0 | H183: 0 | I183: 0 | L183: =SUM(L200,L217,L234,L251) -> 0 | M183: 0 | N183: 0 | Q183: =IF(SUM(J183,O183)=0,"",SUM(J183,O183)) ->  | Z183: Заходы-отклики | AA183: =IF(Q211="",#N/A,Q211) ->  | AB183: =IF(Q228="",#N/A,Q228) ->  | AC183: =IF(Q245="",#N/A,Q245) ->  | AD183: =IF(Q262="",#N/A,Q262) -> 
B184: Откликов | C184: =SUM(C201,C218,C235,C252) -> 0 | D184: 0 | E184: 0 | F184: 0 | H184: 0 | I184: 0 | L184: =SUM(L201,L218,L235,L252) -> 0 | M184: 0 | N184: 0 | Z184: Отклики-продажи | AA184: =IF(Q212="",#N/A,Q212) ->  | AB184: =IF(Q229="",#N/A,Q229) ->  | AC184: =IF(Q246="",#N/A,Q246) ->  | AD184: =IF(Q263="",#N/A,Q263) -> 
B185: Продажи | C185: =SUM(C202,C219,C236,C253) -> 0 | D185: 0 | E185: 0 | F185: 0 | H185: 0 | I185: 0 | L185: =SUM(L202,L219,L236,L253) -> 0 | M185: 0 | N185: 0 | S185: ="заходы-продажи"&CHAR(10)&IF(OR(T187=0,T187="",T191=""),"−",ROUND(T191/T187,4)*100)&"%" -> заходы-продажи −% | X185: ="заходы-отклики"&CHAR(10)&IF(OR(T187=0,T187="",T189=""),"−",ROUND(T189/T187,4)*100)&"%" -> заходы-отклики −% | Z185: Заходы-продажи | AA185: =IF(Q213="",#N/A,Q213) ->  | AB185: =IF(Q230="",#N/A,Q230) ->  | AC185: =IF(Q247="",#N/A,Q247) ->  | AD185: =IF(Q264="",#N/A,Q264) -> 
B186: Прибыль, руб. | C186: =SUM(C203,C220,C237,C254) -> 0 | D186: 0 | E186: 0 | F186: 0 | H186: 0 | I186: 0 | L186: =SUM(L203,L220,L237,L254) -> 0 | M186: 0 | N186: 0 | T186: Заходы | Z186: Прибыль | AA186: =IF(Q203="",#N/A,Q203) ->  | AB186: =IF(Q220="",#N/A,Q220) ->  | AC186: =IF(Q237="",#N/A,Q237) ->  | AD186: =IF(Q254="",#N/A,Q254) -> 
B187: Затраты (реклама), руб. | C187: =SUM(C204,C221,C238,C255) -> 0 | D187: 0 | E187: 0 | F187: 0 | H187: 0 | I187: 0 | L187: =SUM(L204,L221,L238,L255) -> 0 | M187: 0 | N187: 0 | T187: =OFFSET(Q183,($V$2-1)*17,0,1,1) ->  | Z187: Затраты (реклама) | AA187: =IF(Q204="",#N/A,Q204) ->  | AB187: =IF(Q221="",#N/A,Q221) ->  | AC187: =IF(Q238="",#N/A,Q238) ->  | AD187: =IF(Q255="",#N/A,Q255) -> 
B188: Цена перехода | C188: =IF(C183=0,"",C187/C183) ->  | J188: =IFERROR(J187/J183,"") ->  | L188: =IF(L183=0,"",L187/L183) ->  | M188: =IF(M183=0,"",M187/M183) ->  | N188: =IF(N183=0,"",N187/N183) ->  | O188: =IFERROR(O187/O183,"") ->  | Q188: =IFERROR(Q187/Q183,"") ->  | T188: Отклики | W188: ="отклики-продажи"&CHAR(10)&IF(OR(T189=0,T189="",T191=""),"−",ROUND(T191/T189,4)*100)&"%" -> отклики-продажи −% | Z188: $ в кассе | AA188: =IF(Q208="",#N/A,Q208) ->  | AB188: =IF(Q225="",#N/A,Q225) ->  | AC188: =IF(Q242="",#N/A,Q242) ->  | AD188: =IF(Q259="",#N/A,Q259) -> 
B189: Цена клиента | C189: =IF(C185=0,"",C187/C185) ->  | J189: =IFERROR(J187/J185,"") ->  | L189: =IF(L185=0,"",L187/L185) ->  | M189: =IF(M185=0,"",M187/M185) ->  | N189: =IF(N185=0,"",N187/N185) ->  | O189: =IFERROR(O187/O185,"") ->  | Q189: =IFERROR(Q187/Q185,"") ->  | T189: =OFFSET(Q184,($V$2-1)*17,0,1,1) ->  | Z189: Чистая прибыль | AA189: =IF(Q214="",#N/A,Q214) -> 0 | AB189: =IF(Q231="",#N/A,Q231) -> 0 | AC189: =IF(Q248="",#N/A,Q248) -> 0 | AD189: =IF(Q265="",#N/A,Q265) -> 0
B190: Средний чек, руб. | C190: =IF(C185=0,"",C186/C185) ->  | J190: =IFERROR(J186/J185,"") ->  | L190: =IF(L185=0,"",L186/L185) ->  | M190: =IF(M185=0,"",M186/M185) ->  | N190: =IF(N185=0,"",N186/N185) ->  | O190: =IFERROR(O186/O185,"") ->  | Q190: =IFERROR(Q186/Q185,"") ->  | T190: Продажи
B191: Прибыль (- затраты) | C191: =IF(C186-C187=0,"",C186-C187) ->  | J191: =IF(SUM(C191:I191)=0,"",SUM(C191:I191)) ->  | L191: =IF(L186-L187=0,"",L186-L187) ->  | M191: =IF(M186-M187=0,"",M186-M187) ->  | N191: =IF(N186-N187=0,"",N186-N187) ->  | O191: =IF(SUM(L191:N191)=0,"",SUM(L191:N191)) ->  | Q191: =IF(SUM(J191,O191)=0,"",SUM(J191,O191)) ->  | T191: =OFFSET(Q185,($V$2-1)*17,0,1,1) ->  | W191: ="продажи-повтор.продажи"&CHAR(10)&IF(OR(T191=0,T191="",T193=""),"−",ROUND(T193/T191,4)*100)&"%" -> продажи-повтор.продажи −%
B192: ROI на 1 рубль | C192: =IF(C187=0,"",(C186-C187)/C187) ->  | J192: =IFERROR((J186-J187)/J187,"") ->  | L192: =IF(L187=0,"",(L186-L187)/L187) ->  | M192: =IF(M187=0,"",(M186-M187)/M187) ->  | N192: =IF(N187=0,"",(N186-N187)/N187) ->  | O192: =IFERROR((O186-O187)/O187,"") ->  | Q192: =IFERROR((Q186-Q187)/Q187,"") ->  | T192: повтор
B193: Показы - заходы | C193: =IF(C182=0,"",C183/C182) ->  | J193: =IFERROR(J183/J182,"") ->  | L193: =IF(L182=0,"",L183/L182) ->  | O193: =IFERROR(O183/O182,"") ->  | Q193: =IFERROR(Q183/Q182,"") ->  | T193: =OFFSET(L185,($V$2-1)*17,0,1,1) -> 0
B194: Заходы - отклики | C194: =IF(C183=0,"",C184/C183) ->  | J194: =IFERROR(J184/J183,"") ->  | L194: =IF(L183=0,"",L184/L183) ->  | O194: =IFERROR(O184/O183,"") ->  | Q194: =IFERROR(Q184/Q183,"") -> 
B195: Отклики - продажи | C195: =IF(C184=0,"",C185/C184) ->  | J195: =IFERROR(J185/J184,"") ->  | L195: =IF(L184=0,"",L185/L184) ->  | O195: =IFERROR(O185/O184,"") ->  | Q195: =IFERROR(Q185/Q184,"") ->  | T195: =UPPER($W$2) -> МЕСЯЦ
B196: Заходы-продажи | C196: =IF(C183=0,"",C185/C183) ->  | J196: =IFERROR(J185/J183,"") ->  | L196: =IF(L183=0,"",L185/L183) ->  | M196: =IF(M183=0,"",M185/M183) ->  | N196: =IF(N183=0,"",N185/N183) ->  | O196: =IFERROR(O185/O183,"") ->  | Q196: =IFERROR(Q185/Q183,"") -> 
B197: Чистая прибыль, руб. (с учетом доп. Расходов) | Q197: =IF(Q191="",-T197,Q191-T197) -> 0 | S197: Итого доп.расходы | T197: =SUM(T199:T213,T216:T230,T233:T247,T250:T264) -> 0
B198: =LEFT(B180,3)&" Неделя 1" -> МАР Неделя 1 | C198: Дней: | D198: 9 | E198: =LOWER("01 "&LEFT(B180,3)&" - "&IF(D198<10,"0"&D198,D198)&" "&LEFT(B180,3)) -> 01 мар - 09 мар
B199: =$B$8 -> Показов | J199: =IF(SUM(C199:I199)=0,"",SUM(C199:I199)) ->  | O199: =IF(SUM(L199:N199)=0,"",SUM(L199:N199)) ->  | Q199: =IF(SUM(J199,O199)=0,"",SUM(J199,O199)) -> 
B200: =$B$9 -> Заходов | Q200: =IF(SUM(J200,O200)=0,"",SUM(J200,O200)) -> 
B201: =$B$10 -> Откликов
B202: =$B$11 -> Продажи
B203: =$B$12 -> Прибыль, руб.
... 837 more rows

Sheet ДИНАМИКА
A1: 1 | C1: =IF(OFFSET(ВОРОНКА!$D26,($A$1-1)*87,0,1,1)>0,OFFSET(ВОРОНКА!$D24,($A$1-1)*87,0,1,1),0) -> 0 | D1: =IF(OFFSET(ВОРОНКА!$D43,($A$1-1)*87,0,1,1)>0,OFFSET(ВОРОНКА!$D41,($A$1-1)*87,0,1,1),0) -> 0 | E1: =IF(OFFSET(ВОРОНКА!$D60,($A$1-1)*87,0,1,1)>0,OFFSET(ВОРОНКА!$D58,($A$1-1)*87,0,1,1),0) -> 0 | F1: =IF(OFFSET(ВОРОНКА!$D77,($A$1-1)*87,0,1,1)>0,OFFSET(ВОРОНКА!$D75,($A$1-1)*87,0,1,1),0) -> 0 | I1: 180 | J1: 1.8 | K1: 1.8 | P1: ПОСТРОЕНИЕ ПРОГНОЗА И СРАВНЕНИЕ С ЦЕЛЬЮ: | AL1: 1 | AY1: Янв | AZ1: Фев | BA1: Мар
C2: нед.1 | D2: нед.2 | E2: нед.3 | F2: нед.4 | I2: 45 | J2: =180%*AA3 ->  | K2: =180%*IF(AN3>1,1,AN3) -> 1.8 | P2: Выберите месяц: | T2: Показатель | W2: Факт | Y2: Цель | AA2: факт vs цель, % | AL2: Прогноз | AN2: прогноз vs цель, %
C3: =OFFSET(ВОРОНКА!$Q40,($A$1-1)*87,0,1,1) -> 0 | D3: =OFFSET(ВОРОНКА!$Q57,($A$1-1)*87,0,1,1) -> 0 | E3: =OFFSET(ВОРОНКА!$Q74,($A$1-1)*87,0,1,1) -> 0 | F3: =OFFSET(ВОРОНКА!$Q91,($A$1-1)*87,0,1,1) -> 0 | I3: 45 | J3: 0.03 | K3: 0.03 | T3: Чистая прибыль | W3: =OFFSET(ВОРОНКА!$Q23,($A$1-1)*87,0,1,1) -> 0 | Y3: =IF(A1=1,AY2,IF(A1=2,AZ2,IF(A1=3,BA2,IF(A1=4,AY4,IF(A1=5,AZ4,IF(A1=6,BA4,IF(A1=7,AY6,IF(A1=8,AZ6,IF(A1=9,BA6,IF(A1=10,AY8,IF(A1=11,AZ8,BA8))))))))))) -> 0 | AA3: =IFERROR(W3/Y3,"") ->  | AL3: =IF(AL1=1,МОДЕЛИРОВАНИЕ!$AE$14,IF(AL1=2,МОДЕЛИРОВАНИЕ!$AK$14,МОДЕЛИРОВАНИЕ!$AQ$14)) ->  | AN3: =IFERROR(AL3/Y3,"") ->  | AY3: Апр | AZ3: Май | BA3: Июн
I4: 45 | J4: =180%-J2 ->  | K4: =180%-K2 -> 0
I5: 45 | AY5: Июл | AZ5: Авг | BA5: Сен
AY7: Окт | AZ7: Ноя | BA7: Дек
P9: ГРАФИКИ ДИНАМИКИ ОСНОВНЫХ ПОКАЗАТЕЛЕЙ: | AW9: Введите годовые цели
C10: 0 | D10: =C10+87 -> 87 | E10: =D10+87 -> 174 | F10: 261 | G10: 348 | H10: 435 | I10: 522 | J10: 609 | K10: 696 | L10: 783 | M10: 870 | N10: 957 | P10: ФИНАНСОВЫЕ ПОКАЗАТЕЛИ | AE10: КОНВЕРСИОННЫЕ ПОКАЗАТЕЛИ | AR10: КОЛИЧЕСТВЕННЫЕ ПОКАЗАТЕЛИ
C11: =#N/A ->  | D11: =#N/A ->  | E11: =#N/A ->  | F11: =#N/A ->  | G11: =#N/A ->  | H11: =#N/A ->  | I11: =#N/A ->  | J11: =#N/A ->  | K11: =#N/A ->  | L11: =#N/A ->  | M11: =#N/A ->  | N11: =#N/A ->  | P11: ЧИСТАЯ ПРИБЫЛЬ | AE11: ЗАХОДЫ-ПРОДАЖИ | AR11: КОЛ-ВО ЗАХОДОВ
C12: янв | D12: фев | E12: мар | F12: апр | G12: май | H12: июн | I12: июл | J12: авг | K12: сен | L12: окт | M12: ноя | N12: дек
B13: чистая прибыль | C13: =OFFSET(ВОРОНКА!$Q23,C$10,0,1,1) -> 0 | D13: =OFFSET(ВОРОНКА!$Q23,D$10,0,1,1) -> 0 | E13: =OFFSET(ВОРОНКА!$Q23,E$10,0,1,1) -> 0 | F13: =OFFSET(ВОРОНКА!$Q23,F$10,0,1,1) -> 0 | G13: =OFFSET(ВОРОНКА!$Q23,G$10,0,1,1) -> 0 | H13: =OFFSET(ВОРОНКА!$Q23,H$10,0,1,1) -> 0 | I13: =OFFSET(ВОРОНКА!$Q23,I$10,0,1,1) -> 0 | J13: =OFFSET(ВОРОНКА!$Q23,J$10,0,1,1) -> 0 | K13: =OFFSET(ВОРОНКА!$Q23,K$10,0,1,1) -> 0 | L13: =OFFSET(ВОРОНКА!$Q23,L$10,0,1,1) -> 0 | M13: =OFFSET(ВОРОНКА!$Q23,M$10,0,1,1) -> 0 | N13: =OFFSET(ВОРОНКА!$Q23,N$10,0,1,1) -> 0
B14: средний чек | C14: =OFFSET(ВОРОНКА!$Q16,C$10,0,1,1) ->  | D14: =OFFSET(ВОРОНКА!$Q16,D$10,0,1,1) ->  | E14: =OFFSET(ВОРОНКА!$Q16,E$10,0,1,1) ->  | F14: =OFFSET(ВОРОНКА!$Q16,F$10,0,1,1) ->  | G14: =OFFSET(ВОРОНКА!$Q16,G$10,0,1,1) ->  | H14: =OFFSET(ВОРОНКА!$Q16,H$10,0,1,1) ->  | I14: =OFFSET(ВОРОНКА!$Q16,I$10,0,1,1) ->  | J14: =OFFSET(ВОРОНКА!$Q16,J$10,0,1,1) ->  | K14: =OFFSET(ВОРОНКА!$Q16,K$10,0,1,1) ->  | L14: =OFFSET(ВОРОНКА!$Q16,L$10,0,1,1) ->  | M14: =OFFSET(ВОРОНКА!$Q16,M$10,0,1,1) ->  | N14: =OFFSET(ВОРОНКА!$Q16,N$10,0,1,1) -> 
A15: TRUE | B15: реклама | C15: =OFFSET(ВОРОНКА!$Q13,C$10,0,1,1) ->  | D15: =OFFSET(ВОРОНКА!$Q13,D$10,0,1,1) ->  | E15: =OFFSET(ВОРОНКА!$Q13,E$10,0,1,1) ->  | F15: =OFFSET(ВОРОНКА!$Q13,F$10,0,1,1) ->  | G15: =OFFSET(ВОРОНКА!$Q13,G$10,0,1,1) ->  | H15: =OFFSET(ВОРОНКА!$Q13,H$10,0,1,1) ->  | I15: =OFFSET(ВОРОНКА!$Q13,I$10,0,1,1) ->  | J15: =OFFSET(ВОРОНКА!$Q13,J$10,0,1,1) ->  | K15: =OFFSET(ВОРОНКА!$Q13,K$10,0,1,1) ->  | L15: =OFFSET(ВОРОНКА!$Q13,L$10,0,1,1) ->  | M15: =OFFSET(ВОРОНКА!$Q13,M$10,0,1,1) ->  | N15: =OFFSET(ВОРОНКА!$Q13,N$10,0,1,1) -> 
A16: TRUE | B16: доп.затраты | C16: =OFFSET(ВОРОНКА!$T23,C$10,0,1,1) -> 0 | D16: =OFFSET(ВОРОНКА!$T23,D$10,0,1,1) -> 0 | E16: =OFFSET(ВОРОНКА!$T23,E$10,0,1,1) -> 0 | F16: =OFFSET(ВОРОНКА!$T23,F$10,0,1,1) -> 0 | G16: =OFFSET(ВОРОНКА!$T23,G$10,0,1,1) -> 0 | H16: =OFFSET(ВОРОНКА!$T23,H$10,0,1,1) -> 0 | I16: =OFFSET(ВОРОНКА!$T23,I$10,0,1,1) -> 0 | J16: =OFFSET(ВОРОНКА!$T23,J$10,0,1,1) -> 0 | K16: =OFFSET(ВОРОНКА!$T23,K$10,0,1,1) -> 0 | L16: =OFFSET(ВОРОНКА!$T23,L$10,0,1,1) -> 0 | M16: =OFFSET(ВОРОНКА!$T23,M$10,0,1,1) -> 0 | N16: =OFFSET(ВОРОНКА!$T23,N$10,0,1,1) -> 0
B17: заходы-продажи | C17: =OFFSET(ВОРОНКА!$Q22,C$10,0,1,1) ->  | D17: =OFFSET(ВОРОНКА!$Q22,D$10,0,1,1) ->  | E17: =OFFSET(ВОРОНКА!$Q22,E$10,0,1,1) ->  | F17: =OFFSET(ВОРОНКА!$Q22,F$10,0,1,1) ->  | G17: =OFFSET(ВОРОНКА!$Q22,G$10,0,1,1) ->  | H17: =OFFSET(ВОРОНКА!$Q22,H$10,0,1,1) ->  | I17: =OFFSET(ВОРОНКА!$Q22,I$10,0,1,1) ->  | J17: =OFFSET(ВОРОНКА!$Q22,J$10,0,1,1) ->  | K17: =OFFSET(ВОРОНКА!$Q22,K$10,0,1,1) ->  | L17: =OFFSET(ВОРОНКА!$Q22,L$10,0,1,1) ->  | M17: =OFFSET(ВОРОНКА!$Q22,M$10,0,1,1) ->  | N17: =OFFSET(ВОРОНКА!$Q22,N$10,0,1,1) -> 
B18: заходы - отклики | C18: =OFFSET(ВОРОНКА!$Q20,C$10,0,1,1) ->  | D18: =OFFSET(ВОРОНКА!$Q20,D$10,0,1,1) ->  | E18: =OFFSET(ВОРОНКА!$Q20,E$10,0,1,1) ->  | F18: =OFFSET(ВОРОНКА!$Q20,F$10,0,1,1) ->  | G18: =OFFSET(ВОРОНКА!$Q20,G$10,0,1,1) ->  | H18: =OFFSET(ВОРОНКА!$Q20,H$10,0,1,1) ->  | I18: =OFFSET(ВОРОНКА!$Q20,I$10,0,1,1) ->  | J18: =OFFSET(ВОРОНКА!$Q20,J$10,0,1,1) ->  | K18: =OFFSET(ВОРОНКА!$Q20,K$10,0,1,1) ->  | L18: =OFFSET(ВОРОНКА!$Q20,L$10,0,1,1) ->  | M18: =OFFSET(ВОРОНКА!$Q20,M$10,0,1,1) ->  | N18: =OFFSET(ВОРОНКА!$Q20,N$10,0,1,1) ->  | R18: =IFERROR(C13,"-") -> 0 | S18: =IFERROR(D13,"-") -> 0 | T18: 0 | U18: 0 | V18: 0 | W18: 0 | X18: 0 | Y18: 0 | Z18: 0 | AA18: 0 | AB18: 0 | AC18: 0 | AE18: =IFERROR(C17,"-") ->  | AF18: =IFERROR(D17,"-") ->  | AR18: =IFERROR(C22,"-") ->  | AS18: =IFERROR(D22,"-") -> 
P19: k прироста | S19: =IFERROR(S18/R18-1,"") ->  | T19: =IFERROR(T18/S18-1,"") ->  | AF19: =IFERROR(AF18-AE18,"") ->  | AG19: =IFERROR(AG18-AF18,"") ->  | AS19: =IFERROR(AS18/AR18-1,"") ->  | AT19: =IFERROR(AT18/AS18-1,"") ->  | AU19: =IFERROR(AU18/AT18-1,"") ->  | AV19: =IFERROR(AV18/AU18-1,"") ->  | AW19: =IFERROR(AW18/AV18-1,"") ->  | AX19: =IFERROR(AX18/AW18-1,"") ->  | AY19: =IFERROR(AY18/AX18-1,"") ->  | AZ19: =IFERROR(AZ18/AY18-1,"") ->  | BA19: =IFERROR(BA18/AZ18-1,"") ->  | BB19: =IFERROR(BB18/BA18-1,"") ->  | BC19: =IFERROR(BC18/BB18-1,"") -> 
B21: отклики - продажи | C21: =OFFSET(ВОРОНКА!$Q21,C$10,0,1,1) ->  | D21: =OFFSET(ВОРОНКА!$Q21,D$10,0,1,1) ->  | E21: =OFFSET(ВОРОНКА!$Q21,E$10,0,1,1) ->  | F21: =OFFSET(ВОРОНКА!$Q21,F$10,0,1,1) ->  | G21: =OFFSET(ВОРОНКА!$Q21,G$10,0,1,1) ->  | H21: =OFFSET(ВОРОНКА!$Q21,H$10,0,1,1) ->  | I21: =OFFSET(ВОРОНКА!$Q21,I$10,0,1,1) ->  | J21: =OFFSET(ВОРОНКА!$Q21,J$10,0,1,1) ->  | K21: =OFFSET(ВОРОНКА!$Q21,K$10,0,1,1) ->  | L21: =OFFSET(ВОРОНКА!$Q21,L$10,0,1,1) ->  | M21: =OFFSET(ВОРОНКА!$Q21,M$10,0,1,1) ->  | N21: =OFFSET(ВОРОНКА!$Q21,N$10,0,1,1) ->  | P21: СРЕДНИЙ ЧЕК | AE21: ЗАХОДЫ-ОТКЛИКИ | AR21: КОЛ-ВО ОТКЛИКОВ
B22: заходы | C22: =OFFSET(ВОРОНКА!$Q9,C$10,0,1,1) ->  | D22: =OFFSET(ВОРОНКА!$Q9,D$10,0,1,1) ->  | E22: =OFFSET(ВОРОНКА!$Q9,E$10,0,1,1) ->  | F22: =OFFSET(ВОРОНКА!$Q9,F$10,0,1,1) ->  | G22: =OFFSET(ВОРОНКА!$Q9,G$10,0,1,1) ->  | H22: =OFFSET(ВОРОНКА!$Q9,H$10,0,1,1) ->  | I22: =OFFSET(ВОРОНКА!$Q9,I$10,0,1,1) ->  | J22: =OFFSET(ВОРОНКА!$Q9,J$10,0,1,1) ->  | K22: =OFFSET(ВОРОНКА!$Q9,K$10,0,1,1) ->  | L22: =OFFSET(ВОРОНКА!$Q9,L$10,0,1,1) ->  | M22: =OFFSET(ВОРОНКА!$Q9,M$10,0,1,1) ->  | N22: =OFFSET(ВОРОНКА!$Q9,N$10,0,1,1) -> 
B23: отклики | C23: =OFFSET(ВОРОНКА!$Q10,C$10,0,1,1) ->  | D23: =OFFSET(ВОРОНКА!$Q10,D$10,0,1,1) ->  | E23: =OFFSET(ВОРОНКА!$Q10,E$10,0,1,1) ->  | F23: =OFFSET(ВОРОНКА!$Q10,F$10,0,1,1) ->  | G23: =OFFSET(ВОРОНКА!$Q10,G$10,0,1,1) ->  | H23: =OFFSET(ВОРОНКА!$Q10,H$10,0,1,1) ->  | I23: =OFFSET(ВОРОНКА!$Q10,I$10,0,1,1) ->  | J23: =OFFSET(ВОРОНКА!$Q10,J$10,0,1,1) ->  | K23: =OFFSET(ВОРОНКА!$Q10,K$10,0,1,1) ->  | L23: =OFFSET(ВОРОНКА!$Q10,L$10,0,1,1) ->  | M23: =OFFSET(ВОРОНКА!$Q10,M$10,0,1,1) ->  | N23: =OFFSET(ВОРОНКА!$Q10,N$10,0,1,1) -> 
B24: продажи | C24: =OFFSET(ВОРОНКА!$Q11,C$10,0,1,1) ->  | D24: =OFFSET(ВОРОНКА!$Q11,D$10,0,1,1) ->  | E24: =OFFSET(ВОРОНКА!$Q11,E$10,0,1,1) ->  | F24: =OFFSET(ВОРОНКА!$Q11,F$10,0,1,1) ->  | G24: =OFFSET(ВОРОНКА!$Q11,G$10,0,1,1) ->  | H24: =OFFSET(ВОРОНКА!$Q11,H$10,0,1,1) ->  | I24: =OFFSET(ВОРОНКА!$Q11,I$10,0,1,1) ->  | J24: =OFFSET(ВОРОНКА!$Q11,J$10,0,1,1) ->  | K24: =OFFSET(ВОРОНКА!$Q11,K$10,0,1,1) ->  | L24: =OFFSET(ВОРОНКА!$Q11,L$10,0,1,1) ->  | M24: =OFFSET(ВОРОНКА!$Q11,M$10,0,1,1) ->  | N24: =OFFSET(ВОРОНКА!$Q11,N$10,0,1,1) -> 
C26: 1 | D26: 2 | E26: 3 | F26: 4 | G26: 5 | H26: 6 | I26: 7 | J26: 8 | K26: 9 | L26: 10 | M26: 11 | N26: 12
B27: $ в кассе | C27: =IF(C$26=$A$1,C13,#N/A) -> 0 | D27: =IF(D$26=$A$1,D13,#N/A) -> 
B28: средний чек | C28: =IF(C$26=$A$1,C14,#N/A) ->  | D28: =IF(D$26=$A$1,D14,#N/A) ->  | R28: =IFERROR(C14,"-") ->  | S28: =IFERROR(D14,"-") ->  | AE28: =IFERROR(C18,"-") ->  | AF28: =IFERROR(D18,"-") ->  | AR28: =IFERROR(C23,"-") ->  | AS28: =IFERROR(D23,"-") -> 
B29: реклама | C29: =IF(C$26=$A$1,C15,#N/A) ->  | D29: =IF(D$26=$A$1,D15,#N/A) ->  | P29: k прироста | S29: =IFERROR(S28/R28-1,"") ->  | T29: =IFERROR(T28/S28-1,"") ->  | U29: =IFERROR(U28/T28-1,"") ->  | V29: =IFERROR(V28/U28-1,"") ->  | W29: =IFERROR(W28/V28-1,"") ->  | X29: =IFERROR(X28/W28-1,"") ->  | Y29: =IFERROR(Y28/X28-1,"") ->  | Z29: =IFERROR(Z28/Y28-1,"") ->  | AA29: =IFERROR(AA28/Z28-1,"") ->  | AB29: =IFERROR(AB28/AA28-1,"") ->  | AC29: =IFERROR(AC28/AB28-1,"") ->  | AF29: =IFERROR(AF28-AE28,"") ->  | AG29: =IFERROR(AG28-AF28,"") ->  | AH29: =IFERROR(AH28-AG28,"") ->  | AI29: =IFERROR(AI28-AH28,"") ->  | AJ29: =IFERROR(AJ28-AI28,"") ->  | AK29: =IFERROR(AK28-AJ28,"") ->  | AL29: =IFERROR(AL28-AK28,"") ->  | AM29: =IFERROR(AM28-AL28,"") ->  | AN29: =IFERROR(AN28-AM28,"") ->  | AO29: =IFERROR(AO28-AN28,"") ->  | AP29: =IFERROR(AP28-AO28,"") ->  | AS29: =IFERROR(AS28/AR28-1,"") ->  | AT29: =IFERROR(AT28/AS28-1,"") ->  | AU29: =IFERROR(AU28/AT28-1,"") ->  | AV29: =IFERROR(AV28/AU28-1,"") ->  | AW29: =IFERROR(AW28/AV28-1,"") ->  | AX29: =IFERROR(AX28/AW28-1,"") ->  | AY29: =IFERROR(AY28/AX28-1,"") ->  | AZ29: =IFERROR(AZ28/AY28-1,"") ->  | BA29: =IFERROR(BA28/AZ28-1,"") ->  | BB29: =IFERROR(BB28/BA28-1,"") ->  | BC29: =IFERROR(BC28/BB28-1,"") -> 
B31: доп.затраты | C31: =IF(C$26=$A$1,C16,#N/A) -> 0 | D31: =IF(D$26=$A$1,D16,#N/A) ->  | P31: РЕКЛАМА + ДОП.ЗАТРАТЫ | AE31: ОТКЛИКИ-ПРОДАЖИ | AR31: КОЛ-ВО ПРОДАЖ
B32: заходы-продажи | C32: =IF(C$26=$A$1,C17,#N/A) ->  | D32: =IF(D$26=$A$1,D17,#N/A) -> 
B33: заходы - отклики | C33: =IF(C$26=$A$1,C18,#N/A) ->  | D33: =IF(D$26=$A$1,D18,#N/A) -> 
B34: отклики - продажи | C34: =IF(C$26=$A$1,C21,#N/A) ->  | D34: =IF(D$26=$A$1,D21,#N/A) -> 
B35: заходы | C35: =IF(C$26=$A$1,C22,#N/A) ->  | D35: =IF(D$26=$A$1,D22,#N/A) -> 
B36: отклики | C36: =IF(C$26=$A$1,C23,#N/A) ->  | D36: =IF(D$26=$A$1,D23,#N/A) -> 
B37: продажи | C37: =IF(C$26=$A$1,C24,#N/A) ->  | D37: =IF(D$26=$A$1,D24,#N/A) -> 
R38: =IF($A$15=FALSE,"-",IFERROR(C15,"-")) ->  | S38: =IF($A$15=FALSE,"-",IFERROR(D15,"-")) ->  | AE38: =IFERROR(C21,"-") ->  | AF38: =IFERROR(D21,"-") ->  | AR38: =IFERROR(C24,"-") ->  | AS38: =IFERROR(D24,"-") -> 
P39: k прироста | S39: =IFERROR(S38/R38-1,"") ->  | T39: =IFERROR(T38/S38-1,"") ->  | U39: =IFERROR(U38/T38-1,"") ->  | V39: =IFERROR(V38/U38-1,"") ->  | W39: =IFERROR(W38/V38-1,"") ->  | X39: =IFERROR(X38/W38-1,"") ->  | Y39: =IFERROR(Y38/X38-1,"") ->  | Z39: =IFERROR(Z38/Y38-1,"") ->  | AA39: =IFERROR(AA38/Z38-1,"") ->  | AB39: =IFERROR(AB38/AA38-1,"") ->  | AC39: =IFERROR(AC38/AB38-1,"") ->  | AF39: =IFERROR(AF38-AE38,"") ->  | AG39: =IFERROR(AG38-AF38,"") ->  | AH39: =IFERROR(AH38-AG38,"") ->  | AI39: =IFERROR(AI38-AH38,"") ->  | AJ39: =IFERROR(AJ38-AI38,"") ->  | AK39: =IFERROR(AK38-AJ38,"") ->  | AL39: =IFERROR(AL38-AK38,"") ->  | AM39: =IFERROR(AM38-AL38,"") ->  | AN39: =IFERROR(AN38-AM38,"") ->  | AO39: =IFERROR(AO38-AN38,"") ->  | AP39: =IFERROR(AP38-AO38,"") ->  | AS39: =IFERROR(AS38/AR38-1,"") ->  | AT39: =IFERROR(AT38/AS38-1,"") ->  | AU39: =IFERROR(AU38/AT38-1,"") ->  | AV39: =IFERROR(AV38/AU38-1,"") ->  | AW39: =IFERROR(AW38/AV38-1,"") ->  | AX39: =IFERROR(AX38/AW38-1,"") ->  | AY39: =IFERROR(AY38/AX38-1,"") ->  | AZ39: =IFERROR(AZ38/AY38-1,"") ->  | BA39: =IFERROR(BA38/AZ38-1,"") ->  | BB39: =IFERROR(BB38/BA38-1,"") ->  | BC39: =IFERROR(BC38/BB38-1,"") -> 
R40: =IF($A$16=FALSE,"-",IFERROR(C16,"-")) -> 0 | S40: =IF($A$16=FALSE,"-",IFERROR(D16,"-")) -> 0 | T40: 0 | U40: 0 | V40: 0 | W40: 0 | X40: 0 | Y40: 0 | Z40: 0 | AA40: 0 | AB40: 0 | AC40: 0
P41: k прироста | S41: =IFERROR(S40/R40-1,"") ->  | T41: =IFERROR(T40/S40-1,"") ->  | U41: =IFERROR(U40/T40-1,"") ->  | V41: =IFERROR(V40/U40-1,"") ->  | W41: =IFERROR(W40/V40-1,"") ->  | X41: =IFERROR(X40/W40-1,"") ->  | Y41: =IFERROR(Y40/X40-1,"") ->  | Z41: =IFERROR(Z40/Y40-1,"") ->  | AA41: =IFERROR(AA40/Z40-1,"") ->  | AB41: =IFERROR(AB40/AA40-1,"") ->  | AC41: =IFERROR(AC40/AB40-1,"") ->  | AS41: =IFERROR(AS40/AR40-1,"") ->  | AT41: =IFERROR(AT40/AS40-1,"") ->  | AU41: =IFERROR(AU40/AT40-1,"") ->  | AV41: =IFERROR(AV40/AU40-1,"") ->  | AW41: =IFERROR(AW40/AV40-1,"") ->  | AX41: =IFERROR(AX40/AW40-1,"") ->  | AY41: =IFERROR(AY40/AX40-1,"") ->  | AZ41: =IFERROR(AZ40/AY40-1,"") ->  | BA41: =IFERROR(BA40/AZ40-1,"") ->  | BB41: =IFERROR(BB40/BA40-1,"") ->  | BC41: =IFERROR(BC40/BB40-1,"") -> 

Sheet МОДЕЛИРОВАНИЕ
A1: =ДИНАМИКА!A1 -> 1 | C1: МОДЕЛИРОВАНИЕ: | D1: =IF(OFFSET(ВОРОНКА!Q26,($A$1-1)*87,0,1,1)="",0,OFFSET(ВОРОНКА!D24,($A$1-1)*87,0,1,1)) -> 0 | E1: =IF(OFFSET(ВОРОНКА!Q43,($A$1-1)*87,0,1,1)="",0,OFFSET(ВОРОНКА!D41,($A$1-1)*87,0,1,1)) -> 0 | F1: =IF(OFFSET(ВОРОНКА!Q60,($A$1-1)*87,0,1,1)="",0,OFFSET(ВОРОНКА!D58,($A$1-1)*87,0,1,1)) -> 0 | G1: =IF(OFFSET(ВОРОНКА!Q77,($A$1-1)*87,0,1,1)="",0,OFFSET(ВОРОНКА!D75,($A$1-1)*87,0,1,1)) -> 0 | H1: =COUNTIF(D1:G1,">0") -> 0 | W1: Метод: | AC1: 2 | AD1: =IF($A$2=1,SUM($D$1:$G$1),VLOOKUP($A$1,СПРАВОЧНИК!$A:$N,14,0)) -> 0
A2: 1 | C2: =IFERROR(IF(OFFSET(ВОРОНКА!Q26,($A$1-2)*87,0,1,1)="",0,OFFSET(ВОРОНКА!D24,($A$1-2)*87,0,1,1)),0) -> 0 | D2: =OFFSET(ВОРОНКА!D24,($A$1-1)*87,0,1,1) -> 12 | E2: =OFFSET(ВОРОНКА!D41,($A$1-1)*87,0,1,1) -> 7 | F2: =OFFSET(ВОРОНКА!D58,($A$1-1)*87,0,1,1) -> 7 | G2: =OFFSET(ВОРОНКА!D75,($A$1-1)*87,0,1,1) -> 5 | X2: Период: | AC2: FALSE
C3: Фактические данные месяца: | M3: Анализ "Что будет если" | V3: Декомпозиция чистой прибыли | AC3: =IF(AC2=TRUE,1,0) -> 0 | AF3: прогноз по минимумам | AL3: прогноз по максимумам
C4: Фактор | D4: нед.1 | E4: нед.2 | G4: нед.3 | I4: нед.4 | K4: Показатель | M4: Фактор | O4: ∆ | Q4: Как изменится прибыль | V4: Фактор | X4: ∆ | Y4: Значение фактора | AD4: сумма за период | AE4: прогноз по средним | AF4: 4 нед. | AG4: 1 нед. | AH4: 2 нед. | AI4: 3 нед. | AJ4: 4 нед. | AK4: Итого | AL4: 4 нед. | AM4: 1 нед. | AN4: 2 нед. | AO4: 3 нед. | AP4: 4 нед. | AQ4: Итого
A5: 300 | C5: Заходов | D5: =OFFSET(ВОРОНКА!$Q26,($A$1-1)*87,0,1,1) ->  | E5: =OFFSET(ВОРОНКА!$Q43,($A$1-1)*87,0,1,1) ->  | G5: =OFFSET(ВОРОНКА!$Q60,($A$1-1)*87,0,1,1) ->  | I5: =OFFSET(ВОРОНКА!$Q77,($A$1-1)*87,0,1,1) ->  | K5: =IFERROR(IF($A$2=1,AD5,IF($A$2=2,AE5,IF($A$2=3,AK5,AQ5)))/IF($AC$3=1,$AD$1,1),0) -> 0 | M5: Заходов | O5: =(A5-300)/100 -> 0 | T5: =K5*(1+O5) -> 0 | V5: Заходов | X5: =IFERROR(IF(Y5/K5>9999%,">9999%",Y5/K5-1),"") ->  | Y5: =IF($AC$1=1,IF(Y14="","",K5*(Y9/K9)),((Y14/(K14/K5)*(K5/K9)+Y14)/(K14/K5))/IF($AC$3=1,$AD$1,1)) ->  | AD5: =OFFSET(ВОРОНКА!$Q9,($A$1-1)*87,0,1,1) ->  | AE5: =IFERROR(AD5/SUM($D$1:$G$1)*VLOOKUP($A$1,СПРАВОЧНИК!$A:$V,22,0),"") ->  | AF5: =IFERROR(OFFSET(ВОРОНКА!$Q26,($A$1-2)*87,0,1,1),"no value") -> no value | AG5: =D5 ->  | AH5: =AG5*AH6/AG6 ->  | AI5: =AH5*AI6/AH6 ->  | AJ5: =AI5*AJ6/AI6 ->  | AK5: =SUM(AG5:AJ5) ->  | AL5: =AF5 -> no value | AM5: =D5 ->  | AN5: =AM5*AN6/AM6 ->  | AO5: =AN5*AO6/AN6 ->  | AP5: =AO5*AP6/AO6 ->  | AQ5: =SUM(AM5:AP5) -> 
C6: Откликов | D6: =OFFSET(ВОРОНКА!$Q27,($A$1-1)*87,0,1,1) ->  | E6: =OFFSET(ВОРОНКА!$Q44,($A$1-1)*87,0,1,1) ->  | G6: =OFFSET(ВОРОНКА!$Q61,($A$1-1)*87,0,1,1) ->  | I6: =OFFSET(ВОРОНКА!$Q78,($A$1-1)*87,0,1,1) ->  | K6: 0 | M6: Откликов | O6: =IFERROR((T6/K6)-1,0) -> 0 | T6: =IF(K5=0,0,T5*(K6/K5)) -> 0 | V6: Откликов | X6: =IFERROR(IF(Y6/K6>9999%,">9999%",Y6/K6-1),"") ->  | Y6: =IF($AC$1=1,IF(Y14="","",K6*(Y9/K9)),Y5*(K6/K5)) ->  | AD6: =OFFSET(ВОРОНКА!$Q10,($A$1-1)*87,0,1,1) ->  | AE6: =IFERROR(AD6/SUM($D$1:$G$1)*VLOOKUP($A$1,СПРАВОЧНИК!$A:$V,22,0),"") ->  | AF6: =IFERROR(OFFSET(ВОРОНКА!$Q27,($A$1-2)*87,0,1,1),"no value") -> no value | AG6: =D6 ->  | AH6: =AG6*AH9/AG9 ->  | AI6: =AH6*AI9/AH9 ->  | AJ6: =AI6*AJ9/AI9 ->  | AK6: =SUM(AG6:AJ6) ->  | AL6: =AF6 -> no value | AM6: =D6 ->  | AN6: =AM6*AN9/AM9 ->  | AO6: =AN6*AO9/AN9 ->  | AP6: =AO6*AP9/AO9 ->  | AQ6: =SUM(AM6:AP6) -> 
C7: Продажи | D7: =OFFSET(ВОРОНКА!$Q28,($A$1-1)*87,0,1,1) ->  | E7: =OFFSET(ВОРОНКА!$Q45,($A$1-1)*87,0,1,1) ->  | G7: =OFFSET(ВОРОНКА!$Q62,($A$1-1)*87,0,1,1) ->  | I7: =OFFSET(ВОРОНКА!$Q79,($A$1-1)*87,0,1,1) ->  | K7: 0 | M7: Продажи | O7: =IFERROR((T7/K7)-1,0) -> 0 | T7: =IF(K6=0,0,T6*(K7/K6)) -> 0 | V7: Продажи | Y7: =IF($AC$1=1,IF(Y14="","",K7*(Y9/K9)),Y6*(K7/K6)) ->  | AD7: =OFFSET(ВОРОНКА!$Q11,($A$1-1)*87,0,1,1) ->  | AE7: =IFERROR(AD7/SUM($D$1:$G$1)*VLOOKUP($A$1,СПРАВОЧНИК!$A:$V,22,0),"") ->  | AF7: =IFERROR(OFFSET(ВОРОНКА!$Q28,($A$1-2)*87,0,1,1),"no value") -> no value | AH7: =IF($H$1>=2,E7,MIN(AF7/C2,AG7/D2)*E2) ->  | AI7: =IF($H$1>=3,G7,MIN(AG7/D2,AH7/E2)*F2) ->  | AJ7: =IF($H$1>=4,I7,MIN(AH7/E2,AI7/F2)*G2) ->  | AK7: =SUM(AG7:AJ7) ->  | AL7: no value | AN7: =IF($H$1>=2,E7,MAX(AL7/C2,AM7/D2)*E2) ->  | AO7: =IF($H$1>=3,G7,MAX(AM7/D2,AN7/E2)*F2) ->  | AP7: =IF($H$1>=4,I7,MAX(AN7/E2,AO7/F2)*G2) ->  | AQ7: =SUM(AM7:AP7) -> 
C8: Прибыль, руб. | D8: =OFFSET(ВОРОНКА!$Q29,($A$1-1)*87,0,1,1) ->  | E8: =OFFSET(ВОРОНКА!$Q46,($A$1-1)*87,0,1,1) ->  | G8: =OFFSET(ВОРОНКА!$Q63,($A$1-1)*87,0,1,1) ->  | I8: =OFFSET(ВОРОНКА!$Q80,($A$1-1)*87,0,1,1) ->  | K8: 0 | M8: Прибыль, руб. | O8: =IFERROR(T8/K8-1,0) -> 0 | T8: =IFERROR(T7*T12,0) -> 0 | V8: Прибыль, руб. | Y8: =IF($AC$1=1,IFERROR(Y7*Y12,""),(Y14+K9+K10)/IF($AC$3=1,$AD$1,1)) -> 0 | AD8: =OFFSET(ВОРОНКА!$Q12,($A$1-1)*87,0,1,1) ->  | AE8: =IFERROR(AD8/SUM($D$1:$G$1)*VLOOKUP($A$1,СПРАВОЧНИК!$A:$V,22,0),"") ->  | AF8: =IFERROR(OFFSET(ВОРОНКА!$Q29,($A$1-2)*87,0,1,1),"no value") -> no value | AG8: =AG7*AG12 ->  | AH8: =AH7*AH12 ->  | AI8: =AI7*AI12 ->  | AJ8: =AJ7*AJ12 ->  | AK8: =SUM(AG8:AJ8) ->  | AL8: no value | AM8: =AM7*AM12 ->  | AN8: =AN7*AN12 ->  | AO8: =AO7*AO12 ->  | AP8: =AP7*AP12 -> 
C9: Затраты (реклама), руб. | D9: =OFFSET(ВОРОНКА!$Q30,($A$1-1)*87,0,1,1) ->  | E9: =OFFSET(ВОРОНКА!$Q47,($A$1-1)*87,0,1,1) ->  | G9: =OFFSET(ВОРОНКА!$Q64,($A$1-1)*87,0,1,1) ->  | I9: =OFFSET(ВОРОНКА!$Q81,($A$1-1)*87,0,1,1) ->  | K9: 0 | M9: Реклама, руб. | O9: =IFERROR(T9/K9-1,0) -> 0 | T9: =IF(K5=0,0,K9*T5/K5) -> 0 | V9: Реклама, руб. | Y9: =IFERROR(IF($AC$1=1,IF(Y14="","",(Y14-K14)/(K12-K9/K7)*(K9/K7)+K9),IF(Y14="","",(Y14-K14)/(K12-K9/K7)*(K9/K7)+K9))/IF($AC$3=1,$AD$1,1),"") ->  | AD9: =OFFSET(ВОРОНКА!$Q13,($A$1-1)*87,0,1,1) ->  | AE9: =IFERROR(AD9/SUM($D$1:$G$1)*VLOOKUP($A$1,СПРАВОЧНИК!$A:$V,22,0),"") ->  | AF9: =IFERROR(OFFSET(ВОРОНКА!$Q30,($A$1-2)*87,0,1,1),"no value") -> no value | AH9: =AG9*AH8/AG8 ->  | AI9: =AH9*AI8/AH8 ->  | AJ9: =AI9*AJ8/AI8 ->  | AK9: =SUM(AG9:AJ9) ->  | AL9: no value | AM9: =D9 ->  | AN9: =AM9*AN8/AM8 ->  | AO9: =AN9*AO8/AN8 ->  | AP9: =AO9*AP8/AO8 ->  | AQ9: =SUM(AM9:AP9) -> 
A10: 300 | C10: Доп затраты | D10: =IF(D$1=0,"",OFFSET(ВОРОНКА!$T40,($A$1-1)*87,0,1,1)) ->  | E10: =IF(E$1=0,"",OFFSET(ВОРОНКА!$T57,($A$1-1)*87,0,1,1)) ->  | G10: =IF(F$1=0,"",OFFSET(ВОРОНКА!$T74,($A$1-1)*87,0,1,1)) ->  | I10: =IF(G$1=0,"",OFFSET(ВОРОНКА!$T91,($A$1-1)*87,0,1,1)) ->  | K10: 0 | M10: Доп затраты | O10: =(A10-300)/100 -> 0 | T10: =IFERROR(K10*(1+O10),"")/IF($AC$3=1,$AD$1,1) -> 0 | V10: Доп затраты | Y10: =IFERROR(IF($AC$1=1,IF(Y14="","",K10),IF(K7*K12-K9-Y14<0,"",K7*K12-K9-Y14))/IF($AC$3=1,$AD$1,1),"") ->  | AD10: =IF(H$1=0,"",OFFSET(ВОРОНКА!$T23,($A$1-1)*87,0,1,1)) ->  | AE10: =AD10 ->  | AK10: =AD10 ->  | AQ10: =AD10 -> 
AG11: 0 | AM11: =J11 -> 0
A12: 300 | C12: Средний чек, руб. | D12: =OFFSET(ВОРОНКА!$Q33,($A$1-1)*87,0,1,1) ->  | E12: =OFFSET(ВОРОНКА!$Q50,($A$1-1)*87,0,1,1) ->  | G12: =OFFSET(ВОРОНКА!$Q67,($A$1-1)*87,0,1,1) ->  | I12: =OFFSET(ВОРОНКА!$Q84,($A$1-1)*87,0,1,1) ->  | K12: =IF($A$2=1,AD12,IF($A$2=2,AE12,IF($A$2=3,AK12,AQ12))) ->  | M12: Средний чек, руб | O12: =(A12-300)/100 -> 0 | T12: =IFERROR(K12*(1+O12),"") ->  | V12: Средний чек, руб | X12: =IFERROR(IF(Y12/K12>9999%,">9999%",Y12/K12-1),"") ->  | Y12: =IF($AC$1=1,IF(Y14="","",K12),(Y14+K9+K10)/K7) ->  | AD12: =OFFSET(ВОРОНКА!$Q16,($A$1-1)*87,0,1,1) ->  | AE12: =AD12 ->  | AF12: =IFERROR(OFFSET(ВОРОНКА!$Q33,($A$1-2)*87,0,1,1),"no value") -> no value | AH12: =IF($H$1>=2,E12,MIN(AF12,AG12)) -> 0 | AI12: =IF($H$1>=3,G12,MIN(AG12,AH12)) -> 0 | AJ12: =IF($H$1>=4,I12,MIN(AH12,AI12)) -> 0 | AK12: =IFERROR(AK8/AK7,"") ->  | AL12: =AF12 -> no value | AM12: =D12 ->  | AN12: =IF($H$1>=2,E12,MAX(AL12,AM12)) -> 0 | AO12: =IF($H$1>=3,G12,MAX(AM12,AN12)) -> 0 | AP12: =IF($H$1>=4,I12,MAX(AN12,AO12)) -> 0 | AQ12: =IFERROR(AQ8/AQ7,"") -> 
X13: =IFERROR(Y13/K13-1,"") -> 
C14: Чистая прибыль | D14: =IF(D$1=0,"",OFFSET(ВОРОНКА!$Q40,($A$1-1)*87,0,1,1)) ->  | E14: =IF(E$1=0,"",OFFSET(ВОРОНКА!$Q57,($A$1-1)*87,0,1,1)) ->  | G14: =IF(F$1=0,"",OFFSET(ВОРОНКА!$Q74,($A$1-1)*87,0,1,1)) ->  | I14: =IF(G$1=0,"",OFFSET(ВОРОНКА!$Q91,($A$1-1)*87,0,1,1)) ->  | K14: =IFERROR(IF($A$2=1,AD14,IF($A$2=2,AE14,IF($A$2=3,AK14,AQ14)))/IF($AC$3=1,$AD$1,1),0) -> 0 | M14: Чистая прибыль | O14: =IFERROR((T14/K14)-1,"") ->  | Q14: =IFERROR(IF(T14-K14=0,"",T14-K14),"") ->  | T14: =IFERROR(T8-T9-T10,"") -> 0 | V14: Чистая прибыль | X14: =IF(Y14="","",IF(Y14/K14>9999%,">9999%",Y14/K14-1)) ->  | AD14: =IFERROR(AD8-AD9-AD10,"") ->  | AE14: =IFERROR(AE8-AE9-AE10,"") ->  | AK14: =IFERROR(AK8-AK9-AK10,"") ->  | AQ14: =IFERROR(AQ8-AQ9-AQ10,"") -> 
C15: Описание блока "Фактические данные месяца" | M15: Описание блока "Анализ что будет если" | V15: Описание блока "Декомпозиция чистой прибыли" | AD15: =AD7*AD12-AD9 ->  | AE15: =AE7*AE12-AE9 -> 
AD16: =AD8-AD9 ->  | AE16: =AE8-AE9 -> 
C19: КАЛЬКУЛЯТОР СВОБОДНЫХ ДАННЫХ:
C20: Описание | S20: Фактические данные за 2 периода времени:
S21: примечание | U21: Кликов | W21: Стоимость рекламы
S22: Период 1 | U22: 500 | W22: 600
S23: Период 2 | U23: 1000 | W23: 800
S25: Новая цена клика для модели 2 | X25: 12
C26: Ниша | D26: ваша ниша | S26: В таблице введите фактические даные за два периода и новую цену клика для второй модели. Это позволит сравнить и выбрать наиболее эффективную модель
A28: 500000 | C28: Подберите цель, руб. | D28: =VALUE(A28) -> 500000 | I28: ="Показы"&CHAR(10)&"CTR рекламы "&D34*100&"%" -> Показы CTR рекламы 7% | M28: =IF(D34=0,"нет",M29/D34) -> 240500.2405 | R28: =IFERROR(X28/M28-1,"") -> 0.6 | T28: ="Показы"&CHAR(10)&"CTR рекламы "&D34*100&"%" -> Показы CTR рекламы 7% | X28: =IF(X25="","",X29/D34) -> 384800.3848
A29: 5000 | C29: Введите среднюю выручку с 1 продажи, руб. | D29: =VALUE(A29) -> 5000 | J29: ="Клики "&CHAR(10)&"конверсия сайта "&D31*100&"%" -> Клики конверсия сайта 3% | M29: =IF(D31=0,"нет",M30/D31) -> 16835.01684 | R29: =IFERROR(X29/M29-1,"") -> 0.6 | U29: ="Клики "&CHAR(10)&"конверсия сайта "&D31*100&"%" -> Клики конверсия сайта 3% | X29: =IF(X25="","",IFERROR(((X25/D36-1)*(U23/U22-1)/(W23/W22-1)+1)*M29,X25/D36*M29)) -> 26936.02694
A30: 2000 | C30: Введите сколько чистыми с 1 продажи, руб. | D30: =VALUE(A30) -> 2000 | K30: ="Звонки "&CHAR(10)&"отклик-догов. "&D32*100&"%" -> Звонки отклик-догов. 55% | M30: =IF(D32=0,"нет",M31/D32) -> 505.0505051 | R30: 0.6 | V30: ="Звонки "&CHAR(10)&"отклик-догов. "&D32*100&"%" -> Звонки отклик-догов. 55% | X30: =IF(X25="","",X29*D31) -> 808.0808081
A31: 3 | C31: Введите конверсию сайта в звонок/заявку % | D31: =VALUE(A31)/100 -> 0.03 | K31: ="Договоры "&CHAR(10)&"догов.-прод. "&D33*100&"%" -> Договоры догов.-прод. 90% | M31: =IF(D33=0,"нет",M32/D33) -> 277.7777778 | R31: 0.6 | V31: ="Договоры "&CHAR(10)&"догов.-прод. "&D33*100&"%" -> Договоры догов.-прод. 90% | X31: =IF(X25="","",X30*D32) -> 444.4444444
A32: 55 | C32: Введите конверсию заявка-договор % | D32: =VALUE(A32)/100 -> 0.55 | L32: Продажи | M32: =IF(M33=0,"нет",M34/M33) -> 250 | R32: 0.6 | W32: Продажи | X32: =IF(X25="","",X31*D33) -> 400
A33: 90 | C33: Введите конверсию договор-продажа % | D33: =VALUE(A33)/100 -> 0.9 | L33: Ср. прибыль с 1 продажи | M33: =D30 -> 2000 | R33: =IFERROR(X33/M33-1,"") -> 0 | W33: Ср. прибыль с 1 продажи | X33: =IF(X25="","",M33) -> 2000
A34: 7 | C34: Введите CTR вашей рекламы % | D34: =VALUE(A34)/100 -> 0.07 | L34: Денег до вычета | M34: =D28 -> 500000 | R34: 0.6 | W34: Денег до вычета | X34: =IF(X25="","",X32*X33) -> 800000
A36: 10 | C36: Введите цену клика, руб. | D36: =VALUE(A36) -> 10 | L36: Затраты на рекламу | M36: =IF(D36=0,"0",M29*D36*D37) -> 146464.6465 | R36: =IFERROR(X36/M36-1,"") -> 1.027586207 | W36: Затраты на рекламу | X36: =IF(X25="","",(M29*D37+X29-M29)*X25) -> 296969.697
A37: 87 | C37: % платного трафика | D37: =VALUE(A37/100) -> 0.87 | L37: Останется чистыми | M37: =IF(M34=0,"0",M34-M36) -> 353535.3535 | R37: =IFERROR(X37/M37-1,"") -> 0.4228571429 | W37: Останется чистыми | X37: =IF(X25="","",IF(X34=0,"0",X34-X36)) -> 503030.303
C38: Комментарий | L38: МОДЕЛЬ 1 | W38: МОДЕЛЬ 2
H39: Воронка для моделирования первоначальной ситуации под заданную цель | S39: Воронка для сравнения первоначальной ситуации с моделью с измененными параметрами

Sheet БАЗА КЛИЕНТОВ
A1: Номер заказа | B1: Месяц | C1: Код услуги | D1: Теплота клиента | E1: Первый контакт | F1: ФИО клиента | G1: Канал лидгена | H1: Телефон клиента | I1: E-mail клиента | J1: Адрес клиента | K1: Менеджер № | L1: Последний контакт | M1: Следующий шаг | N1: X | O1: Результат | P1: Комментарии
A2: 1 | B2: 1 | C2: 3 | D2: 10 | E2: 2013-05-01 | F2: Правильный Петр Михайлович | G2: директ | H2: 7923151515 | I2: ohlop@mail.ru | K2: Менеджер 1 | L2: 2013-10-07 | M2: 2014-01-06 | N2: X | O2: Оплатили
A3: 2 | B3: 3 | C3: 3 | D3: 10 | E3: 2013-05-06 | F3: Пупкин Иван Степанович | G3: adwords | K3: Менеджер 2 | L3: 2013-05-26 | M3: 2014-01-31 | N3: X | O3: Оплатили
A4: 3 | B4: 4 | C4: 2 | D4: 5 | E4: 2013-06-10 | F4: Иванов Иван Иванович | K4: Менеджер 2 | L4: 2013-06-27 | M4: 2014-01-13 | N4: X | O4: Подумаю (коммент.) | P4: Нет доставки
A5: 4 | B5: 5 | C5: 2 | D5: 2 | E5: 2013-06-10 | F5: Петров Петр Петрович | K5: Менеджер 3 | L5: 2013-06-28 | M5: 2014-01-14 | N5: X | O5: Не дозвон. | P5: нет денег
A6: 5 | B6: 5 | C6: 1 | D6: 8 | E6: 2013-06-10 | F6: Сидорв Николай Семенович | K6: Менеджер 3 | L6: 2013-06-29 | M6: 2014-01-10 | N6: X | O6: Хотят, но (коммент.) | P6: Нет времени оплатить
A7: 6 | B7: 4 | C7: 2 | D7: 7 | E7: 2013-06-10 | F7: Потапов Сергей Юрьевич | K7: Менеджер 1 | L7: 2013-06-30 | M7: 2014-01-11 | N7: X | O7: Не дозвон.
A8: 7 | B8: 5 | C8: 3 | D8: 0 | E8: 2013-06-10 | F8: Барыкин Алектей Алексеевич | K8: Менеджер 2 | L8: 2013-07-01 | M8: 2014-01-12 | O8: Отказ
A9: 8 | B9: 6 | C9: 3 | D9: 6 | E9: 2013-06-10 | F9: Мельников Дмитрий Петрович | K9: Менеджер 1 | L9: 2013-07-02 | M9: 2014-01-13 | O9: Подумаю (коммент.)
A10: 9 | B10: 7 | C10: 1 | D10: 7 | E10: 2013-06-10 | F10: Стариков Нестер Нестерович | K10: Менеджер 1 | L10: 2013-07-03 | M10: 2014-01-23 | O10: Подумаю (коммент.)
A11: 10 | B11: 8 | C11: 3 | D11: 10 | E11: 2013-06-10 | F11: Царицын Олег Павлович | K11: Менеджер 1 | L11: 2013-07-04 | O11: Оплатили

Sheet СТАТИСТИКА БАЗЫ
B2: СТАТИСТИКА ПО МЕНЕДЖЕРАМ:
C3: =IF(DAY(C4)<10,"0"&DAY(C4),DAY(C4))&"."&IF(MONTH(C4)<10,"0"&MONTH(C4),MONTH(C4))&"."&YEAR(C4)&"-"&IF(DAY(C5)<10,"0"&DAY(C5),DAY(C5))&"."&IF(MONTH(C5)<10,"0"&MONTH(C5),MONTH(C5))&"."&YEAR(C5)&" "&C6 -> 01.01.2013-01.05.2014 Менеджер 2
B4: Введите дата начала периода: | C4: 2013-01-01
B5: Введите дату завершения периода: | C5: 2014-05-01
B6: ФИО сотрудника (выбрать из списка): | C6: Менеджер 2
A7: =IF(C7=0,#N/A,C7) -> 3 | B7: Количество контактов за период | C7: =IFERROR(SUMPRODUCT((list_managers=C$6)*(list_dates>=C$4)*(list_dates<=C$5)*(list_counts=list_counts)),"") -> 3
A8: 1 | B8: Отказ | C8: =IFERROR(SUMPRODUCT((list_managers=C$6)*(list_dates>=C$4)*(list_dates<=C$5)*(list_results=B8)*(list_counts=list_counts)),"") -> 1
B9: Не дозвон. | C9: =IFERROR(SUMPRODUCT((list_managers=C$6)*(list_dates>=C$4)*(list_dates<=C$5)*(list_results=B9)*(list_counts=list_counts)),"") -> 0
A10: 1 | B10: Подумаю (коммент.) | C10: =IFERROR(SUMPRODUCT((list_managers=C$6)*(list_dates>=C$4)*(list_dates<=C$5)*(list_results=B10)*(list_counts=list_counts)),"") -> 1
B11: Хотят, но (коммент.) | C11: =IFERROR(SUMPRODUCT((list_managers=C$6)*(list_dates>=C$4)*(list_dates<=C$5)*(list_results=B11)*(list_counts=list_counts)),"") -> 0
A12: 1 | B12: Оплатили | C12: =IFERROR(SUMPRODUCT((list_managers=C$6)*(list_dates>=C$4)*(list_dates<=C$5)*(list_results=B12)*(list_counts=list_counts)),"") -> 1
B13: Введите дату начала периода и дату завершения периода, а также выберите менеджера, по которому необходимо построить статистику за выбранный период. Статистика строится на базе листа "База клиентов" и отображает эффективность работы менеджера за выбранный период.
B18: СТАТИСТИКА ПО ПРОДУКТАМ:
B40: Категория услуги | C40: Наименование | D40: Код | E40: январь | F40: февраль | G40: март | H40: апрель | I40: май | J40: июнь | K40: июль | L40: август | M40: сентябрь | N40: октябрь | O40: ноябрь | P40: декабрь | R40: Всего
B41: Клининг | C41: Уборка коттеджей | D41: =IF(C41<>"",1,"") -> 1 | E41: =IF(D41="","",COUNTIFS('БАЗА КЛИЕНТОВ'!$B:$B,VLOOKUP(E$40,СПРАВОЧНИК!$L:$M,2,0),'БАЗА КЛИЕНТОВ'!$C:$C,$D41)) -> 0 | F41: =IF(E41="","",COUNTIFS('БАЗА КЛИЕНТОВ'!$B:$B,VLOOKUP(F$40,СПРАВОЧНИК!$L:$M,2,0),'БАЗА КЛИЕНТОВ'!$C:$C,$D41)) -> 0 | G41: =IF(F41="","",COUNTIFS('БАЗА КЛИЕНТОВ'!$B:$B,VLOOKUP(G$40,СПРАВОЧНИК!$L:$M,2,0),'БАЗА КЛИЕНТОВ'!$C:$C,$D41)) -> 0 | H41: =IF(G41="","",COUNTIFS('БАЗА КЛИЕНТОВ'!$B:$B,VLOOKUP(H$40,СПРАВОЧНИК!$L:$M,2,0),'БАЗА КЛИЕНТОВ'!$C:$C,$D41)) -> 0 | I41: =IF(H41="","",COUNTIFS('БАЗА КЛИЕНТОВ'!$B:$B,VLOOKUP(I$40,СПРАВОЧНИК!$L:$M,2,0),'БАЗА КЛИЕНТОВ'!$C:$C,$D41)) -> 1 | J41: =IF(I41="","",COUNTIFS('БАЗА КЛИЕНТОВ'!$B:$B,VLOOKUP(J$40,СПРАВОЧНИК!$L:$M,2,0),'БАЗА КЛИЕНТОВ'!$C:$C,$D41)) -> 0 | K41: =IF(J41="","",COUNTIFS('БАЗА КЛИЕНТОВ'!$B:$B,VLOOKUP(K$40,СПРАВОЧНИК!$L:$M,2,0),'БАЗА КЛИЕНТОВ'!$C:$C,$D41)) -> 1 | L41: =IF(K41="","",COUNTIFS('БАЗА КЛИЕНТОВ'!$B:$B,VLOOKUP(L$40,СПРАВОЧНИК!$L:$M,2,0),'БАЗА КЛИЕНТОВ'!$C:$C,$D41)) -> 0 | M41: =IF(L41="","",COUNTIFS('БАЗА КЛИЕНТОВ'!$B:$B,VLOOKUP(M$40,СПРАВОЧНИК!$L:$M,2,0),'БАЗА КЛИЕНТОВ'!$C:$C,$D41)) -> 0 | N41: =IF(M41="","",COUNTIFS('БАЗА КЛИЕНТОВ'!$B:$B,VLOOKUP(N$40,СПРАВОЧНИК!$L:$M,2,0),'БАЗА КЛИЕНТОВ'!$C:$C,$D41)) -> 0 | O41: =IF(N41="","",COUNTIFS('БАЗА КЛИЕНТОВ'!$B:$B,VLOOKUP(O$40,СПРАВОЧНИК!$L:$M,2,0),'БАЗА КЛИЕНТОВ'!$C:$C,$D41)) -> 0 | P41: =IF(O41="","",COUNTIFS('БАЗА КЛИЕНТОВ'!$B:$B,VLOOKUP(P$40,СПРАВОЧНИК!$L:$M,2,0),'БАЗА КЛИЕНТОВ'!$C:$C,$D41)) -> 0 | R41: =IF(D41="","",SUM(E41:P41)) -> 2
C42: Уборка газонов | D42: =IF(C42="","",IF(C42<>"",D41+1)) -> 2 | E42: =IF(D42="","",COUNTIFS('БАЗА КЛИЕНТОВ'!$B:$B,VLOOKUP(E$40,СПРАВОЧНИК!$L:$M,2,0),'БАЗА КЛИЕНТОВ'!$C:$C,$D42)) -> 0 | F42: =IF(E42="","",COUNTIFS('БАЗА КЛИЕНТОВ'!$B:$B,VLOOKUP(F$40,СПРАВОЧНИК!$L:$M,2,0),'БАЗА КЛИЕНТОВ'!$C:$C,$D42)) -> 0 | G42: =IF(F42="","",COUNTIFS('БАЗА КЛИЕНТОВ'!$B:$B,VLOOKUP(G$40,СПРАВОЧНИК!$L:$M,2,0),'БАЗА КЛИЕНТОВ'!$C:$C,$D42)) -> 0 | H42: =IF(G42="","",COUNTIFS('БАЗА КЛИЕНТОВ'!$B:$B,VLOOKUP(H$40,СПРАВОЧНИК!$L:$M,2,0),'БАЗА КЛИЕНТОВ'!$C:$C,$D42)) -> 2 | I42: =IF(H42="","",COUNTIFS('БАЗА КЛИЕНТОВ'!$B:$B,VLOOKUP(I$40,СПРАВОЧНИК!$L:$M,2,0),'БАЗА КЛИЕНТОВ'!$C:$C,$D42)) -> 1 | J42: =IF(I42="","",COUNTIFS('БАЗА КЛИЕНТОВ'!$B:$B,VLOOKUP(J$40,СПРАВОЧНИК!$L:$M,2,0),'БАЗА КЛИЕНТОВ'!$C:$C,$D42)) -> 0 | K42: =IF(J42="","",COUNTIFS('БАЗА КЛИЕНТОВ'!$B:$B,VLOOKUP(K$40,СПРАВОЧНИК!$L:$M,2,0),'БАЗА КЛИЕНТОВ'!$C:$C,$D42)) -> 0 | L42: =IF(K42="","",COUNTIFS('БАЗА КЛИЕНТОВ'!$B:$B,VLOOKUP(L$40,СПРАВОЧНИК!$L:$M,2,0),'БАЗА КЛИЕНТОВ'!$C:$C,$D42)) -> 0 | M42: =IF(L42="","",COUNTIFS('БАЗА КЛИЕНТОВ'!$B:$B,VLOOKUP(M$40,СПРАВОЧНИК!$L:$M,2,0),'БАЗА КЛИЕНТОВ'!$C:$C,$D42)) -> 0 | N42: =IF(M42="","",COUNTIFS('БАЗА КЛИЕНТОВ'!$B:$B,VLOOKUP(N$40,СПРАВОЧНИК!$L:$M,2,0),'БАЗА КЛИЕНТОВ'!$C:$C,$D42)) -> 0 | O42: =IF(N42="","",COUNTIFS('БАЗА КЛИЕНТОВ'!$B:$B,VLOOKUP(O$40,СПРАВОЧНИК!$L:$M,2,0),'БАЗА КЛИЕНТОВ'!$C:$C,$D42)) -> 0 | P42: =IF(O42="","",COUNTIFS('БАЗА КЛИЕНТОВ'!$B:$B,VLOOKUP(P$40,СПРАВОЧНИК!$L:$M,2,0),'БАЗА КЛИЕНТОВ'!$C:$C,$D42)) -> 0 | R42: =IF(D42="","",SUM(E42:P42)) -> 3
C43: Уборка офисов | D43: =IF(C43="","",IF(C43<>"",D42+1)) -> 3 | E43: =IF(D43="","",COUNTIFS('БАЗА КЛИЕНТОВ'!$B:$B,VLOOKUP(E$40,СПРАВОЧНИК!$L:$M,2,0),'БАЗА КЛИЕНТОВ'!$C:$C,$D43)) -> 1 | F43: =IF(E43="","",COUNTIFS('БАЗА КЛИЕНТОВ'!$B:$B,VLOOKUP(F$40,СПРАВОЧНИК!$L:$M,2,0),'БАЗА КЛИЕНТОВ'!$C:$C,$D43)) -> 0 | G43: =IF(F43="","",COUNTIFS('БАЗА КЛИЕНТОВ'!$B:$B,VLOOKUP(G$40,СПРАВОЧНИК!$L:$M,2,0),'БАЗА КЛИЕНТОВ'!$C:$C,$D43)) -> 1 | H43: =IF(G43="","",COUNTIFS('БАЗА КЛИЕНТОВ'!$B:$B,VLOOKUP(H$40,СПРАВОЧНИК!$L:$M,2,0),'БАЗА КЛИЕНТОВ'!$C:$C,$D43)) -> 0 | I43: =IF(H43="","",COUNTIFS('БАЗА КЛИЕНТОВ'!$B:$B,VLOOKUP(I$40,СПРАВОЧНИК!$L:$M,2,0),'БАЗА КЛИЕНТОВ'!$C:$C,$D43)) -> 1 | J43: =IF(I43="","",COUNTIFS('БАЗА КЛИЕНТОВ'!$B:$B,VLOOKUP(J$40,СПРАВОЧНИК!$L:$M,2,0),'БАЗА КЛИЕНТОВ'!$C:$C,$D43)) -> 1 | K43: =IF(J43="","",COUNTIFS('БАЗА КЛИЕНТОВ'!$B:$B,VLOOKUP(K$40,СПРАВОЧНИК!$L:$M,2,0),'БАЗА КЛИЕНТОВ'!$C:$C,$D43)) -> 0 | L43: =IF(K43="","",COUNTIFS('БАЗА КЛИЕНТОВ'!$B:$B,VLOOKUP(L$40,СПРАВОЧНИК!$L:$M,2,0),'БАЗА КЛИЕНТОВ'!$C:$C,$D43)) -> 1 | M43: =IF(L43="","",COUNTIFS('БАЗА КЛИЕНТОВ'!$B:$B,VLOOKUP(M$40,СПРАВОЧНИК!$L:$M,2,0),'БАЗА КЛИЕНТОВ'!$C:$C,$D43)) -> 0 | N43: =IF(M43="","",COUNTIFS('БАЗА КЛИЕНТОВ'!$B:$B,VLOOKUP(N$40,СПРАВОЧНИК!$L:$M,2,0),'БАЗА КЛИЕНТОВ'!$C:$C,$D43)) -> 0 | O43: =IF(N43="","",COUNTIFS('БАЗА КЛИЕНТОВ'!$B:$B,VLOOKUP(O$40,СПРАВОЧНИК!$L:$M,2,0),'БАЗА КЛИЕНТОВ'!$C:$C,$D43)) -> 0 | P43: =IF(O43="","",COUNTIFS('БАЗА КЛИЕНТОВ'!$B:$B,VLOOKUP(P$40,СПРАВОЧНИК!$L:$M,2,0),'БАЗА КЛИЕНТОВ'!$C:$C,$D43)) -> 0 | R43: 5
C44: Новая услуга | D44: 4 | E44: =IF(D44="","",COUNTIFS('БАЗА КЛИЕНТОВ'!$B:$B,VLOOKUP(E$40,СПРАВОЧНИК!$L:$M,2,0),'БАЗА КЛИЕНТОВ'!$C:$C,$D44)) -> 0 | F44: =IF(E44="","",COUNTIFS('БАЗА КЛИЕНТОВ'!$B:$B,VLOOKUP(F$40,СПРАВОЧНИК!$L:$M,2,0),'БАЗА КЛИЕНТОВ'!$C:$C,$D44)) -> 0 | G44: =IF(F44="","",COUNTIFS('БАЗА КЛИЕНТОВ'!$B:$B,VLOOKUP(G$40,СПРАВОЧНИК!$L:$M,2,0),'БАЗА КЛИЕНТОВ'!$C:$C,$D44)) -> 0 | H44: =IF(G44="","",COUNTIFS('БАЗА КЛИЕНТОВ'!$B:$B,VLOOKUP(H$40,СПРАВОЧНИК!$L:$M,2,0),'БАЗА КЛИЕНТОВ'!$C:$C,$D44)) -> 0 | I44: =IF(H44="","",COUNTIFS('БАЗА КЛИЕНТОВ'!$B:$B,VLOOKUP(I$40,СПРАВОЧНИК!$L:$M,2,0),'БАЗА КЛИЕНТОВ'!$C:$C,$D44)) -> 0 | J44: =IF(I44="","",COUNTIFS('БАЗА КЛИЕНТОВ'!$B:$B,VLOOKUP(J$40,СПРАВОЧНИК!$L:$M,2,0),'БАЗА КЛИЕНТОВ'!$C:$C,$D44)) -> 0 | K44: =IF(J44="","",COUNTIFS('БАЗА КЛИЕНТОВ'!$B:$B,VLOOKUP(K$40,СПРАВОЧНИК!$L:$M,2,0),'БАЗА КЛИЕНТОВ'!$C:$C,$D44)) -> 0 | L44: =IF(K44="","",COUNTIFS('БАЗА КЛИЕНТОВ'!$B:$B,VLOOKUP(L$40,СПРАВОЧНИК!$L:$M,2,0),'БАЗА КЛИЕНТОВ'!$C:$C,$D44)) -> 0 | M44: =IF(L44="","",COUNTIFS('БАЗА КЛИЕНТОВ'!$B:$B,VLOOKUP(M$40,СПРАВОЧНИК!$L:$M,2,0),'БАЗА КЛИЕНТОВ'!$C:$C,$D44)) -> 0 | N44: =IF(M44="","",COUNTIFS('БАЗА КЛИЕНТОВ'!$B:$B,VLOOKUP(N$40,СПРАВОЧНИК!$L:$M,2,0),'БАЗА КЛИЕНТОВ'!$C:$C,$D44)) -> 0 | O44: =IF(N44="","",COUNTIFS('БАЗА КЛИЕНТОВ'!$B:$B,VLOOKUP(O$40,СПРАВОЧНИК!$L:$M,2,0),'БАЗА КЛИЕНТОВ'!$C:$C,$D44)) -> 0 | P44: =IF(O44="","",COUNTIFS('БАЗА КЛИЕНТОВ'!$B:$B,VLOOKUP(P$40,СПРАВОЧНИК!$L:$M,2,0),'БАЗА КЛИЕНТОВ'!$C:$C,$D44)) -> 0 | R44: 0
E45: =IF(D45="","",COUNTIFS('БАЗА КЛИЕНТОВ'!$B:$B,VLOOKUP(E$40,СПРАВОЧНИК!$L:$M,2,0),'БАЗА КЛИЕНТОВ'!$C:$C,$D45)) ->  | F45: =IF(E45="","",COUNTIFS('БАЗА КЛИЕНТОВ'!$B:$B,VLOOKUP(F$40,СПРАВОЧНИК!$L:$M,2,0),'БАЗА КЛИЕНТОВ'!$C:$C,$D45)) ->  | G45: =IF(F45="","",COUNTIFS('БАЗА КЛИЕНТОВ'!$B:$B,VLOOKUP(G$40,СПРАВОЧНИК!$L:$M,2,0),'БАЗА КЛИЕНТОВ'!$C:$C,$D45)) ->  | H45: =IF(G45="","",COUNTIFS('БАЗА КЛИЕНТОВ'!$B:$B,VLOOKUP(H$40,СПРАВОЧНИК!$L:$M,2,0),'БАЗА КЛИЕНТОВ'!$C:$C,$D45)) ->  | I45: =IF(H45="","",COUNTIFS('БАЗА КЛИЕНТОВ'!$B:$B,VLOOKUP(I$40,СПРАВОЧНИК!$L:$M,2,0),'БАЗА КЛИЕНТОВ'!$C:$C,$D45)) ->  | J45: =IF(I45="","",COUNTIFS('БАЗА КЛИЕНТОВ'!$B:$B,VLOOKUP(J$40,СПРАВОЧНИК!$L:$M,2,0),'БАЗА КЛИЕНТОВ'!$C:$C,$D45)) ->  | K45: =IF(J45="","",COUNTIFS('БАЗА КЛИЕНТОВ'!$B:$B,VLOOKUP(K$40,СПРАВОЧНИК!$L:$M,2,0),'БАЗА КЛИЕНТОВ'!$C:$C,$D45)) ->  | L45: =IF(K45="","",COUNTIFS('БАЗА КЛИЕНТОВ'!$B:$B,VLOOKUP(L$40,СПРАВОЧНИК!$L:$M,2,0),'БАЗА КЛИЕНТОВ'!$C:$C,$D45)) ->  | M45: =IF(L45="","",COUNTIFS('БАЗА КЛИЕНТОВ'!$B:$B,VLOOKUP(M$40,СПРАВОЧНИК!$L:$M,2,0),'БАЗА КЛИЕНТОВ'!$C:$C,$D45)) ->  | N45: =IF(M45="","",COUNTIFS('БАЗА КЛИЕНТОВ'!$B:$B,VLOOKUP(N$40,СПРАВОЧНИК!$L:$M,2,0),'БАЗА КЛИЕНТОВ'!$C:$C,$D45)) ->  | O45: =IF(N45="","",COUNTIFS('БАЗА КЛИЕНТОВ'!$B:$B,VLOOKUP(O$40,СПРАВОЧНИК!$L:$M,2,0),'БАЗА КЛИЕНТОВ'!$C:$C,$D45)) ->  | P45: =IF(O45="","",COUNTIFS('БАЗА КЛИЕНТОВ'!$B:$B,VLOOKUP(P$40,СПРАВОЧНИК!$L:$M,2,0),'БАЗА КЛИЕНТОВ'!$C:$C,$D45)) -> 
E46: =IF(D46="","",COUNTIFS('БАЗА КЛИЕНТОВ'!$B:$B,VLOOKUP(E$40,СПРАВОЧНИК!$L:$M,2,0),'БАЗА КЛИЕНТОВ'!$C:$C,$D46)) ->  | F46: =IF(E46="","",COUNTIFS('БАЗА КЛИЕНТОВ'!$B:$B,VLOOKUP(F$40,СПРАВОЧНИК!$L:$M,2,0),'БАЗА КЛИЕНТОВ'!$C:$C,$D46)) ->  | G46: =IF(F46="","",COUNTIFS('БАЗА КЛИЕНТОВ'!$B:$B,VLOOKUP(G$40,СПРАВОЧНИК!$L:$M,2,0),'БАЗА КЛИЕНТОВ'!$C:$C,$D46)) ->  | H46: =IF(G46="","",COUNTIFS('БАЗА КЛИЕНТОВ'!$B:$B,VLOOKUP(H$40,СПРАВОЧНИК!$L:$M,2,0),'БАЗА КЛИЕНТОВ'!$C:$C,$D46)) ->  | I46: =IF(H46="","",COUNTIFS('БАЗА КЛИЕНТОВ'!$B:$B,VLOOKUP(I$40,СПРАВОЧНИК!$L:$M,2,0),'БАЗА КЛИЕНТОВ'!$C:$C,$D46)) ->  | J46: =IF(I46="","",COUNTIFS('БАЗА КЛИЕНТОВ'!$B:$B,VLOOKUP(J$40,СПРАВОЧНИК!$L:$M,2,0),'БАЗА КЛИЕНТОВ'!$C:$C,$D46)) ->  | K46: =IF(J46="","",COUNTIFS('БАЗА КЛИЕНТОВ'!$B:$B,VLOOKUP(K$40,СПРАВОЧНИК!$L:$M,2,0),'БАЗА КЛИЕНТОВ'!$C:$C,$D46)) ->  | L46: =IF(K46="","",COUNTIFS('БАЗА КЛИЕНТОВ'!$B:$B,VLOOKUP(L$40,СПРАВОЧНИК!$L:$M,2,0),'БАЗА КЛИЕНТОВ'!$C:$C,$D46)) ->  | M46: =IF(L46="","",COUNTIFS('БАЗА КЛИЕНТОВ'!$B:$B,VLOOKUP(M$40,СПРАВОЧНИК!$L:$M,2,0),'БАЗА КЛИЕНТОВ'!$C:$C,$D46)) ->  | N46: =IF(M46="","",COUNTIFS('БАЗА КЛИЕНТОВ'!$B:$B,VLOOKUP(N$40,СПРАВОЧНИК!$L:$M,2,0),'БАЗА КЛИЕНТОВ'!$C:$C,$D46)) ->  | O46: =IF(N46="","",COUNTIFS('БАЗА КЛИЕНТОВ'!$B:$B,VLOOKUP(O$40,СПРАВОЧНИК!$L:$M,2,0),'БАЗА КЛИЕНТОВ'!$C:$C,$D46)) ->  | P46: =IF(O46="","",COUNTIFS('БАЗА КЛИЕНТОВ'!$B:$B,VLOOKUP(P$40,СПРАВОЧНИК!$L:$M,2,0),'БАЗА КЛИЕНТОВ'!$C:$C,$D46)) -> 
E47: =IF(D47="","",COUNTIFS('БАЗА КЛИЕНТОВ'!$B:$B,VLOOKUP(E$40,СПРАВОЧНИК!$L:$M,2,0),'БАЗА КЛИЕНТОВ'!$C:$C,$D47)) ->  | F47: =IF(E47="","",COUNTIFS('БАЗА КЛИЕНТОВ'!$B:$B,VLOOKUP(F$40,СПРАВОЧНИК!$L:$M,2,0),'БАЗА КЛИЕНТОВ'!$C:$C,$D47)) ->  | G47: =IF(F47="","",COUNTIFS('БАЗА КЛИЕНТОВ'!$B:$B,VLOOKUP(G$40,СПРАВОЧНИК!$L:$M,2,0),'БАЗА КЛИЕНТОВ'!$C:$C,$D47)) ->  | H47: =IF(G47="","",COUNTIFS('БАЗА КЛИЕНТОВ'!$B:$B,VLOOKUP(H$40,СПРАВОЧНИК!$L:$M,2,0),'БАЗА КЛИЕНТОВ'!$C:$C,$D47)) ->  | I47: =IF(H47="","",COUNTIFS('БАЗА КЛИЕНТОВ'!$B:$B,VLOOKUP(I$40,СПРАВОЧНИК!$L:$M,2,0),'БАЗА КЛИЕНТОВ'!$C:$C,$D47)) ->  | J47: =IF(I47="","",COUNTIFS('БАЗА КЛИЕНТОВ'!$B:$B,VLOOKUP(J$40,СПРАВОЧНИК!$L:$M,2,0),'БАЗА КЛИЕНТОВ'!$C:$C,$D47)) ->  | K47: =IF(J47="","",COUNTIFS('БАЗА КЛИЕНТОВ'!$B:$B,VLOOKUP(K$40,СПРАВОЧНИК!$L:$M,2,0),'БАЗА КЛИЕНТОВ'!$C:$C,$D47)) ->  | L47: =IF(K47="","",COUNTIFS('БАЗА КЛИЕНТОВ'!$B:$B,VLOOKUP(L$40,СПРАВОЧНИК!$L:$M,2,0),'БАЗА КЛИЕНТОВ'!$C:$C,$D47)) ->  | M47: =IF(L47="","",COUNTIFS('БАЗА КЛИЕНТОВ'!$B:$B,VLOOKUP(M$40,СПРАВОЧНИК!$L:$M,2,0),'БАЗА КЛИЕНТОВ'!$C:$C,$D47)) ->  | N47: =IF(M47="","",COUNTIFS('БАЗА КЛИЕНТОВ'!$B:$B,VLOOKUP(N$40,СПРАВОЧНИК!$L:$M,2,0),'БАЗА КЛИЕНТОВ'!$C:$C,$D47)) ->  | O47: =IF(N47="","",COUNTIFS('БАЗА КЛИЕНТОВ'!$B:$B,VLOOKUP(O$40,СПРАВОЧНИК!$L:$M,2,0),'БАЗА КЛИЕНТОВ'!$C:$C,$D47)) ->  | P47: =IF(O47="","",COUNTIFS('БАЗА КЛИЕНТОВ'!$B:$B,VLOOKUP(P$40,СПРАВОЧНИК!$L:$M,2,0),'БАЗА КЛИЕНТОВ'!$C:$C,$D47)) -> 
E48: =IF(D48="","",COUNTIFS('БАЗА КЛИЕНТОВ'!$B:$B,VLOOKUP(E$40,СПРАВОЧНИК!$L:$M,2,0),'БАЗА КЛИЕНТОВ'!$C:$C,$D48)) ->  | F48: =IF(E48="","",COUNTIFS('БАЗА КЛИЕНТОВ'!$B:$B,VLOOKUP(F$40,СПРАВОЧНИК!$L:$M,2,0),'БАЗА КЛИЕНТОВ'!$C:$C,$D48)) ->  | G48: =IF(F48="","",COUNTIFS('БАЗА КЛИЕНТОВ'!$B:$B,VLOOKUP(G$40,СПРАВОЧНИК!$L:$M,2,0),'БАЗА КЛИЕНТОВ'!$C:$C,$D48)) ->  | H48: =IF(G48="","",COUNTIFS('БАЗА КЛИЕНТОВ'!$B:$B,VLOOKUP(H$40,СПРАВОЧНИК!$L:$M,2,0),'БАЗА КЛИЕНТОВ'!$C:$C,$D48)) ->  | I48: =IF(H48="","",COUNTIFS('БАЗА КЛИЕНТОВ'!$B:$B,VLOOKUP(I$40,СПРАВОЧНИК!$L:$M,2,0),'БАЗА КЛИЕНТОВ'!$C:$C,$D48)) ->  | J48: =IF(I48="","",COUNTIFS('БАЗА КЛИЕНТОВ'!$B:$B,VLOOKUP(J$40,СПРАВОЧНИК!$L:$M,2,0),'БАЗА КЛИЕНТОВ'!$C:$C,$D48)) ->  | K48: =IF(J48="","",COUNTIFS('БАЗА КЛИЕНТОВ'!$B:$B,VLOOKUP(K$40,СПРАВОЧНИК!$L:$M,2,0),'БАЗА КЛИЕНТОВ'!$C:$C,$D48)) ->  | L48: =IF(K48="","",COUNTIFS('БАЗА КЛИЕНТОВ'!$B:$B,VLOOKUP(L$40,СПРАВОЧНИК!$L:$M,2,0),'БАЗА КЛИЕНТОВ'!$C:$C,$D48)) ->  | M48: =IF(L48="","",COUNTIFS('БАЗА КЛИЕНТОВ'!$B:$B,VLOOKUP(M$40,СПРАВОЧНИК!$L:$M,2,0),'БАЗА КЛИЕНТОВ'!$C:$C,$D48)) ->  | N48: =IF(M48="","",COUNTIFS('БАЗА КЛИЕНТОВ'!$B:$B,VLOOKUP(N$40,СПРАВОЧНИК!$L:$M,2,0),'БАЗА КЛИЕНТОВ'!$C:$C,$D48)) ->  | O48: =IF(N48="","",COUNTIFS('БАЗА КЛИЕНТОВ'!$B:$B,VLOOKUP(O$40,СПРАВОЧНИК!$L:$M,2,0),'БАЗА КЛИЕНТОВ'!$C:$C,$D48)) ->  | P48: =IF(O48="","",COUNTIFS('БАЗА КЛИЕНТОВ'!$B:$B,VLOOKUP(P$40,СПРАВОЧНИК!$L:$M,2,0),'БАЗА КЛИЕНТОВ'!$C:$C,$D48)) -> 
E49: =IF(D49="","",COUNTIFS('БАЗА КЛИЕНТОВ'!$B:$B,VLOOKUP(E$40,СПРАВОЧНИК!$L:$M,2,0),'БАЗА КЛИЕНТОВ'!$C:$C,$D49)) ->  | F49: =IF(E49="","",COUNTIFS('БАЗА КЛИЕНТОВ'!$B:$B,VLOOKUP(F$40,СПРАВОЧНИК!$L:$M,2,0),'БАЗА КЛИЕНТОВ'!$C:$C,$D49)) ->  | G49: =IF(F49="","",COUNTIFS('БАЗА КЛИЕНТОВ'!$B:$B,VLOOKUP(G$40,СПРАВОЧНИК!$L:$M,2,0),'БАЗА КЛИЕНТОВ'!$C:$C,$D49)) ->  | H49: =IF(G49="","",COUNTIFS('БАЗА КЛИЕНТОВ'!$B:$B,VLOOKUP(H$40,СПРАВОЧНИК!$L:$M,2,0),'БАЗА КЛИЕНТОВ'!$C:$C,$D49)) ->  | I49: =IF(H49="","",COUNTIFS('БАЗА КЛИЕНТОВ'!$B:$B,VLOOKUP(I$40,СПРАВОЧНИК!$L:$M,2,0),'БАЗА КЛИЕНТОВ'!$C:$C,$D49)) ->  | J49: =IF(I49="","",COUNTIFS('БАЗА КЛИЕНТОВ'!$B:$B,VLOOKUP(J$40,СПРАВОЧНИК!$L:$M,2,0),'БАЗА КЛИЕНТОВ'!$C:$C,$D49)) ->  | K49: =IF(J49="","",COUNTIFS('БАЗА КЛИЕНТОВ'!$B:$B,VLOOKUP(K$40,СПРАВОЧНИК!$L:$M,2,0),'БАЗА КЛИЕНТОВ'!$C:$C,$D49)) ->  | L49: =IF(K49="","",COUNTIFS('БАЗА КЛИЕНТОВ'!$B:$B,VLOOKUP(L$40,СПРАВОЧНИК!$L:$M,2,0),'БАЗА КЛИЕНТОВ'!$C:$C,$D49)) ->  | M49: =IF(L49="","",COUNTIFS('БАЗА КЛИЕНТОВ'!$B:$B,VLOOKUP(M$40,СПРАВОЧНИК!$L:$M,2,0),'БАЗА КЛИЕНТОВ'!$C:$C,$D49)) ->  | N49: =IF(M49="","",COUNTIFS('БАЗА КЛИЕНТОВ'!$B:$B,VLOOKUP(N$40,СПРАВОЧНИК!$L:$M,2,0),'БАЗА КЛИЕНТОВ'!$C:$C,$D49)) ->  | O49: =IF(N49="","",COUNTIFS('БАЗА КЛИЕНТОВ'!$B:$B,VLOOKUP(O$40,СПРАВОЧНИК!$L:$M,2,0),'БАЗА КЛИЕНТОВ'!$C:$C,$D49)) ->  | P49: =IF(O49="","",COUNTIFS('БАЗА КЛИЕНТОВ'!$B:$B,VLOOKUP(P$40,СПРАВОЧНИК!$L:$M,2,0),'БАЗА КЛИЕНТОВ'!$C:$C,$D49)) -> 
E50: =IF(D50="","",COUNTIFS('БАЗА КЛИЕНТОВ'!$B:$B,VLOOKUP(E$40,СПРАВОЧНИК!$L:$M,2,0),'БАЗА КЛИЕНТОВ'!$C:$C,$D50)) ->  | F50: =IF(E50="","",COUNTIFS('БАЗА КЛИЕНТОВ'!$B:$B,VLOOKUP(F$40,СПРАВОЧНИК!$L:$M,2,0),'БАЗА КЛИЕНТОВ'!$C:$C,$D50)) ->  | G50: =IF(F50="","",COUNTIFS('БАЗА КЛИЕНТОВ'!$B:$B,VLOOKUP(G$40,СПРАВОЧНИК!$L:$M,2,0),'БАЗА КЛИЕНТОВ'!$C:$C,$D50)) ->  | H50: =IF(G50="","",COUNTIFS('БАЗА КЛИЕНТОВ'!$B:$B,VLOOKUP(H$40,СПРАВОЧНИК!$L:$M,2,0),'БАЗА КЛИЕНТОВ'!$C:$C,$D50)) ->  | I50: =IF(H50="","",COUNTIFS('БАЗА КЛИЕНТОВ'!$B:$B,VLOOKUP(I$40,СПРАВОЧНИК!$L:$M,2,0),'БАЗА КЛИЕНТОВ'!$C:$C,$D50)) ->  | J50: =IF(I50="","",COUNTIFS('БАЗА КЛИЕНТОВ'!$B:$B,VLOOKUP(J$40,СПРАВОЧНИК!$L:$M,2,0),'БАЗА КЛИЕНТОВ'!$C:$C,$D50)) ->  | K50: =IF(J50="","",COUNTIFS('БАЗА КЛИЕНТОВ'!$B:$B,VLOOKUP(K$40,СПРАВОЧНИК!$L:$M,2,0),'БАЗА КЛИЕНТОВ'!$C:$C,$D50)) ->  | L50: =IF(K50="","",COUNTIFS('БАЗА КЛИЕНТОВ'!$B:$B,VLOOKUP(L$40,СПРАВОЧНИК!$L:$M,2,0),'БАЗА КЛИЕНТОВ'!$C:$C,$D50)) ->  | M50: =IF(L50="","",COUNTIFS('БАЗА КЛИЕНТОВ'!$B:$B,VLOOKUP(M$40,СПРАВОЧНИК!$L:$M,2,0),'БАЗА КЛИЕНТОВ'!$C:$C,$D50)) ->  | N50: =IF(M50="","",COUNTIFS('БАЗА КЛИЕНТОВ'!$B:$B,VLOOKUP(N$40,СПРАВОЧНИК!$L:$M,2,0),'БАЗА КЛИЕНТОВ'!$C:$C,$D50)) ->  | O50: =IF(N50="","",COUNTIFS('БАЗА КЛИЕНТОВ'!$B:$B,VLOOKUP(O$40,СПРАВОЧНИК!$L:$M,2,0),'БАЗА КЛИЕНТОВ'!$C:$C,$D50)) ->  | P50: =IF(O50="","",COUNTIFS('БАЗА КЛИЕНТОВ'!$B:$B,VLOOKUP(P$40,СПРАВОЧНИК!$L:$M,2,0),'БАЗА КЛИЕНТОВ'!$C:$C,$D50)) -> 
E51: =IF(D51="","",COUNTIFS('БАЗА КЛИЕНТОВ'!$B:$B,VLOOKUP(E$40,СПРАВОЧНИК!$L:$M,2,0),'БАЗА КЛИЕНТОВ'!$C:$C,$D51)) ->  | F51: =IF(E51="","",COUNTIFS('БАЗА КЛИЕНТОВ'!$B:$B,VLOOKUP(F$40,СПРАВОЧНИК!$L:$M,2,0),'БАЗА КЛИЕНТОВ'!$C:$C,$D51)) ->  | G51: =IF(F51="","",COUNTIFS('БАЗА КЛИЕНТОВ'!$B:$B,VLOOKUP(G$40,СПРАВОЧНИК!$L:$M,2,0),'БАЗА КЛИЕНТОВ'!$C:$C,$D51)) ->  | H51: =IF(G51="","",COUNTIFS('БАЗА КЛИЕНТОВ'!$B:$B,VLOOKUP(H$40,СПРАВОЧНИК!$L:$M,2,0),'БАЗА КЛИЕНТОВ'!$C:$C,$D51)) ->  | I51: =IF(H51="","",COUNTIFS('БАЗА КЛИЕНТОВ'!$B:$B,VLOOKUP(I$40,СПРАВОЧНИК!$L:$M,2,0),'БАЗА КЛИЕНТОВ'!$C:$C,$D51)) ->  | J51: =IF(I51="","",COUNTIFS('БАЗА КЛИЕНТОВ'!$B:$B,VLOOKUP(J$40,СПРАВОЧНИК!$L:$M,2,0),'БАЗА КЛИЕНТОВ'!$C:$C,$D51)) ->  | K51: =IF(J51="","",COUNTIFS('БАЗА КЛИЕНТОВ'!$B:$B,VLOOKUP(K$40,СПРАВОЧНИК!$L:$M,2,0),'БАЗА КЛИЕНТОВ'!$C:$C,$D51)) ->  | L51: =IF(K51="","",COUNTIFS('БАЗА КЛИЕНТОВ'!$B:$B,VLOOKUP(L$40,СПРАВОЧНИК!$L:$M,2,0),'БАЗА КЛИЕНТОВ'!$C:$C,$D51)) ->  | M51: =IF(L51="","",COUNTIFS('БАЗА КЛИЕНТОВ'!$B:$B,VLOOKUP(M$40,СПРАВОЧНИК!$L:$M,2,0),'БАЗА КЛИЕНТОВ'!$C:$C,$D51)) ->  | N51: =IF(M51="","",COUNTIFS('БАЗА КЛИЕНТОВ'!$B:$B,VLOOKUP(N$40,СПРАВОЧНИК!$L:$M,2,0),'БАЗА КЛИЕНТОВ'!$C:$C,$D51)) ->  | O51: =IF(N51="","",COUNTIFS('БАЗА КЛИЕНТОВ'!$B:$B,VLOOKUP(O$40,СПРАВОЧНИК!$L:$M,2,0),'БАЗА КЛИЕНТОВ'!$C:$C,$D51)) ->  | P51: =IF(O51="","",COUNTIFS('БАЗА КЛИЕНТОВ'!$B:$B,VLOOKUP(P$40,СПРАВОЧНИК!$L:$M,2,0),'БАЗА КЛИЕНТОВ'!$C:$C,$D51)) -> 
E52: =IF(D52="","",COUNTIFS('БАЗА КЛИЕНТОВ'!$B:$B,VLOOKUP(E$40,СПРАВОЧНИК!$L:$M,2,0),'БАЗА КЛИЕНТОВ'!$C:$C,$D52)) ->  | F52: =IF(E52="","",COUNTIFS('БАЗА КЛИЕНТОВ'!$B:$B,VLOOKUP(F$40,СПРАВОЧНИК!$L:$M,2,0),'БАЗА КЛИЕНТОВ'!$C:$C,$D52)) ->  | G52: =IF(F52="","",COUNTIFS('БАЗА КЛИЕНТОВ'!$B:$B,VLOOKUP(G$40,СПРАВОЧНИК!$L:$M,2,0),'БАЗА КЛИЕНТОВ'!$C:$C,$D52)) ->  | H52: =IF(G52="","",COUNTIFS('БАЗА КЛИЕНТОВ'!$B:$B,VLOOKUP(H$40,СПРАВОЧНИК!$L:$M,2,0),'БАЗА КЛИЕНТОВ'!$C:$C,$D52)) ->  | I52: =IF(H52="","",COUNTIFS('БАЗА КЛИЕНТОВ'!$B:$B,VLOOKUP(I$40,СПРАВОЧНИК!$L:$M,2,0),'БАЗА КЛИЕНТОВ'!$C:$C,$D52)) ->  | J52: =IF(I52="","",COUNTIFS('БАЗА КЛИЕНТОВ'!$B:$B,VLOOKUP(J$40,СПРАВОЧНИК!$L:$M,2,0),'БАЗА КЛИЕНТОВ'!$C:$C,$D52)) ->  | K52: =IF(J52="","",COUNTIFS('БАЗА КЛИЕНТОВ'!$B:$B,VLOOKUP(K$40,СПРАВОЧНИК!$L:$M,2,0),'БАЗА КЛИЕНТОВ'!$C:$C,$D52)) ->  | L52: =IF(K52="","",COUNTIFS('БАЗА КЛИЕНТОВ'!$B:$B,VLOOKUP(L$40,СПРАВОЧНИК!$L:$M,2,0),'БАЗА КЛИЕНТОВ'!$C:$C,$D52)) ->  | M52: =IF(L52="","",COUNTIFS('БАЗА КЛИЕНТОВ'!$B:$B,VLOOKUP(M$40,СПРАВОЧНИК!$L:$M,2,0),'БАЗА КЛИЕНТОВ'!$C:$C,$D52)) ->  | N52: =IF(M52="","",COUNTIFS('БАЗА КЛИЕНТОВ'!$B:$B,VLOOKUP(N$40,СПРАВОЧНИК!$L:$M,2,0),'БАЗА КЛИЕНТОВ'!$C:$C,$D52)) ->  | O52: =IF(N52="","",COUNTIFS('БАЗА КЛИЕНТОВ'!$B:$B,VLOOKUP(O$40,СПРАВОЧНИК!$L:$M,2,0),'БАЗА КЛИЕНТОВ'!$C:$C,$D52)) ->  | P52: =IF(O52="","",COUNTIFS('БАЗА КЛИЕНТОВ'!$B:$B,VLOOKUP(P$40,СПРАВОЧНИК!$L:$M,2,0),'БАЗА КЛИЕНТОВ'!$C:$C,$D52)) -> 
E53: =IF(D53="","",COUNTIFS('БАЗА КЛИЕНТОВ'!$B:$B,VLOOKUP(E$40,СПРАВОЧНИК!$L:$M,2,0),'БАЗА КЛИЕНТОВ'!$C:$C,$D53)) ->  | F53: =IF(E53="","",COUNTIFS('БАЗА КЛИЕНТОВ'!$B:$B,VLOOKUP(F$40,СПРАВОЧНИК!$L:$M,2,0),'БАЗА КЛИЕНТОВ'!$C:$C,$D53)) ->  | G53: =IF(F53="","",COUNTIFS('БАЗА КЛИЕНТОВ'!$B:$B,VLOOKUP(G$40,СПРАВОЧНИК!$L:$M,2,0),'БАЗА КЛИЕНТОВ'!$C:$C,$D53)) ->  | H53: =IF(G53="","",COUNTIFS('БАЗА КЛИЕНТОВ'!$B:$B,VLOOKUP(H$40,СПРАВОЧНИК!$L:$M,2,0),'БАЗА КЛИЕНТОВ'!$C:$C,$D53)) ->  | I53: =IF(H53="","",COUNTIFS('БАЗА КЛИЕНТОВ'!$B:$B,VLOOKUP(I$40,СПРАВОЧНИК!$L:$M,2,0),'БАЗА КЛИЕНТОВ'!$C:$C,$D53)) ->  | J53: =IF(I53="","",COUNTIFS('БАЗА КЛИЕНТОВ'!$B:$B,VLOOKUP(J$40,СПРАВОЧНИК!$L:$M,2,0),'БАЗА КЛИЕНТОВ'!$C:$C,$D53)) ->  | K53: =IF(J53="","",COUNTIFS('БАЗА КЛИЕНТОВ'!$B:$B,VLOOKUP(K$40,СПРАВОЧНИК!$L:$M,2,0),'БАЗА КЛИЕНТОВ'!$C:$C,$D53)) ->  | L53: =IF(K53="","",COUNTIFS('БАЗА КЛИЕНТОВ'!$B:$B,VLOOKUP(L$40,СПРАВОЧНИК!$L:$M,2,0),'БАЗА КЛИЕНТОВ'!$C:$C,$D53)) ->  | M53: =IF(L53="","",COUNTIFS('БАЗА КЛИЕНТОВ'!$B:$B,VLOOKUP(M$40,СПРАВОЧНИК!$L:$M,2,0),'БАЗА КЛИЕНТОВ'!$C:$C,$D53)) ->  | N53: =IF(M53="","",COUNTIFS('БАЗА КЛИЕНТОВ'!$B:$B,VLOOKUP(N$40,СПРАВОЧНИК!$L:$M,2,0),'БАЗА КЛИЕНТОВ'!$C:$C,$D53)) ->  | O53: =IF(N53="","",COUNTIFS('БАЗА КЛИЕНТОВ'!$B:$B,VLOOKUP(O$40,СПРАВОЧНИК!$L:$M,2,0),'БАЗА КЛИЕНТОВ'!$C:$C,$D53)) ->  | P53: =IF(O53="","",COUNTIFS('БАЗА КЛИЕНТОВ'!$B:$B,VLOOKUP(P$40,СПРАВОЧНИК!$L:$M,2,0),'БАЗА КЛИЕНТОВ'!$C:$C,$D53)) -> 
E54: =IF(D54="","",COUNTIFS('БАЗА КЛИЕНТОВ'!$B:$B,VLOOKUP(E$40,СПРАВОЧНИК!$L:$M,2,0),'БАЗА КЛИЕНТОВ'!$C:$C,$D54)) ->  | F54: =IF(E54="","",COUNTIFS('БАЗА КЛИЕНТОВ'!$B:$B,VLOOKUP(F$40,СПРАВОЧНИК!$L:$M,2,0),'БАЗА КЛИЕНТОВ'!$C:$C,$D54)) ->  | G54: =IF(F54="","",COUNTIFS('БАЗА КЛИЕНТОВ'!$B:$B,VLOOKUP(G$40,СПРАВОЧНИК!$L:$M,2,0),'БАЗА КЛИЕНТОВ'!$C:$C,$D54)) ->  | H54: =IF(G54="","",COUNTIFS('БАЗА КЛИЕНТОВ'!$B:$B,VLOOKUP(H$40,СПРАВОЧНИК!$L:$M,2,0),'БАЗА КЛИЕНТОВ'!$C:$C,$D54)) ->  | I54: =IF(H54="","",COUNTIFS('БАЗА КЛИЕНТОВ'!$B:$B,VLOOKUP(I$40,СПРАВОЧНИК!$L:$M,2,0),'БАЗА КЛИЕНТОВ'!$C:$C,$D54)) ->  | J54: =IF(I54="","",COUNTIFS('БАЗА КЛИЕНТОВ'!$B:$B,VLOOKUP(J$40,СПРАВОЧНИК!$L:$M,2,0),'БАЗА КЛИЕНТОВ'!$C:$C,$D54)) ->  | K54: =IF(J54="","",COUNTIFS('БАЗА КЛИЕНТОВ'!$B:$B,VLOOKUP(K$40,СПРАВОЧНИК!$L:$M,2,0),'БАЗА КЛИЕНТОВ'!$C:$C,$D54)) ->  | L54: =IF(K54="","",COUNTIFS('БАЗА КЛИЕНТОВ'!$B:$B,VLOOKUP(L$40,СПРАВОЧНИК!$L:$M,2,0),'БАЗА КЛИЕНТОВ'!$C:$C,$D54)) ->  | M54: =IF(L54="","",COUNTIFS('БАЗА КЛИЕНТОВ'!$B:$B,VLOOKUP(M$40,СПРАВОЧНИК!$L:$M,2,0),'БАЗА КЛИЕНТОВ'!$C:$C,$D54)) ->  | N54: =IF(M54="","",COUNTIFS('БАЗА КЛИЕНТОВ'!$B:$B,VLOOKUP(N$40,СПРАВОЧНИК!$L:$M,2,0),'БАЗА КЛИЕНТОВ'!$C:$C,$D54)) ->  | O54: =IF(N54="","",COUNTIFS('БАЗА КЛИЕНТОВ'!$B:$B,VLOOKUP(O$40,СПРАВОЧНИК!$L:$M,2,0),'БАЗА КЛИЕНТОВ'!$C:$C,$D54)) ->  | P54: =IF(O54="","",COUNTIFS('БАЗА КЛИЕНТОВ'!$B:$B,VLOOKUP(P$40,СПРАВОЧНИК!$L:$M,2,0),'БАЗА КЛИЕНТОВ'!$C:$C,$D54)) -> 
E55: =IF(D55="","",COUNTIFS('БАЗА КЛИЕНТОВ'!$B:$B,VLOOKUP(E$40,СПРАВОЧНИК!$L:$M,2,0),'БАЗА КЛИЕНТОВ'!$C:$C,$D55)) ->  | F55: =IF(E55="","",COUNTIFS('БАЗА КЛИЕНТОВ'!$B:$B,VLOOKUP(F$40,СПРАВОЧНИК!$L:$M,2,0),'БАЗА КЛИЕНТОВ'!$C:$C,$D55)) ->  | G55: =IF(F55="","",COUNTIFS('БАЗА КЛИЕНТОВ'!$B:$B,VLOOKUP(G$40,СПРАВОЧНИК!$L:$M,2,0),'БАЗА КЛИЕНТОВ'!$C:$C,$D55)) ->  | H55: =IF(G55="","",COUNTIFS('БАЗА КЛИЕНТОВ'!$B:$B,VLOOKUP(H$40,СПРАВОЧНИК!$L:$M,2,0),'БАЗА КЛИЕНТОВ'!$C:$C,$D55)) ->  | I55: =IF(H55="","",COUNTIFS('БАЗА КЛИЕНТОВ'!$B:$B,VLOOKUP(I$40,СПРАВОЧНИК!$L:$M,2,0),'БАЗА КЛИЕНТОВ'!$C:$C,$D55)) ->  | J55: =IF(I55="","",COUNTIFS('БАЗА КЛИЕНТОВ'!$B:$B,VLOOKUP(J$40,СПРАВОЧНИК!$L:$M,2,0),'БАЗА КЛИЕНТОВ'!$C:$C,$D55)) ->  | K55: =IF(J55="","",COUNTIFS('БАЗА КЛИЕНТОВ'!$B:$B,VLOOKUP(K$40,СПРАВОЧНИК!$L:$M,2,0),'БАЗА КЛИЕНТОВ'!$C:$C,$D55)) ->  | L55: =IF(K55="","",COUNTIFS('БАЗА КЛИЕНТОВ'!$B:$B,VLOOKUP(L$40,СПРАВОЧНИК!$L:$M,2,0),'БАЗА КЛИЕНТОВ'!$C:$C,$D55)) ->  | M55: =IF(L55="","",COUNTIFS('БАЗА КЛИЕНТОВ'!$B:$B,VLOOKUP(M$40,СПРАВОЧНИК!$L:$M,2,0),'БАЗА КЛИЕНТОВ'!$C:$C,$D55)) ->  | N55: =IF(M55="","",COUNTIFS('БАЗА КЛИЕНТОВ'!$B:$B,VLOOKUP(N$40,СПРАВОЧНИК!$L:$M,2,0),'БАЗА КЛИЕНТОВ'!$C:$C,$D55)) ->  | O55: =IF(N55="","",COUNTIFS('БАЗА КЛИЕНТОВ'!$B:$B,VLOOKUP(O$40,СПРАВОЧНИК!$L:$M,2,0),'БАЗА КЛИЕНТОВ'!$C:$C,$D55)) ->  | P55: =IF(O55="","",COUNTIFS('БАЗА КЛИЕНТОВ'!$B:$B,VLOOKUP(P$40,СПРАВОЧНИК!$L:$M,2,0),'БАЗА КЛИЕНТОВ'!$C:$C,$D55)) -> 
E56: =IF(D56="","",COUNTIFS('БАЗА КЛИЕНТОВ'!$B:$B,VLOOKUP(E$40,СПРАВОЧНИК!$L:$M,2,0),'БАЗА КЛИЕНТОВ'!$C:$C,$D56)) ->  | F56: =IF(E56="","",COUNTIFS('БАЗА КЛИЕНТОВ'!$B:$B,VLOOKUP(F$40,СПРАВОЧНИК!$L:$M,2,0),'БАЗА КЛИЕНТОВ'!$C:$C,$D56)) ->  | G56: =IF(F56="","",COUNTIFS('БАЗА КЛИЕНТОВ'!$B:$B,VLOOKUP(G$40,СПРАВОЧНИК!$L:$M,2,0),'БАЗА КЛИЕНТОВ'!$C:$C,$D56)) ->  | H56: =IF(G56="","",COUNTIFS('БАЗА КЛИЕНТОВ'!$B:$B,VLOOKUP(H$40,СПРАВОЧНИК!$L:$M,2,0),'БАЗА КЛИЕНТОВ'!$C:$C,$D56)) ->  | I56: =IF(H56="","",COUNTIFS('БАЗА КЛИЕНТОВ'!$B:$B,VLOOKUP(I$40,СПРАВОЧНИК!$L:$M,2,0),'БАЗА КЛИЕНТОВ'!$C:$C,$D56)) ->  | J56: =IF(I56="","",COUNTIFS('БАЗА КЛИЕНТОВ'!$B:$B,VLOOKUP(J$40,СПРАВОЧНИК!$L:$M,2,0),'БАЗА КЛИЕНТОВ'!$C:$C,$D56)) ->  | K56: =IF(J56="","",COUNTIFS('БАЗА КЛИЕНТОВ'!$B:$B,VLOOKUP(K$40,СПРАВОЧНИК!$L:$M,2,0),'БАЗА КЛИЕНТОВ'!$C:$C,$D56)) ->  | L56: =IF(K56="","",COUNTIFS('БАЗА КЛИЕНТОВ'!$B:$B,VLOOKUP(L$40,СПРАВОЧНИК!$L:$M,2,0),'БАЗА КЛИЕНТОВ'!$C:$C,$D56)) ->  | M56: =IF(L56="","",COUNTIFS('БАЗА КЛИЕНТОВ'!$B:$B,VLOOKUP(M$40,СПРАВОЧНИК!$L:$M,2,0),'БАЗА КЛИЕНТОВ'!$C:$C,$D56)) ->  | N56: =IF(M56="","",COUNTIFS('БАЗА КЛИЕНТОВ'!$B:$B,VLOOKUP(N$40,СПРАВОЧНИК!$L:$M,2,0),'БАЗА КЛИЕНТОВ'!$C:$C,$D56)) ->  | O56: =IF(N56="","",COUNTIFS('БАЗА КЛИЕНТОВ'!$B:$B,VLOOKUP(O$40,СПРАВОЧНИК!$L:$M,2,0),'БАЗА КЛИЕНТОВ'!$C:$C,$D56)) ->  | P56: =IF(O56="","",COUNTIFS('БАЗА КЛИЕНТОВ'!$B:$B,VLOOKUP(P$40,СПРАВОЧНИК!$L:$M,2,0),'БАЗА КЛИЕНТОВ'!$C:$C,$D56)) -> 
E57: =IF(D57="","",COUNTIFS('БАЗА КЛИЕНТОВ'!$B:$B,VLOOKUP(E$40,СПРАВОЧНИК!$L:$M,2,0),'БАЗА КЛИЕНТОВ'!$C:$C,$D57)) ->  | F57: =IF(E57="","",COUNTIFS('БАЗА КЛИЕНТОВ'!$B:$B,VLOOKUP(F$40,СПРАВОЧНИК!$L:$M,2,0),'БАЗА КЛИЕНТОВ'!$C:$C,$D57)) ->  | G57: =IF(F57="","",COUNTIFS('БАЗА КЛИЕНТОВ'!$B:$B,VLOOKUP(G$40,СПРАВОЧНИК!$L:$M,2,0),'БАЗА КЛИЕНТОВ'!$C:$C,$D57)) ->  | H57: =IF(G57="","",COUNTIFS('БАЗА КЛИЕНТОВ'!$B:$B,VLOOKUP(H$40,СПРАВОЧНИК!$L:$M,2,0),'БАЗА КЛИЕНТОВ'!$C:$C,$D57)) ->  | I57: =IF(H57="","",COUNTIFS('БАЗА КЛИЕНТОВ'!$B:$B,VLOOKUP(I$40,СПРАВОЧНИК!$L:$M,2,0),'БАЗА КЛИЕНТОВ'!$C:$C,$D57)) ->  | J57: =IF(I57="","",COUNTIFS('БАЗА КЛИЕНТОВ'!$B:$B,VLOOKUP(J$40,СПРАВОЧНИК!$L:$M,2,0),'БАЗА КЛИЕНТОВ'!$C:$C,$D57)) ->  | K57: =IF(J57="","",COUNTIFS('БАЗА КЛИЕНТОВ'!$B:$B,VLOOKUP(K$40,СПРАВОЧНИК!$L:$M,2,0),'БАЗА КЛИЕНТОВ'!$C:$C,$D57)) ->  | L57: =IF(K57="","",COUNTIFS('БАЗА КЛИЕНТОВ'!$B:$B,VLOOKUP(L$40,СПРАВОЧНИК!$L:$M,2,0),'БАЗА КЛИЕНТОВ'!$C:$C,$D57)) ->  | M57: =IF(L57="","",COUNTIFS('БАЗА КЛИЕНТОВ'!$B:$B,VLOOKUP(M$40,СПРАВОЧНИК!$L:$M,2,0),'БАЗА КЛИЕНТОВ'!$C:$C,$D57)) ->  | N57: =IF(M57="","",COUNTIFS('БАЗА КЛИЕНТОВ'!$B:$B,VLOOKUP(N$40,СПРАВОЧНИК!$L:$M,2,0),'БАЗА КЛИЕНТОВ'!$C:$C,$D57)) ->  | O57: =IF(N57="","",COUNTIFS('БАЗА КЛИЕНТОВ'!$B:$B,VLOOKUP(O$40,СПРАВОЧНИК!$L:$M,2,0),'БАЗА КЛИЕНТОВ'!$C:$C,$D57)) ->  | P57: =IF(O57="","",COUNTIFS('БАЗА КЛИЕНТОВ'!$B:$B,VLOOKUP(P$40,СПРАВОЧНИК!$L:$M,2,0),'БАЗА КЛИЕНТОВ'!$C:$C,$D57)) -> 
E58: =IF(D58="","",COUNTIFS('БАЗА КЛИЕНТОВ'!$B:$B,VLOOKUP(E$40,СПРАВОЧНИК!$L:$M,2,0),'БАЗА КЛИЕНТОВ'!$C:$C,$D58)) ->  | F58: =IF(E58="","",COUNTIFS('БАЗА КЛИЕНТОВ'!$B:$B,VLOOKUP(F$40,СПРАВОЧНИК!$L:$M,2,0),'БАЗА КЛИЕНТОВ'!$C:$C,$D58)) ->  | G58: =IF(F58="","",COUNTIFS('БАЗА КЛИЕНТОВ'!$B:$B,VLOOKUP(G$40,СПРАВОЧНИК!$L:$M,2,0),'БАЗА КЛИЕНТОВ'!$C:$C,$D58)) ->  | H58: =IF(G58="","",COUNTIFS('БАЗА КЛИЕНТОВ'!$B:$B,VLOOKUP(H$40,СПРАВОЧНИК!$L:$M,2,0),'БАЗА КЛИЕНТОВ'!$C:$C,$D58)) ->  | I58: =IF(H58="","",COUNTIFS('БАЗА КЛИЕНТОВ'!$B:$B,VLOOKUP(I$40,СПРАВОЧНИК!$L:$M,2,0),'БАЗА КЛИЕНТОВ'!$C:$C,$D58)) ->  | J58: =IF(I58="","",COUNTIFS('БАЗА КЛИЕНТОВ'!$B:$B,VLOOKUP(J$40,СПРАВОЧНИК!$L:$M,2,0),'БАЗА КЛИЕНТОВ'!$C:$C,$D58)) ->  | K58: =IF(J58="","",COUNTIFS('БАЗА КЛИЕНТОВ'!$B:$B,VLOOKUP(K$40,СПРАВОЧНИК!$L:$M,2,0),'БАЗА КЛИЕНТОВ'!$C:$C,$D58)) ->  | L58: =IF(K58="","",COUNTIFS('БАЗА КЛИЕНТОВ'!$B:$B,VLOOKUP(L$40,СПРАВОЧНИК!$L:$M,2,0),'БАЗА КЛИЕНТОВ'!$C:$C,$D58)) ->  | M58: =IF(L58="","",COUNTIFS('БАЗА КЛИЕНТОВ'!$B:$B,VLOOKUP(M$40,СПРАВОЧНИК!$L:$M,2,0),'БАЗА КЛИЕНТОВ'!$C:$C,$D58)) ->  | N58: =IF(M58="","",COUNTIFS('БАЗА КЛИЕНТОВ'!$B:$B,VLOOKUP(N$40,СПРАВОЧНИК!$L:$M,2,0),'БАЗА КЛИЕНТОВ'!$C:$C,$D58)) ->  | O58: =IF(N58="","",COUNTIFS('БАЗА КЛИЕНТОВ'!$B:$B,VLOOKUP(O$40,СПРАВОЧНИК!$L:$M,2,0),'БАЗА КЛИЕНТОВ'!$C:$C,$D58)) ->  | P58: =IF(O58="","",COUNTIFS('БАЗА КЛИЕНТОВ'!$B:$B,VLOOKUP(P$40,СПРАВОЧНИК!$L:$M,2,0),'БАЗА КЛИЕНТОВ'!$C:$C,$D58)) -> 
E59: =IF(D59="","",COUNTIFS('БАЗА КЛИЕНТОВ'!$B:$B,VLOOKUP(E$40,СПРАВОЧНИК!$L:$M,2,0),'БАЗА КЛИЕНТОВ'!$C:$C,$D59)) ->  | F59: =IF(E59="","",COUNTIFS('БАЗА КЛИЕНТОВ'!$B:$B,VLOOKUP(F$40,СПРАВОЧНИК!$L:$M,2,0),'БАЗА КЛИЕНТОВ'!$C:$C,$D59)) ->  | G59: =IF(F59="","",COUNTIFS('БАЗА КЛИЕНТОВ'!$B:$B,VLOOKUP(G$40,СПРАВОЧНИК!$L:$M,2,0),'БАЗА КЛИЕНТОВ'!$C:$C,$D59)) ->  | H59: =IF(G59="","",COUNTIFS('БАЗА КЛИЕНТОВ'!$B:$B,VLOOKUP(H$40,СПРАВОЧНИК!$L:$M,2,0),'БАЗА КЛИЕНТОВ'!$C:$C,$D59)) ->  | I59: =IF(H59="","",COUNTIFS('БАЗА КЛИЕНТОВ'!$B:$B,VLOOKUP(I$40,СПРАВОЧНИК!$L:$M,2,0),'БАЗА КЛИЕНТОВ'!$C:$C,$D59)) ->  | J59: =IF(I59="","",COUNTIFS('БАЗА КЛИЕНТОВ'!$B:$B,VLOOKUP(J$40,СПРАВОЧНИК!$L:$M,2,0),'БАЗА КЛИЕНТОВ'!$C:$C,$D59)) ->  | K59: =IF(J59="","",COUNTIFS('БАЗА КЛИЕНТОВ'!$B:$B,VLOOKUP(K$40,СПРАВОЧНИК!$L:$M,2,0),'БАЗА КЛИЕНТОВ'!$C:$C,$D59)) ->  | L59: =IF(K59="","",COUNTIFS('БАЗА КЛИЕНТОВ'!$B:$B,VLOOKUP(L$40,СПРАВОЧНИК!$L:$M,2,0),'БАЗА КЛИЕНТОВ'!$C:$C,$D59)) ->  | M59: =IF(L59="","",COUNTIFS('БАЗА КЛИЕНТОВ'!$B:$B,VLOOKUP(M$40,СПРАВОЧНИК!$L:$M,2,0),'БАЗА КЛИЕНТОВ'!$C:$C,$D59)) ->  | N59: =IF(M59="","",COUNTIFS('БАЗА КЛИЕНТОВ'!$B:$B,VLOOKUP(N$40,СПРАВОЧНИК!$L:$M,2,0),'БАЗА КЛИЕНТОВ'!$C:$C,$D59)) ->  | O59: =IF(N59="","",COUNTIFS('БАЗА КЛИЕНТОВ'!$B:$B,VLOOKUP(O$40,СПРАВОЧНИК!$L:$M,2,0),'БАЗА КЛИЕНТОВ'!$C:$C,$D59)) ->  | P59: =IF(O59="","",COUNTIFS('БАЗА КЛИЕНТОВ'!$B:$B,VLOOKUP(P$40,СПРАВОЧНИК!$L:$M,2,0),'БАЗА КЛИЕНТОВ'!$C:$C,$D59)) -> 
E60: =IF(D60="","",COUNTIFS('БАЗА КЛИЕНТОВ'!$B:$B,VLOOKUP(E$40,СПРАВОЧНИК!$L:$M,2,0),'БАЗА КЛИЕНТОВ'!$C:$C,$D60)) ->  | F60: =IF(E60="","",COUNTIFS('БАЗА КЛИЕНТОВ'!$B:$B,VLOOKUP(F$40,СПРАВОЧНИК!$L:$M,2,0),'БАЗА КЛИЕНТОВ'!$C:$C,$D60)) ->  | G60: =IF(F60="","",COUNTIFS('БАЗА КЛИЕНТОВ'!$B:$B,VLOOKUP(G$40,СПРАВОЧНИК!$L:$M,2,0),'БАЗА КЛИЕНТОВ'!$C:$C,$D60)) ->  | H60: =IF(G60="","",COUNTIFS('БАЗА КЛИЕНТОВ'!$B:$B,VLOOKUP(H$40,СПРАВОЧНИК!$L:$M,2,0),'БАЗА КЛИЕНТОВ'!$C:$C,$D60)) ->  | I60: =IF(H60="","",COUNTIFS('БАЗА КЛИЕНТОВ'!$B:$B,VLOOKUP(I$40,СПРАВОЧНИК!$L:$M,2,0),'БАЗА КЛИЕНТОВ'!$C:$C,$D60)) ->  | J60: =IF(I60="","",COUNTIFS('БАЗА КЛИЕНТОВ'!$B:$B,VLOOKUP(J$40,СПРАВОЧНИК!$L:$M,2,0),'БАЗА КЛИЕНТОВ'!$C:$C,$D60)) ->  | K60: =IF(J60="","",COUNTIFS('БАЗА КЛИЕНТОВ'!$B:$B,VLOOKUP(K$40,СПРАВОЧНИК!$L:$M,2,0),'БАЗА КЛИЕНТОВ'!$C:$C,$D60)) ->  | L60: =IF(K60="","",COUNTIFS('БАЗА КЛИЕНТОВ'!$B:$B,VLOOKUP(L$40,СПРАВОЧНИК!$L:$M,2,0),'БАЗА КЛИЕНТОВ'!$C:$C,$D60)) ->  | M60: =IF(L60="","",COUNTIFS('БАЗА КЛИЕНТОВ'!$B:$B,VLOOKUP(M$40,СПРАВОЧНИК!$L:$M,2,0),'БАЗА КЛИЕНТОВ'!$C:$C,$D60)) ->  | N60: =IF(M60="","",COUNTIFS('БАЗА КЛИЕНТОВ'!$B:$B,VLOOKUP(N$40,СПРАВОЧНИК!$L:$M,2,0),'БАЗА КЛИЕНТОВ'!$C:$C,$D60)) ->  | O60: =IF(N60="","",COUNTIFS('БАЗА КЛИЕНТОВ'!$B:$B,VLOOKUP(O$40,СПРАВОЧНИК!$L:$M,2,0),'БАЗА КЛИЕНТОВ'!$C:$C,$D60)) ->  | P60: =IF(O60="","",COUNTIFS('БАЗА КЛИЕНТОВ'!$B:$B,VLOOKUP(P$40,СПРАВОЧНИК!$L:$M,2,0),'БАЗА КЛИЕНТОВ'!$C:$C,$D60)) -> 
E61: =IF(D61="","",COUNTIFS('БАЗА КЛИЕНТОВ'!$B:$B,VLOOKUP(E$40,СПРАВОЧНИК!$L:$M,2,0),'БАЗА КЛИЕНТОВ'!$C:$C,$D61)) ->  | F61: =IF(E61="","",COUNTIFS('БАЗА КЛИЕНТОВ'!$B:$B,VLOOKUP(F$40,СПРАВОЧНИК!$L:$M,2,0),'БАЗА КЛИЕНТОВ'!$C:$C,$D61)) ->  | G61: =IF(F61="","",COUNTIFS('БАЗА КЛИЕНТОВ'!$B:$B,VLOOKUP(G$40,СПРАВОЧНИК!$L:$M,2,0),'БАЗА КЛИЕНТОВ'!$C:$C,$D61)) ->  | H61: =IF(G61="","",COUNTIFS('БАЗА КЛИЕНТОВ'!$B:$B,VLOOKUP(H$40,СПРАВОЧНИК!$L:$M,2,0),'БАЗА КЛИЕНТОВ'!$C:$C,$D61)) ->  | I61: =IF(H61="","",COUNTIFS('БАЗА КЛИЕНТОВ'!$B:$B,VLOOKUP(I$40,СПРАВОЧНИК!$L:$M,2,0),'БАЗА КЛИЕНТОВ'!$C:$C,$D61)) ->  | J61: =IF(I61="","",COUNTIFS('БАЗА КЛИЕНТОВ'!$B:$B,VLOOKUP(J$40,СПРАВОЧНИК!$L:$M,2,0),'БАЗА КЛИЕНТОВ'!$C:$C,$D61)) ->  | K61: =IF(J61="","",COUNTIFS('БАЗА КЛИЕНТОВ'!$B:$B,VLOOKUP(K$40,СПРАВОЧНИК!$L:$M,2,0),'БАЗА КЛИЕНТОВ'!$C:$C,$D61)) ->  | L61: =IF(K61="","",COUNTIFS('БАЗА КЛИЕНТОВ'!$B:$B,VLOOKUP(L$40,СПРАВОЧНИК!$L:$M,2,0),'БАЗА КЛИЕНТОВ'!$C:$C,$D61)) ->  | M61: =IF(L61="","",COUNTIFS('БАЗА КЛИЕНТОВ'!$B:$B,VLOOKUP(M$40,СПРАВОЧНИК!$L:$M,2,0),'БАЗА КЛИЕНТОВ'!$C:$C,$D61)) ->  | N61: =IF(M61="","",COUNTIFS('БАЗА КЛИЕНТОВ'!$B:$B,VLOOKUP(N$40,СПРАВОЧНИК!$L:$M,2,0),'БАЗА КЛИЕНТОВ'!$C:$C,$D61)) ->  | O61: =IF(N61="","",COUNTIFS('БАЗА КЛИЕНТОВ'!$B:$B,VLOOKUP(O$40,СПРАВОЧНИК!$L:$M,2,0),'БАЗА КЛИЕНТОВ'!$C:$C,$D61)) ->  | P61: =IF(O61="","",COUNTIFS('БАЗА КЛИЕНТОВ'!$B:$B,VLOOKUP(P$40,СПРАВОЧНИК!$L:$M,2,0),'БАЗА КЛИЕНТОВ'!$C:$C,$D61)) -> 
E62: =IF(D62="","",COUNTIFS('БАЗА КЛИЕНТОВ'!$B:$B,VLOOKUP(E$40,СПРАВОЧНИК!$L:$M,2,0),'БАЗА КЛИЕНТОВ'!$C:$C,$D62)) ->  | F62: =IF(E62="","",COUNTIFS('БАЗА КЛИЕНТОВ'!$B:$B,VLOOKUP(F$40,СПРАВОЧНИК!$L:$M,2,0),'БАЗА КЛИЕНТОВ'!$C:$C,$D62)) ->  | G62: =IF(F62="","",COUNTIFS('БАЗА КЛИЕНТОВ'!$B:$B,VLOOKUP(G$40,СПРАВОЧНИК!$L:$M,2,0),'БАЗА КЛИЕНТОВ'!$C:$C,$D62)) ->  | H62: =IF(G62="","",COUNTIFS('БАЗА КЛИЕНТОВ'!$B:$B,VLOOKUP(H$40,СПРАВОЧНИК!$L:$M,2,0),'БАЗА КЛИЕНТОВ'!$C:$C,$D62)) ->  | I62: =IF(H62="","",COUNTIFS('БАЗА КЛИЕНТОВ'!$B:$B,VLOOKUP(I$40,СПРАВОЧНИК!$L:$M,2,0),'БАЗА КЛИЕНТОВ'!$C:$C,$D62)) ->  | J62: =IF(I62="","",COUNTIFS('БАЗА КЛИЕНТОВ'!$B:$B,VLOOKUP(J$40,СПРАВОЧНИК!$L:$M,2,0),'БАЗА КЛИЕНТОВ'!$C:$C,$D62)) ->  | K62: =IF(J62="","",COUNTIFS('БАЗА КЛИЕНТОВ'!$B:$B,VLOOKUP(K$40,СПРАВОЧНИК!$L:$M,2,0),'БАЗА КЛИЕНТОВ'!$C:$C,$D62)) ->  | L62: =IF(K62="","",COUNTIFS('БАЗА КЛИЕНТОВ'!$B:$B,VLOOKUP(L$40,СПРАВОЧНИК!$L:$M,2,0),'БАЗА КЛИЕНТОВ'!$C:$C,$D62)) ->  | M62: =IF(L62="","",COUNTIFS('БАЗА КЛИЕНТОВ'!$B:$B,VLOOKUP(M$40,СПРАВОЧНИК!$L:$M,2,0),'БАЗА КЛИЕНТОВ'!$C:$C,$D62)) ->  | N62: =IF(M62="","",COUNTIFS('БАЗА КЛИЕНТОВ'!$B:$B,VLOOKUP(N$40,СПРАВОЧНИК!$L:$M,2,0),'БАЗА КЛИЕНТОВ'!$C:$C,$D62)) ->  | O62: =IF(N62="","",COUNTIFS('БАЗА КЛИЕНТОВ'!$B:$B,VLOOKUP(O$40,СПРАВОЧНИК!$L:$M,2,0),'БАЗА КЛИЕНТОВ'!$C:$C,$D62)) ->  | P62: =IF(O62="","",COUNTIFS('БАЗА КЛИЕНТОВ'!$B:$B,VLOOKUP(P$40,СПРАВОЧНИК!$L:$M,2,0),'БАЗА КЛИЕНТОВ'!$C:$C,$D62)) -> 
E63: =IF(D63="","",COUNTIFS('БАЗА КЛИЕНТОВ'!$B:$B,VLOOKUP(E$40,СПРАВОЧНИК!$L:$M,2,0),'БАЗА КЛИЕНТОВ'!$C:$C,$D63)) ->  | F63: =IF(E63="","",COUNTIFS('БАЗА КЛИЕНТОВ'!$B:$B,VLOOKUP(F$40,СПРАВОЧНИК!$L:$M,2,0),'БАЗА КЛИЕНТОВ'!$C:$C,$D63)) ->  | G63: =IF(F63="","",COUNTIFS('БАЗА КЛИЕНТОВ'!$B:$B,VLOOKUP(G$40,СПРАВОЧНИК!$L:$M,2,0),'БАЗА КЛИЕНТОВ'!$C:$C,$D63)) ->  | H63: =IF(G63="","",COUNTIFS('БАЗА КЛИЕНТОВ'!$B:$B,VLOOKUP(H$40,СПРАВОЧНИК!$L:$M,2,0),'БАЗА КЛИЕНТОВ'!$C:$C,$D63)) ->  | I63: =IF(H63="","",COUNTIFS('БАЗА КЛИЕНТОВ'!$B:$B,VLOOKUP(I$40,СПРАВОЧНИК!$L:$M,2,0),'БАЗА КЛИЕНТОВ'!$C:$C,$D63)) ->  | J63: =IF(I63="","",COUNTIFS('БАЗА КЛИЕНТОВ'!$B:$B,VLOOKUP(J$40,СПРАВОЧНИК!$L:$M,2,0),'БАЗА КЛИЕНТОВ'!$C:$C,$D63)) ->  | K63: =IF(J63="","",COUNTIFS('БАЗА КЛИЕНТОВ'!$B:$B,VLOOKUP(K$40,СПРАВОЧНИК!$L:$M,2,0),'БАЗА КЛИЕНТОВ'!$C:$C,$D63)) ->  | L63: =IF(K63="","",COUNTIFS('БАЗА КЛИЕНТОВ'!$B:$B,VLOOKUP(L$40,СПРАВОЧНИК!$L:$M,2,0),'БАЗА КЛИЕНТОВ'!$C:$C,$D63)) ->  | M63: =IF(L63="","",COUNTIFS('БАЗА КЛИЕНТОВ'!$B:$B,VLOOKUP(M$40,СПРАВОЧНИК!$L:$M,2,0),'БАЗА КЛИЕНТОВ'!$C:$C,$D63)) ->  | N63: =IF(M63="","",COUNTIFS('БАЗА КЛИЕНТОВ'!$B:$B,VLOOKUP(N$40,СПРАВОЧНИК!$L:$M,2,0),'БАЗА КЛИЕНТОВ'!$C:$C,$D63)) ->  | O63: =IF(N63="","",COUNTIFS('БАЗА КЛИЕНТОВ'!$B:$B,VLOOKUP(O$40,СПРАВОЧНИК!$L:$M,2,0),'БАЗА КЛИЕНТОВ'!$C:$C,$D63)) ->  | P63: =IF(O63="","",COUNTIFS('БАЗА КЛИЕНТОВ'!$B:$B,VLOOKUP(P$40,СПРАВОЧНИК!$L:$M,2,0),'БАЗА КЛИЕНТОВ'!$C:$C,$D63)) -> 
E64: =IF(D64="","",COUNTIFS('БАЗА КЛИЕНТОВ'!$B:$B,VLOOKUP(E$40,СПРАВОЧНИК!$L:$M,2,0),'БАЗА КЛИЕНТОВ'!$C:$C,$D64)) ->  | F64: =IF(E64="","",COUNTIFS('БАЗА КЛИЕНТОВ'!$B:$B,VLOOKUP(F$40,СПРАВОЧНИК!$L:$M,2,0),'БАЗА КЛИЕНТОВ'!$C:$C,$D64)) ->  | G64: =IF(F64="","",COUNTIFS('БАЗА КЛИЕНТОВ'!$B:$B,VLOOKUP(G$40,СПРАВОЧНИК!$L:$M,2,0),'БАЗА КЛИЕНТОВ'!$C:$C,$D64)) ->  | H64: =IF(G64="","",COUNTIFS('БАЗА КЛИЕНТОВ'!$B:$B,VLOOKUP(H$40,СПРАВОЧНИК!$L:$M,2,0),'БАЗА КЛИЕНТОВ'!$C:$C,$D64)) ->  | I64: =IF(H64="","",COUNTIFS('БАЗА КЛИЕНТОВ'!$B:$B,VLOOKUP(I$40,СПРАВОЧНИК!$L:$M,2,0),'БАЗА КЛИЕНТОВ'!$C:$C,$D64)) ->  | J64: =IF(I64="","",COUNTIFS('БАЗА КЛИЕНТОВ'!$B:$B,VLOOKUP(J$40,СПРАВОЧНИК!$L:$M,2,0),'БАЗА КЛИЕНТОВ'!$C:$C,$D64)) ->  | K64: =IF(J64="","",COUNTIFS('БАЗА КЛИЕНТОВ'!$B:$B,VLOOKUP(K$40,СПРАВОЧНИК!$L:$M,2,0),'БАЗА КЛИЕНТОВ'!$C:$C,$D64)) ->  | L64: =IF(K64="","",COUNTIFS('БАЗА КЛИЕНТОВ'!$B:$B,VLOOKUP(L$40,СПРАВОЧНИК!$L:$M,2,0),'БАЗА КЛИЕНТОВ'!$C:$C,$D64)) ->  | M64: =IF(L64="","",COUNTIFS('БАЗА КЛИЕНТОВ'!$B:$B,VLOOKUP(M$40,СПРАВОЧНИК!$L:$M,2,0),'БАЗА КЛИЕНТОВ'!$C:$C,$D64)) ->  | N64: =IF(M64="","",COUNTIFS('БАЗА КЛИЕНТОВ'!$B:$B,VLOOKUP(N$40,СПРАВОЧНИК!$L:$M,2,0),'БАЗА КЛИЕНТОВ'!$C:$C,$D64)) ->  | O64: =IF(N64="","",COUNTIFS('БАЗА КЛИЕНТОВ'!$B:$B,VLOOKUP(O$40,СПРАВОЧНИК!$L:$M,2,0),'БАЗА КЛИЕНТОВ'!$C:$C,$D64)) ->  | P64: =IF(O64="","",COUNTIFS('БАЗА КЛИЕНТОВ'!$B:$B,VLOOKUP(P$40,СПРАВОЧНИК!$L:$M,2,0),'БАЗА КЛИЕНТОВ'!$C:$C,$D64)) -> 
E65: =IF(D65="","",COUNTIFS('БАЗА КЛИЕНТОВ'!$B:$B,VLOOKUP(E$40,СПРАВОЧНИК!$L:$M,2,0),'БАЗА КЛИЕНТОВ'!$C:$C,$D65)) ->  | F65: =IF(E65="","",COUNTIFS('БАЗА КЛИЕНТОВ'!$B:$B,VLOOKUP(F$40,СПРАВОЧНИК!$L:$M,2,0),'БАЗА КЛИЕНТОВ'!$C:$C,$D65)) ->  | G65: =IF(F65="","",COUNTIFS('БАЗА КЛИЕНТОВ'!$B:$B,VLOOKUP(G$40,СПРАВОЧНИК!$L:$M,2,0),'БАЗА КЛИЕНТОВ'!$C:$C,$D65)) ->  | H65: =IF(G65="","",COUNTIFS('БАЗА КЛИЕНТОВ'!$B:$B,VLOOKUP(H$40,СПРАВОЧНИК!$L:$M,2,0),'БАЗА КЛИЕНТОВ'!$C:$C,$D65)) ->  | I65: =IF(H65="","",COUNTIFS('БАЗА КЛИЕНТОВ'!$B:$B,VLOOKUP(I$40,СПРАВОЧНИК!$L:$M,2,0),'БАЗА КЛИЕНТОВ'!$C:$C,$D65)) ->  | J65: =IF(I65="","",COUNTIFS('БАЗА КЛИЕНТОВ'!$B:$B,VLOOKUP(J$40,СПРАВОЧНИК!$L:$M,2,0),'БАЗА КЛИЕНТОВ'!$C:$C,$D65)) ->  | K65: =IF(J65="","",COUNTIFS('БАЗА КЛИЕНТОВ'!$B:$B,VLOOKUP(K$40,СПРАВОЧНИК!$L:$M,2,0),'БАЗА КЛИЕНТОВ'!$C:$C,$D65)) ->  | L65: =IF(K65="","",COUNTIFS('БАЗА КЛИЕНТОВ'!$B:$B,VLOOKUP(L$40,СПРАВОЧНИК!$L:$M,2,0),'БАЗА КЛИЕНТОВ'!$C:$C,$D65)) ->  | M65: =IF(L65="","",COUNTIFS('БАЗА КЛИЕНТОВ'!$B:$B,VLOOKUP(M$40,СПРАВОЧНИК!$L:$M,2,0),'БАЗА КЛИЕНТОВ'!$C:$C,$D65)) ->  | N65: =IF(M65="","",COUNTIFS('БАЗА КЛИЕНТОВ'!$B:$B,VLOOKUP(N$40,СПРАВОЧНИК!$L:$M,2,0),'БАЗА КЛИЕНТОВ'!$C:$C,$D65)) ->  | O65: =IF(N65="","",COUNTIFS('БАЗА КЛИЕНТОВ'!$B:$B,VLOOKUP(O$40,СПРАВОЧНИК!$L:$M,2,0),'БАЗА КЛИЕНТОВ'!$C:$C,$D65)) ->  | P65: =IF(O65="","",COUNTIFS('БАЗА КЛИЕНТОВ'!$B:$B,VLOOKUP(P$40,СПРАВОЧНИК!$L:$M,2,0),'БАЗА КЛИЕНТОВ'!$C:$C,$D65)) -> 
E66: =IF(D66="","",COUNTIFS('БАЗА КЛИЕНТОВ'!$B:$B,VLOOKUP(E$40,СПРАВОЧНИК!$L:$M,2,0),'БАЗА КЛИЕНТОВ'!$C:$C,$D66)) ->  | F66: =IF(E66="","",COUNTIFS('БАЗА КЛИЕНТОВ'!$B:$B,VLOOKUP(F$40,СПРАВОЧНИК!$L:$M,2,0),'БАЗА КЛИЕНТОВ'!$C:$C,$D66)) ->  | G66: =IF(F66="","",COUNTIFS('БАЗА КЛИЕНТОВ'!$B:$B,VLOOKUP(G$40,СПРАВОЧНИК!$L:$M,2,0),'БАЗА КЛИЕНТОВ'!$C:$C,$D66)) ->  | H66: =IF(G66="","",COUNTIFS('БАЗА КЛИЕНТОВ'!$B:$B,VLOOKUP(H$40,СПРАВОЧНИК!$L:$M,2,0),'БАЗА КЛИЕНТОВ'!$C:$C,$D66)) ->  | I66: =IF(H66="","",COUNTIFS('БАЗА КЛИЕНТОВ'!$B:$B,VLOOKUP(I$40,СПРАВОЧНИК!$L:$M,2,0),'БАЗА КЛИЕНТОВ'!$C:$C,$D66)) ->  | J66: =IF(I66="","",COUNTIFS('БАЗА КЛИЕНТОВ'!$B:$B,VLOOKUP(J$40,СПРАВОЧНИК!$L:$M,2,0),'БАЗА КЛИЕНТОВ'!$C:$C,$D66)) ->  | K66: =IF(J66="","",COUNTIFS('БАЗА КЛИЕНТОВ'!$B:$B,VLOOKUP(K$40,СПРАВОЧНИК!$L:$M,2,0),'БАЗА КЛИЕНТОВ'!$C:$C,$D66)) ->  | L66: =IF(K66="","",COUNTIFS('БАЗА КЛИЕНТОВ'!$B:$B,VLOOKUP(L$40,СПРАВОЧНИК!$L:$M,2,0),'БАЗА КЛИЕНТОВ'!$C:$C,$D66)) ->  | M66: =IF(L66="","",COUNTIFS('БАЗА КЛИЕНТОВ'!$B:$B,VLOOKUP(M$40,СПРАВОЧНИК!$L:$M,2,0),'БАЗА КЛИЕНТОВ'!$C:$C,$D66)) ->  | N66: =IF(M66="","",COUNTIFS('БАЗА КЛИЕНТОВ'!$B:$B,VLOOKUP(N$40,СПРАВОЧНИК!$L:$M,2,0),'БАЗА КЛИЕНТОВ'!$C:$C,$D66)) ->  | O66: =IF(N66="","",COUNTIFS('БАЗА КЛИЕНТОВ'!$B:$B,VLOOKUP(O$40,СПРАВОЧНИК!$L:$M,2,0),'БАЗА КЛИЕНТОВ'!$C:$C,$D66)) ->  | P66: =IF(O66="","",COUNTIFS('БАЗА КЛИЕНТОВ'!$B:$B,VLOOKUP(P$40,СПРАВОЧНИК!$L:$M,2,0),'БАЗА КЛИЕНТОВ'!$C:$C,$D66)) -> 
E67: =IF(D67="","",COUNTIFS('БАЗА КЛИЕНТОВ'!$B:$B,VLOOKUP(E$40,СПРАВОЧНИК!$L:$M,2,0),'БАЗА КЛИЕНТОВ'!$C:$C,$D67)) ->  | F67: =IF(E67="","",COUNTIFS('БАЗА КЛИЕНТОВ'!$B:$B,VLOOKUP(F$40,СПРАВОЧНИК!$L:$M,2,0),'БАЗА КЛИЕНТОВ'!$C:$C,$D67)) ->  | G67: =IF(F67="","",COUNTIFS('БАЗА КЛИЕНТОВ'!$B:$B,VLOOKUP(G$40,СПРАВОЧНИК!$L:$M,2,0),'БАЗА КЛИЕНТОВ'!$C:$C,$D67)) ->  | H67: =IF(G67="","",COUNTIFS('БАЗА КЛИЕНТОВ'!$B:$B,VLOOKUP(H$40,СПРАВОЧНИК!$L:$M,2,0),'БАЗА КЛИЕНТОВ'!$C:$C,$D67)) ->  | I67: =IF(H67="","",COUNTIFS('БАЗА КЛИЕНТОВ'!$B:$B,VLOOKUP(I$40,СПРАВОЧНИК!$L:$M,2,0),'БАЗА КЛИЕНТОВ'!$C:$C,$D67)) ->  | J67: =IF(I67="","",COUNTIFS('БАЗА КЛИЕНТОВ'!$B:$B,VLOOKUP(J$40,СПРАВОЧНИК!$L:$M,2,0),'БАЗА КЛИЕНТОВ'!$C:$C,$D67)) ->  | K67: =IF(J67="","",COUNTIFS('БАЗА КЛИЕНТОВ'!$B:$B,VLOOKUP(K$40,СПРАВОЧНИК!$L:$M,2,0),'БАЗА КЛИЕНТОВ'!$C:$C,$D67)) ->  | L67: =IF(K67="","",COUNTIFS('БАЗА КЛИЕНТОВ'!$B:$B,VLOOKUP(L$40,СПРАВОЧНИК!$L:$M,2,0),'БАЗА КЛИЕНТОВ'!$C:$C,$D67)) ->  | M67: =IF(L67="","",COUNTIFS('БАЗА КЛИЕНТОВ'!$B:$B,VLOOKUP(M$40,СПРАВОЧНИК!$L:$M,2,0),'БАЗА КЛИЕНТОВ'!$C:$C,$D67)) ->  | N67: =IF(M67="","",COUNTIFS('БАЗА КЛИЕНТОВ'!$B:$B,VLOOKUP(N$40,СПРАВОЧНИК!$L:$M,2,0),'БАЗА КЛИЕНТОВ'!$C:$C,$D67)) ->  | O67: =IF(N67="","",COUNTIFS('БАЗА КЛИЕНТОВ'!$B:$B,VLOOKUP(O$40,СПРАВОЧНИК!$L:$M,2,0),'БАЗА КЛИЕНТОВ'!$C:$C,$D67)) ->  | P67: =IF(O67="","",COUNTIFS('БАЗА КЛИЕНТОВ'!$B:$B,VLOOKUP(P$40,СПРАВОЧНИК!$L:$M,2,0),'БАЗА КЛИЕНТОВ'!$C:$C,$D67)) -> 
E68: =IF(D68="","",COUNTIFS('БАЗА КЛИЕНТОВ'!$B:$B,VLOOKUP(E$40,СПРАВОЧНИК!$L:$M,2,0),'БАЗА КЛИЕНТОВ'!$C:$C,$D68)) ->  | F68: =IF(E68="","",COUNTIFS('БАЗА КЛИЕНТОВ'!$B:$B,VLOOKUP(F$40,СПРАВОЧНИК!$L:$M,2,0),'БАЗА КЛИЕНТОВ'!$C:$C,$D68)) ->  | G68: =IF(F68="","",COUNTIFS('БАЗА КЛИЕНТОВ'!$B:$B,VLOOKUP(G$40,СПРАВОЧНИК!$L:$M,2,0),'БАЗА КЛИЕНТОВ'!$C:$C,$D68)) ->  | H68: =IF(G68="","",COUNTIFS('БАЗА КЛИЕНТОВ'!$B:$B,VLOOKUP(H$40,СПРАВОЧНИК!$L:$M,2,0),'БАЗА КЛИЕНТОВ'!$C:$C,$D68)) ->  | I68: =IF(H68="","",COUNTIFS('БАЗА КЛИЕНТОВ'!$B:$B,VLOOKUP(I$40,СПРАВОЧНИК!$L:$M,2,0),'БАЗА КЛИЕНТОВ'!$C:$C,$D68)) ->  | J68: =IF(I68="","",COUNTIFS('БАЗА КЛИЕНТОВ'!$B:$B,VLOOKUP(J$40,СПРАВОЧНИК!$L:$M,2,0),'БАЗА КЛИЕНТОВ'!$C:$C,$D68)) ->  | K68: =IF(J68="","",COUNTIFS('БАЗА КЛИЕНТОВ'!$B:$B,VLOOKUP(K$40,СПРАВОЧНИК!$L:$M,2,0),'БАЗА КЛИЕНТОВ'!$C:$C,$D68)) ->  | L68: =IF(K68="","",COUNTIFS('БАЗА КЛИЕНТОВ'!$B:$B,VLOOKUP(L$40,СПРАВОЧНИК!$L:$M,2,0),'БАЗА КЛИЕНТОВ'!$C:$C,$D68)) ->  | M68: =IF(L68="","",COUNTIFS('БАЗА КЛИЕНТОВ'!$B:$B,VLOOKUP(M$40,СПРАВОЧНИК!$L:$M,2,0),'БАЗА КЛИЕНТОВ'!$C:$C,$D68)) ->  | N68: =IF(M68="","",COUNTIFS('БАЗА КЛИЕНТОВ'!$B:$B,VLOOKUP(N$40,СПРАВОЧНИК!$L:$M,2,0),'БАЗА КЛИЕНТОВ'!$C:$C,$D68)) ->  | O68: =IF(N68="","",COUNTIFS('БАЗА КЛИЕНТОВ'!$B:$B,VLOOKUP(O$40,СПРАВОЧНИК!$L:$M,2,0),'БАЗА КЛИЕНТОВ'!$C:$C,$D68)) ->  | P68: =IF(O68="","",COUNTIFS('БАЗА КЛИЕНТОВ'!$B:$B,VLOOKUP(P$40,СПРАВОЧНИК!$L:$M,2,0),'БАЗА КЛИЕНТОВ'!$C:$C,$D68)) -> 
E69: =IF(D69="","",COUNTIFS('БАЗА КЛИЕНТОВ'!$B:$B,VLOOKUP(E$40,СПРАВОЧНИК!$L:$M,2,0),'БАЗА КЛИЕНТОВ'!$C:$C,$D69)) ->  | F69: =IF(E69="","",COUNTIFS('БАЗА КЛИЕНТОВ'!$B:$B,VLOOKUP(F$40,СПРАВОЧНИК!$L:$M,2,0),'БАЗА КЛИЕНТОВ'!$C:$C,$D69)) ->  | G69: =IF(F69="","",COUNTIFS('БАЗА КЛИЕНТОВ'!$B:$B,VLOOKUP(G$40,СПРАВОЧНИК!$L:$M,2,0),'БАЗА КЛИЕНТОВ'!$C:$C,$D69)) ->  | H69: =IF(G69="","",COUNTIFS('БАЗА КЛИЕНТОВ'!$B:$B,VLOOKUP(H$40,СПРАВОЧНИК!$L:$M,2,0),'БАЗА КЛИЕНТОВ'!$C:$C,$D69)) ->  | I69: =IF(H69="","",COUNTIFS('БАЗА КЛИЕНТОВ'!$B:$B,VLOOKUP(I$40,СПРАВОЧНИК!$L:$M,2,0),'БАЗА КЛИЕНТОВ'!$C:$C,$D69)) ->  | J69: =IF(I69="","",COUNTIFS('БАЗА КЛИЕНТОВ'!$B:$B,VLOOKUP(J$40,СПРАВОЧНИК!$L:$M,2,0),'БАЗА КЛИЕНТОВ'!$C:$C,$D69)) ->  | K69: =IF(J69="","",COUNTIFS('БАЗА КЛИЕНТОВ'!$B:$B,VLOOKUP(K$40,СПРАВОЧНИК!$L:$M,2,0),'БАЗА КЛИЕНТОВ'!$C:$C,$D69)) ->  | L69: =IF(K69="","",COUNTIFS('БАЗА КЛИЕНТОВ'!$B:$B,VLOOKUP(L$40,СПРАВОЧНИК!$L:$M,2,0),'БАЗА КЛИЕНТОВ'!$C:$C,$D69)) ->  | M69: =IF(L69="","",COUNTIFS('БАЗА КЛИЕНТОВ'!$B:$B,VLOOKUP(M$40,СПРАВОЧНИК!$L:$M,2,0),'БАЗА КЛИЕНТОВ'!$C:$C,$D69)) ->  | N69: =IF(M69="","",COUNTIFS('БАЗА КЛИЕНТОВ'!$B:$B,VLOOKUP(N$40,СПРАВОЧНИК!$L:$M,2,0),'БАЗА КЛИЕНТОВ'!$C:$C,$D69)) ->  | O69: =IF(N69="","",COUNTIFS('БАЗА КЛИЕНТОВ'!$B:$B,VLOOKUP(O$40,СПРАВОЧНИК!$L:$M,2,0),'БАЗА КЛИЕНТОВ'!$C:$C,$D69)) ->  | P69: =IF(O69="","",COUNTIFS('БАЗА КЛИЕНТОВ'!$B:$B,VLOOKUP(P$40,СПРАВОЧНИК!$L:$M,2,0),'БАЗА КЛИЕНТОВ'!$C:$C,$D69)) -> 
E70: =IF(D70="","",COUNTIFS('БАЗА КЛИЕНТОВ'!$B:$B,VLOOKUP(E$40,СПРАВОЧНИК!$L:$M,2,0),'БАЗА КЛИЕНТОВ'!$C:$C,$D70)) ->  | F70: =IF(E70="","",COUNTIFS('БАЗА КЛИЕНТОВ'!$B:$B,VLOOKUP(F$40,СПРАВОЧНИК!$L:$M,2,0),'БАЗА КЛИЕНТОВ'!$C:$C,$D70)) ->  | G70: =IF(F70="","",COUNTIFS('БАЗА КЛИЕНТОВ'!$B:$B,VLOOKUP(G$40,СПРАВОЧНИК!$L:$M,2,0),'БАЗА КЛИЕНТОВ'!$C:$C,$D70)) ->  | H70: =IF(G70="","",COUNTIFS('БАЗА КЛИЕНТОВ'!$B:$B,VLOOKUP(H$40,СПРАВОЧНИК!$L:$M,2,0),'БАЗА КЛИЕНТОВ'!$C:$C,$D70)) ->  | I70: =IF(H70="","",COUNTIFS('БАЗА КЛИЕНТОВ'!$B:$B,VLOOKUP(I$40,СПРАВОЧНИК!$L:$M,2,0),'БАЗА КЛИЕНТОВ'!$C:$C,$D70)) ->  | J70: =IF(I70="","",COUNTIFS('БАЗА КЛИЕНТОВ'!$B:$B,VLOOKUP(J$40,СПРАВОЧНИК!$L:$M,2,0),'БАЗА КЛИЕНТОВ'!$C:$C,$D70)) ->  | K70: =IF(J70="","",COUNTIFS('БАЗА КЛИЕНТОВ'!$B:$B,VLOOKUP(K$40,СПРАВОЧНИК!$L:$M,2,0),'БАЗА КЛИЕНТОВ'!$C:$C,$D70)) ->  | L70: =IF(K70="","",COUNTIFS('БАЗА КЛИЕНТОВ'!$B:$B,VLOOKUP(L$40,СПРАВОЧНИК!$L:$M,2,0),'БАЗА КЛИЕНТОВ'!$C:$C,$D70)) ->  | M70: =IF(L70="","",COUNTIFS('БАЗА КЛИЕНТОВ'!$B:$B,VLOOKUP(M$40,СПРАВОЧНИК!$L:$M,2,0),'БАЗА КЛИЕНТОВ'!$C:$C,$D70)) ->  | N70: =IF(M70="","",COUNTIFS('БАЗА КЛИЕНТОВ'!$B:$B,VLOOKUP(N$40,СПРАВОЧНИК!$L:$M,2,0),'БАЗА КЛИЕНТОВ'!$C:$C,$D70)) ->  | O70: =IF(N70="","",COUNTIFS('БАЗА КЛИЕНТОВ'!$B:$B,VLOOKUP(O$40,СПРАВОЧНИК!$L:$M,2,0),'БАЗА КЛИЕНТОВ'!$C:$C,$D70)) ->  | P70: =IF(O70="","",COUNTIFS('БАЗА КЛИЕНТОВ'!$B:$B,VLOOKUP(P$40,СПРАВОЧНИК!$L:$M,2,0),'БАЗА КЛИЕНТОВ'!$C:$C,$D70)) -> 
E71: =IF(D71="","",COUNTIFS('БАЗА КЛИЕНТОВ'!$B:$B,VLOOKUP(E$40,СПРАВОЧНИК!$L:$M,2,0),'БАЗА КЛИЕНТОВ'!$C:$C,$D71)) ->  | F71: =IF(E71="","",COUNTIFS('БАЗА КЛИЕНТОВ'!$B:$B,VLOOKUP(F$40,СПРАВОЧНИК!$L:$M,2,0),'БАЗА КЛИЕНТОВ'!$C:$C,$D71)) ->  | G71: =IF(F71="","",COUNTIFS('БАЗА КЛИЕНТОВ'!$B:$B,VLOOKUP(G$40,СПРАВОЧНИК!$L:$M,2,0),'БАЗА КЛИЕНТОВ'!$C:$C,$D71)) ->  | H71: =IF(G71="","",COUNTIFS('БАЗА КЛИЕНТОВ'!$B:$B,VLOOKUP(H$40,СПРАВОЧНИК!$L:$M,2,0),'БАЗА КЛИЕНТОВ'!$C:$C,$D71)) ->  | I71: =IF(H71="","",COUNTIFS('БАЗА КЛИЕНТОВ'!$B:$B,VLOOKUP(I$40,СПРАВОЧНИК!$L:$M,2,0),'БАЗА КЛИЕНТОВ'!$C:$C,$D71)) ->  | J71: =IF(I71="","",COUNTIFS('БАЗА КЛИЕНТОВ'!$B:$B,VLOOKUP(J$40,СПРАВОЧНИК!$L:$M,2,0),'БАЗА КЛИЕНТОВ'!$C:$C,$D71)) ->  | K71: =IF(J71="","",COUNTIFS('БАЗА КЛИЕНТОВ'!$B:$B,VLOOKUP(K$40,СПРАВОЧНИК!$L:$M,2,0),'БАЗА КЛИЕНТОВ'!$C:$C,$D71)) ->  | L71: =IF(K71="","",COUNTIFS('БАЗА КЛИЕНТОВ'!$B:$B,VLOOKUP(L$40,СПРАВОЧНИК!$L:$M,2,0),'БАЗА КЛИЕНТОВ'!$C:$C,$D71)) ->  | M71: =IF(L71="","",COUNTIFS('БАЗА КЛИЕНТОВ'!$B:$B,VLOOKUP(M$40,СПРАВОЧНИК!$L:$M,2,0),'БАЗА КЛИЕНТОВ'!$C:$C,$D71)) ->  | N71: =IF(M71="","",COUNTIFS('БАЗА КЛИЕНТОВ'!$B:$B,VLOOKUP(N$40,СПРАВОЧНИК!$L:$M,2,0),'БАЗА КЛИЕНТОВ'!$C:$C,$D71)) ->  | O71: =IF(N71="","",COUNTIFS('БАЗА КЛИЕНТОВ'!$B:$B,VLOOKUP(O$40,СПРАВОЧНИК!$L:$M,2,0),'БАЗА КЛИЕНТОВ'!$C:$C,$D71)) ->  | P71: =IF(O71="","",COUNTIFS('БАЗА КЛИЕНТОВ'!$B:$B,VLOOKUP(P$40,СПРАВОЧНИК!$L:$M,2,0),'БАЗА КЛИЕНТОВ'!$C:$C,$D71)) -> 
E72: =IF(D72="","",COUNTIFS('БАЗА КЛИЕНТОВ'!$B:$B,VLOOKUP(E$40,СПРАВОЧНИК!$L:$M,2,0),'БАЗА КЛИЕНТОВ'!$C:$C,$D72)) ->  | F72: =IF(E72="","",COUNTIFS('БАЗА КЛИЕНТОВ'!$B:$B,VLOOKUP(F$40,СПРАВОЧНИК!$L:$M,2,0),'БАЗА КЛИЕНТОВ'!$C:$C,$D72)) ->  | G72: =IF(F72="","",COUNTIFS('БАЗА КЛИЕНТОВ'!$B:$B,VLOOKUP(G$40,СПРАВОЧНИК!$L:$M,2,0),'БАЗА КЛИЕНТОВ'!$C:$C,$D72)) ->  | H72: =IF(G72="","",COUNTIFS('БАЗА КЛИЕНТОВ'!$B:$B,VLOOKUP(H$40,СПРАВОЧНИК!$L:$M,2,0),'БАЗА КЛИЕНТОВ'!$C:$C,$D72)) ->  | I72: =IF(H72="","",COUNTIFS('БАЗА КЛИЕНТОВ'!$B:$B,VLOOKUP(I$40,СПРАВОЧНИК!$L:$M,2,0),'БАЗА КЛИЕНТОВ'!$C:$C,$D72)) ->  | J72: =IF(I72="","",COUNTIFS('БАЗА КЛИЕНТОВ'!$B:$B,VLOOKUP(J$40,СПРАВОЧНИК!$L:$M,2,0),'БАЗА КЛИЕНТОВ'!$C:$C,$D72)) ->  | K72: =IF(J72="","",COUNTIFS('БАЗА КЛИЕНТОВ'!$B:$B,VLOOKUP(K$40,СПРАВОЧНИК!$L:$M,2,0),'БАЗА КЛИЕНТОВ'!$C:$C,$D72)) ->  | L72: =IF(K72="","",COUNTIFS('БАЗА КЛИЕНТОВ'!$B:$B,VLOOKUP(L$40,СПРАВОЧНИК!$L:$M,2,0),'БАЗА КЛИЕНТОВ'!$C:$C,$D72)) ->  | M72: =IF(L72="","",COUNTIFS('БАЗА КЛИЕНТОВ'!$B:$B,VLOOKUP(M$40,СПРАВОЧНИК!$L:$M,2,0),'БАЗА КЛИЕНТОВ'!$C:$C,$D72)) ->  | N72: =IF(M72="","",COUNTIFS('БАЗА КЛИЕНТОВ'!$B:$B,VLOOKUP(N$40,СПРАВОЧНИК!$L:$M,2,0),'БАЗА КЛИЕНТОВ'!$C:$C,$D72)) ->  | O72: =IF(N72="","",COUNTIFS('БАЗА КЛИЕНТОВ'!$B:$B,VLOOKUP(O$40,СПРАВОЧНИК!$L:$M,2,0),'БАЗА КЛИЕНТОВ'!$C:$C,$D72)) ->  | P72: =IF(O72="","",COUNTIFS('БАЗА КЛИЕНТОВ'!$B:$B,VLOOKUP(P$40,СПРАВОЧНИК!$L:$M,2,0),'БАЗА КЛИЕНТОВ'!$C:$C,$D72)) -> 
E73: =IF(D73="","",COUNTIFS('БАЗА КЛИЕНТОВ'!$B:$B,VLOOKUP(E$40,СПРАВОЧНИК!$L:$M,2,0),'БАЗА КЛИЕНТОВ'!$C:$C,$D73)) ->  | F73: =IF(E73="","",COUNTIFS('БАЗА КЛИЕНТОВ'!$B:$B,VLOOKUP(F$40,СПРАВОЧНИК!$L:$M,2,0),'БАЗА КЛИЕНТОВ'!$C:$C,$D73)) ->  | G73: =IF(F73="","",COUNTIFS('БАЗА КЛИЕНТОВ'!$B:$B,VLOOKUP(G$40,СПРАВОЧНИК!$L:$M,2,0),'БАЗА КЛИЕНТОВ'!$C:$C,$D73)) ->  | H73: =IF(G73="","",COUNTIFS('БАЗА КЛИЕНТОВ'!$B:$B,VLOOKUP(H$40,СПРАВОЧНИК!$L:$M,2,0),'БАЗА КЛИЕНТОВ'!$C:$C,$D73)) ->  | I73: =IF(H73="","",COUNTIFS('БАЗА КЛИЕНТОВ'!$B:$B,VLOOKUP(I$40,СПРАВОЧНИК!$L:$M,2,0),'БАЗА КЛИЕНТОВ'!$C:$C,$D73)) ->  | J73: =IF(I73="","",COUNTIFS('БАЗА КЛИЕНТОВ'!$B:$B,VLOOKUP(J$40,СПРАВОЧНИК!$L:$M,2,0),'БАЗА КЛИЕНТОВ'!$C:$C,$D73)) ->  | K73: =IF(J73="","",COUNTIFS('БАЗА КЛИЕНТОВ'!$B:$B,VLOOKUP(K$40,СПРАВОЧНИК!$L:$M,2,0),'БАЗА КЛИЕНТОВ'!$C:$C,$D73)) ->  | L73: =IF(K73="","",COUNTIFS('БАЗА КЛИЕНТОВ'!$B:$B,VLOOKUP(L$40,СПРАВОЧНИК!$L:$M,2,0),'БАЗА КЛИЕНТОВ'!$C:$C,$D73)) ->  | M73: =IF(L73="","",COUNTIFS('БАЗА КЛИЕНТОВ'!$B:$B,VLOOKUP(M$40,СПРАВОЧНИК!$L:$M,2,0),'БАЗА КЛИЕНТОВ'!$C:$C,$D73)) ->  | N73: =IF(M73="","",COUNTIFS('БАЗА КЛИЕНТОВ'!$B:$B,VLOOKUP(N$40,СПРАВОЧНИК!$L:$M,2,0),'БАЗА КЛИЕНТОВ'!$C:$C,$D73)) ->  | O73: =IF(N73="","",COUNTIFS('БАЗА КЛИЕНТОВ'!$B:$B,VLOOKUP(O$40,СПРАВОЧНИК!$L:$M,2,0),'БАЗА КЛИЕНТОВ'!$C:$C,$D73)) ->  | P73: =IF(O73="","",COUNTIFS('БАЗА КЛИЕНТОВ'!$B:$B,VLOOKUP(P$40,СПРАВОЧНИК!$L:$M,2,0),'БАЗА КЛИЕНТОВ'!$C:$C,$D73)) -> 
E74: =IF(D74="","",COUNTIFS('БАЗА КЛИЕНТОВ'!$B:$B,VLOOKUP(E$40,СПРАВОЧНИК!$L:$M,2,0),'БАЗА КЛИЕНТОВ'!$C:$C,$D74)) ->  | F74: =IF(E74="","",COUNTIFS('БАЗА КЛИЕНТОВ'!$B:$B,VLOOKUP(F$40,СПРАВОЧНИК!$L:$M,2,0),'БАЗА КЛИЕНТОВ'!$C:$C,$D74)) ->  | G74: =IF(F74="","",COUNTIFS('БАЗА КЛИЕНТОВ'!$B:$B,VLOOKUP(G$40,СПРАВОЧНИК!$L:$M,2,0),'БАЗА КЛИЕНТОВ'!$C:$C,$D74)) ->  | H74: =IF(G74="","",COUNTIFS('БАЗА КЛИЕНТОВ'!$B:$B,VLOOKUP(H$40,СПРАВОЧНИК!$L:$M,2,0),'БАЗА КЛИЕНТОВ'!$C:$C,$D74)) ->  | I74: =IF(H74="","",COUNTIFS('БАЗА КЛИЕНТОВ'!$B:$B,VLOOKUP(I$40,СПРАВОЧНИК!$L:$M,2,0),'БАЗА КЛИЕНТОВ'!$C:$C,$D74)) ->  | J74: =IF(I74="","",COUNTIFS('БАЗА КЛИЕНТОВ'!$B:$B,VLOOKUP(J$40,СПРАВОЧНИК!$L:$M,2,0),'БАЗА КЛИЕНТОВ'!$C:$C,$D74)) ->  | K74: =IF(J74="","",COUNTIFS('БАЗА КЛИЕНТОВ'!$B:$B,VLOOKUP(K$40,СПРАВОЧНИК!$L:$M,2,0),'БАЗА КЛИЕНТОВ'!$C:$C,$D74)) ->  | L74: =IF(K74="","",COUNTIFS('БАЗА КЛИЕНТОВ'!$B:$B,VLOOKUP(L$40,СПРАВОЧНИК!$L:$M,2,0),'БАЗА КЛИЕНТОВ'!$C:$C,$D74)) ->  | M74: =IF(L74="","",COUNTIFS('БАЗА КЛИЕНТОВ'!$B:$B,VLOOKUP(M$40,СПРАВОЧНИК!$L:$M,2,0),'БАЗА КЛИЕНТОВ'!$C:$C,$D74)) ->  | N74: =IF(M74="","",COUNTIFS('БАЗА КЛИЕНТОВ'!$B:$B,VLOOKUP(N$40,СПРАВОЧНИК!$L:$M,2,0),'БАЗА КЛИЕНТОВ'!$C:$C,$D74)) ->  | O74: =IF(N74="","",COUNTIFS('БАЗА КЛИЕНТОВ'!$B:$B,VLOOKUP(O$40,СПРАВОЧНИК!$L:$M,2,0),'БАЗА КЛИЕНТОВ'!$C:$C,$D74)) ->  | P74: =IF(O74="","",COUNTIFS('БАЗА КЛИЕНТОВ'!$B:$B,VLOOKUP(P$40,СПРАВОЧНИК!$L:$M,2,0),'БАЗА КЛИЕНТОВ'!$C:$C,$D74)) -> 
E75: =IF(D75="","",COUNTIFS('БАЗА КЛИЕНТОВ'!$B:$B,VLOOKUP(E$40,СПРАВОЧНИК!$L:$M,2,0),'БАЗА КЛИЕНТОВ'!$C:$C,$D75)) ->  | F75: =IF(E75="","",COUNTIFS('БАЗА КЛИЕНТОВ'!$B:$B,VLOOKUP(F$40,СПРАВОЧНИК!$L:$M,2,0),'БАЗА КЛИЕНТОВ'!$C:$C,$D75)) ->  | G75: =IF(F75="","",COUNTIFS('БАЗА КЛИЕНТОВ'!$B:$B,VLOOKUP(G$40,СПРАВОЧНИК!$L:$M,2,0),'БАЗА КЛИЕНТОВ'!$C:$C,$D75)) ->  | H75: =IF(G75="","",COUNTIFS('БАЗА КЛИЕНТОВ'!$B:$B,VLOOKUP(H$40,СПРАВОЧНИК!$L:$M,2,0),'БАЗА КЛИЕНТОВ'!$C:$C,$D75)) ->  | I75: =IF(H75="","",COUNTIFS('БАЗА КЛИЕНТОВ'!$B:$B,VLOOKUP(I$40,СПРАВОЧНИК!$L:$M,2,0),'БАЗА КЛИЕНТОВ'!$C:$C,$D75)) ->  | J75: =IF(I75="","",COUNTIFS('БАЗА КЛИЕНТОВ'!$B:$B,VLOOKUP(J$40,СПРАВОЧНИК!$L:$M,2,0),'БАЗА КЛИЕНТОВ'!$C:$C,$D75)) ->  | K75: =IF(J75="","",COUNTIFS('БАЗА КЛИЕНТОВ'!$B:$B,VLOOKUP(K$40,СПРАВОЧНИК!$L:$M,2,0),'БАЗА КЛИЕНТОВ'!$C:$C,$D75)) ->  | L75: =IF(K75="","",COUNTIFS('БАЗА КЛИЕНТОВ'!$B:$B,VLOOKUP(L$40,СПРАВОЧНИК!$L:$M,2,0),'БАЗА КЛИЕНТОВ'!$C:$C,$D75)) ->  | M75: =IF(L75="","",COUNTIFS('БАЗА КЛИЕНТОВ'!$B:$B,VLOOKUP(M$40,СПРАВОЧНИК!$L:$M,2,0),'БАЗА КЛИЕНТОВ'!$C:$C,$D75)) ->  | N75: =IF(M75="","",COUNTIFS('БАЗА КЛИЕНТОВ'!$B:$B,VLOOKUP(N$40,СПРАВОЧНИК!$L:$M,2,0),'БАЗА КЛИЕНТОВ'!$C:$C,$D75)) ->  | O75: =IF(N75="","",COUNTIFS('БАЗА КЛИЕНТОВ'!$B:$B,VLOOKUP(O$40,СПРАВОЧНИК!$L:$M,2,0),'БАЗА КЛИЕНТОВ'!$C:$C,$D75)) ->  | P75: =IF(O75="","",COUNTIFS('БАЗА КЛИЕНТОВ'!$B:$B,VLOOKUP(P$40,СПРАВОЧНИК!$L:$M,2,0),'БАЗА КЛИЕНТОВ'!$C:$C,$D75)) -> 
E76: =IF(D76="","",COUNTIFS('БАЗА КЛИЕНТОВ'!$B:$B,VLOOKUP(E$40,СПРАВОЧНИК!$L:$M,2,0),'БАЗА КЛИЕНТОВ'!$C:$C,$D76)) ->  | F76: =IF(E76="","",COUNTIFS('БАЗА КЛИЕНТОВ'!$B:$B,VLOOKUP(F$40,СПРАВОЧНИК!$L:$M,2,0),'БАЗА КЛИЕНТОВ'!$C:$C,$D76)) ->  | G76: =IF(F76="","",COUNTIFS('БАЗА КЛИЕНТОВ'!$B:$B,VLOOKUP(G$40,СПРАВОЧНИК!$L:$M,2,0),'БАЗА КЛИЕНТОВ'!$C:$C,$D76)) ->  | H76: =IF(G76="","",COUNTIFS('БАЗА КЛИЕНТОВ'!$B:$B,VLOOKUP(H$40,СПРАВОЧНИК!$L:$M,2,0),'БАЗА КЛИЕНТОВ'!$C:$C,$D76)) ->  | I76: =IF(H76="","",COUNTIFS('БАЗА КЛИЕНТОВ'!$B:$B,VLOOKUP(I$40,СПРАВОЧНИК!$L:$M,2,0),'БАЗА КЛИЕНТОВ'!$C:$C,$D76)) ->  | J76: =IF(I76="","",COUNTIFS('БАЗА КЛИЕНТОВ'!$B:$B,VLOOKUP(J$40,СПРАВОЧНИК!$L:$M,2,0),'БАЗА КЛИЕНТОВ'!$C:$C,$D76)) ->  | K76: =IF(J76="","",COUNTIFS('БАЗА КЛИЕНТОВ'!$B:$B,VLOOKUP(K$40,СПРАВОЧНИК!$L:$M,2,0),'БАЗА КЛИЕНТОВ'!$C:$C,$D76)) ->  | L76: =IF(K76="","",COUNTIFS('БАЗА КЛИЕНТОВ'!$B:$B,VLOOKUP(L$40,СПРАВОЧНИК!$L:$M,2,0),'БАЗА КЛИЕНТОВ'!$C:$C,$D76)) ->  | M76: =IF(L76="","",COUNTIFS('БАЗА КЛИЕНТОВ'!$B:$B,VLOOKUP(M$40,СПРАВОЧНИК!$L:$M,2,0),'БАЗА КЛИЕНТОВ'!$C:$C,$D76)) ->  | N76: =IF(M76="","",COUNTIFS('БАЗА КЛИЕНТОВ'!$B:$B,VLOOKUP(N$40,СПРАВОЧНИК!$L:$M,2,0),'БАЗА КЛИЕНТОВ'!$C:$C,$D76)) ->  | O76: =IF(N76="","",COUNTIFS('БАЗА КЛИЕНТОВ'!$B:$B,VLOOKUP(O$40,СПРАВОЧНИК!$L:$M,2,0),'БАЗА КЛИЕНТОВ'!$C:$C,$D76)) ->  | P76: =IF(O76="","",COUNTIFS('БАЗА КЛИЕНТОВ'!$B:$B,VLOOKUP(P$40,СПРАВОЧНИК!$L:$M,2,0),'БАЗА КЛИЕНТОВ'!$C:$C,$D76)) -> 
E77: =IF(D77="","",COUNTIFS('БАЗА КЛИЕНТОВ'!$B:$B,VLOOKUP(E$40,СПРАВОЧНИК!$L:$M,2,0),'БАЗА КЛИЕНТОВ'!$C:$C,$D77)) ->  | F77: =IF(E77="","",COUNTIFS('БАЗА КЛИЕНТОВ'!$B:$B,VLOOKUP(F$40,СПРАВОЧНИК!$L:$M,2,0),'БАЗА КЛИЕНТОВ'!$C:$C,$D77)) ->  | G77: =IF(F77="","",COUNTIFS('БАЗА КЛИЕНТОВ'!$B:$B,VLOOKUP(G$40,СПРАВОЧНИК!$L:$M,2,0),'БАЗА КЛИЕНТОВ'!$C:$C,$D77)) ->  | H77: =IF(G77="","",COUNTIFS('БАЗА КЛИЕНТОВ'!$B:$B,VLOOKUP(H$40,СПРАВОЧНИК!$L:$M,2,0),'БАЗА КЛИЕНТОВ'!$C:$C,$D77)) ->  | I77: =IF(H77="","",COUNTIFS('БАЗА КЛИЕНТОВ'!$B:$B,VLOOKUP(I$40,СПРАВОЧНИК!$L:$M,2,0),'БАЗА КЛИЕНТОВ'!$C:$C,$D77)) ->  | J77: =IF(I77="","",COUNTIFS('БАЗА КЛИЕНТОВ'!$B:$B,VLOOKUP(J$40,СПРАВОЧНИК!$L:$M,2,0),'БАЗА КЛИЕНТОВ'!$C:$C,$D77)) ->  | K77: =IF(J77="","",COUNTIFS('БАЗА КЛИЕНТОВ'!$B:$B,VLOOKUP(K$40,СПРАВОЧНИК!$L:$M,2,0),'БАЗА КЛИЕНТОВ'!$C:$C,$D77)) ->  | L77: =IF(K77="","",COUNTIFS('БАЗА КЛИЕНТОВ'!$B:$B,VLOOKUP(L$40,СПРАВОЧНИК!$L:$M,2,0),'БАЗА КЛИЕНТОВ'!$C:$C,$D77)) ->  | M77: =IF(L77="","",COUNTIFS('БАЗА КЛИЕНТОВ'!$B:$B,VLOOKUP(M$40,СПРАВОЧНИК!$L:$M,2,0),'БАЗА КЛИЕНТОВ'!$C:$C,$D77)) ->  | N77: =IF(M77="","",COUNTIFS('БАЗА КЛИЕНТОВ'!$B:$B,VLOOKUP(N$40,СПРАВОЧНИК!$L:$M,2,0),'БАЗА КЛИЕНТОВ'!$C:$C,$D77)) ->  | O77: =IF(N77="","",COUNTIFS('БАЗА КЛИЕНТОВ'!$B:$B,VLOOKUP(O$40,СПРАВОЧНИК!$L:$M,2,0),'БАЗА КЛИЕНТОВ'!$C:$C,$D77)) ->  | P77: =IF(O77="","",COUNTIFS('БАЗА КЛИЕНТОВ'!$B:$B,VLOOKUP(P$40,СПРАВОЧНИК!$L:$M,2,0),'БАЗА КЛИЕНТОВ'!$C:$C,$D77)) -> 
E78: =IF(D78="","",COUNTIFS('БАЗА КЛИЕНТОВ'!$B:$B,VLOOKUP(E$40,СПРАВОЧНИК!$L:$M,2,0),'БАЗА КЛИЕНТОВ'!$C:$C,$D78)) ->  | F78: =IF(E78="","",COUNTIFS('БАЗА КЛИЕНТОВ'!$B:$B,VLOOKUP(F$40,СПРАВОЧНИК!$L:$M,2,0),'БАЗА КЛИЕНТОВ'!$C:$C,$D78)) ->  | G78: =IF(F78="","",COUNTIFS('БАЗА КЛИЕНТОВ'!$B:$B,VLOOKUP(G$40,СПРАВОЧНИК!$L:$M,2,0),'БАЗА КЛИЕНТОВ'!$C:$C,$D78)) ->  | H78: =IF(G78="","",COUNTIFS('БАЗА КЛИЕНТОВ'!$B:$B,VLOOKUP(H$40,СПРАВОЧНИК!$L:$M,2,0),'БАЗА КЛИЕНТОВ'!$C:$C,$D78)) ->  | I78: =IF(H78="","",COUNTIFS('БАЗА КЛИЕНТОВ'!$B:$B,VLOOKUP(I$40,СПРАВОЧНИК!$L:$M,2,0),'БАЗА КЛИЕНТОВ'!$C:$C,$D78)) ->  | J78: =IF(I78="","",COUNTIFS('БАЗА КЛИЕНТОВ'!$B:$B,VLOOKUP(J$40,СПРАВОЧНИК!$L:$M,2,0),'БАЗА КЛИЕНТОВ'!$C:$C,$D78)) ->  | K78: =IF(J78="","",COUNTIFS('БАЗА КЛИЕНТОВ'!$B:$B,VLOOKUP(K$40,СПРАВОЧНИК!$L:$M,2,0),'БАЗА КЛИЕНТОВ'!$C:$C,$D78)) ->  | L78: =IF(K78="","",COUNTIFS('БАЗА КЛИЕНТОВ'!$B:$B,VLOOKUP(L$40,СПРАВОЧНИК!$L:$M,2,0),'БАЗА КЛИЕНТОВ'!$C:$C,$D78)) ->  | M78: =IF(L78="","",COUNTIFS('БАЗА КЛИЕНТОВ'!$B:$B,VLOOKUP(M$40,СПРАВОЧНИК!$L:$M,2,0),'БАЗА КЛИЕНТОВ'!$C:$C,$D78)) ->  | N78: =IF(M78="","",COUNTIFS('БАЗА КЛИЕНТОВ'!$B:$B,VLOOKUP(N$40,СПРАВОЧНИК!$L:$M,2,0),'БАЗА КЛИЕНТОВ'!$C:$C,$D78)) ->  | O78: =IF(N78="","",COUNTIFS('БАЗА КЛИЕНТОВ'!$B:$B,VLOOKUP(O$40,СПРАВОЧНИК!$L:$M,2,0),'БАЗА КЛИЕНТОВ'!$C:$C,$D78)) ->  | P78: =IF(O78="","",COUNTIFS('БАЗА КЛИЕНТОВ'!$B:$B,VLOOKUP(P$40,СПРАВОЧНИК!$L:$M,2,0),'БАЗА КЛИЕНТОВ'!$C:$C,$D78)) -> 
E79: =IF(D79="","",COUNTIFS('БАЗА КЛИЕНТОВ'!$B:$B,VLOOKUP(E$40,СПРАВОЧНИК!$L:$M,2,0),'БАЗА КЛИЕНТОВ'!$C:$C,$D79)) ->  | F79: =IF(E79="","",COUNTIFS('БАЗА КЛИЕНТОВ'!$B:$B,VLOOKUP(F$40,СПРАВОЧНИК!$L:$M,2,0),'БАЗА КЛИЕНТОВ'!$C:$C,$D79)) ->  | G79: =IF(F79="","",COUNTIFS('БАЗА КЛИЕНТОВ'!$B:$B,VLOOKUP(G$40,СПРАВОЧНИК!$L:$M,2,0),'БАЗА КЛИЕНТОВ'!$C:$C,$D79)) ->  | H79: =IF(G79="","",COUNTIFS('БАЗА КЛИЕНТОВ'!$B:$B,VLOOKUP(H$40,СПРАВОЧНИК!$L:$M,2,0),'БАЗА КЛИЕНТОВ'!$C:$C,$D79)) ->  | I79: =IF(H79="","",COUNTIFS('БАЗА КЛИЕНТОВ'!$B:$B,VLOOKUP(I$40,СПРАВОЧНИК!$L:$M,2,0),'БАЗА КЛИЕНТОВ'!$C:$C,$D79)) ->  | J79: =IF(I79="","",COUNTIFS('БАЗА КЛИЕНТОВ'!$B:$B,VLOOKUP(J$40,СПРАВОЧНИК!$L:$M,2,0),'БАЗА КЛИЕНТОВ'!$C:$C,$D79)) ->  | K79: =IF(J79="","",COUNTIFS('БАЗА КЛИЕНТОВ'!$B:$B,VLOOKUP(K$40,СПРАВОЧНИК!$L:$M,2,0),'БАЗА КЛИЕНТОВ'!$C:$C,$D79)) ->  | L79: =IF(K79="","",COUNTIFS('БАЗА КЛИЕНТОВ'!$B:$B,VLOOKUP(L$40,СПРАВОЧНИК!$L:$M,2,0),'БАЗА КЛИЕНТОВ'!$C:$C,$D79)) ->  | M79: =IF(L79="","",COUNTIFS('БАЗА КЛИЕНТОВ'!$B:$B,VLOOKUP(M$40,СПРАВОЧНИК!$L:$M,2,0),'БАЗА КЛИЕНТОВ'!$C:$C,$D79)) ->  | N79: =IF(M79="","",COUNTIFS('БАЗА КЛИЕНТОВ'!$B:$B,VLOOKUP(N$40,СПРАВОЧНИК!$L:$M,2,0),'БАЗА КЛИЕНТОВ'!$C:$C,$D79)) ->  | O79: =IF(N79="","",COUNTIFS('БАЗА КЛИЕНТОВ'!$B:$B,VLOOKUP(O$40,СПРАВОЧНИК!$L:$M,2,0),'БАЗА КЛИЕНТОВ'!$C:$C,$D79)) ->  | P79: =IF(O79="","",COUNTIFS('БАЗА КЛИЕНТОВ'!$B:$B,VLOOKUP(P$40,СПРАВОЧНИК!$L:$M,2,0),'БАЗА КЛИЕНТОВ'!$C:$C,$D79)) -> 
E80: =IF(D80="","",COUNTIFS('БАЗА КЛИЕНТОВ'!$B:$B,VLOOKUP(E$40,СПРАВОЧНИК!$L:$M,2,0),'БАЗА КЛИЕНТОВ'!$C:$C,$D80)) ->  | F80: =IF(E80="","",COUNTIFS('БАЗА КЛИЕНТОВ'!$B:$B,VLOOKUP(F$40,СПРАВОЧНИК!$L:$M,2,0),'БАЗА КЛИЕНТОВ'!$C:$C,$D80)) ->  | G80: =IF(F80="","",COUNTIFS('БАЗА КЛИЕНТОВ'!$B:$B,VLOOKUP(G$40,СПРАВОЧНИК!$L:$M,2,0),'БАЗА КЛИЕНТОВ'!$C:$C,$D80)) ->  | H80: =IF(G80="","",COUNTIFS('БАЗА КЛИЕНТОВ'!$B:$B,VLOOKUP(H$40,СПРАВОЧНИК!$L:$M,2,0),'БАЗА КЛИЕНТОВ'!$C:$C,$D80)) ->  | I80: =IF(H80="","",COUNTIFS('БАЗА КЛИЕНТОВ'!$B:$B,VLOOKUP(I$40,СПРАВОЧНИК!$L:$M,2,0),'БАЗА КЛИЕНТОВ'!$C:$C,$D80)) ->  | J80: =IF(I80="","",COUNTIFS('БАЗА КЛИЕНТОВ'!$B:$B,VLOOKUP(J$40,СПРАВОЧНИК!$L:$M,2,0),'БАЗА КЛИЕНТОВ'!$C:$C,$D80)) ->  | K80: =IF(J80="","",COUNTIFS('БАЗА КЛИЕНТОВ'!$B:$B,VLOOKUP(K$40,СПРАВОЧНИК!$L:$M,2,0),'БАЗА КЛИЕНТОВ'!$C:$C,$D80)) ->  | L80: =IF(K80="","",COUNTIFS('БАЗА КЛИЕНТОВ'!$B:$B,VLOOKUP(L$40,СПРАВОЧНИК!$L:$M,2,0),'БАЗА КЛИЕНТОВ'!$C:$C,$D80)) ->  | M80: =IF(L80="","",COUNTIFS('БАЗА КЛИЕНТОВ'!$B:$B,VLOOKUP(M$40,СПРАВОЧНИК!$L:$M,2,0),'БАЗА КЛИЕНТОВ'!$C:$C,$D80)) ->  | N80: =IF(M80="","",COUNTIFS('БАЗА КЛИЕНТОВ'!$B:$B,VLOOKUP(N$40,СПРАВОЧНИК!$L:$M,2,0),'БАЗА КЛИЕНТОВ'!$C:$C,$D80)) ->  | O80: =IF(N80="","",COUNTIFS('БАЗА КЛИЕНТОВ'!$B:$B,VLOOKUP(O$40,СПРАВОЧНИК!$L:$M,2,0),'БАЗА КЛИЕНТОВ'!$C:$C,$D80)) ->  | P80: =IF(O80="","",COUNTIFS('БАЗА КЛИЕНТОВ'!$B:$B,VLOOKUP(P$40,СПРАВОЧНИК!$L:$M,2,0),'БАЗА КЛИЕНТОВ'!$C:$C,$D80)) -> 
E81: =IF(D81="","",COUNTIFS('БАЗА КЛИЕНТОВ'!$B:$B,VLOOKUP(E$40,СПРАВОЧНИК!$L:$M,2,0),'БАЗА КЛИЕНТОВ'!$C:$C,$D81)) ->  | F81: =IF(E81="","",COUNTIFS('БАЗА КЛИЕНТОВ'!$B:$B,VLOOKUP(F$40,СПРАВОЧНИК!$L:$M,2,0),'БАЗА КЛИЕНТОВ'!$C:$C,$D81)) ->  | G81: =IF(F81="","",COUNTIFS('БАЗА КЛИЕНТОВ'!$B:$B,VLOOKUP(G$40,СПРАВОЧНИК!$L:$M,2,0),'БАЗА КЛИЕНТОВ'!$C:$C,$D81)) ->  | H81: =IF(G81="","",COUNTIFS('БАЗА КЛИЕНТОВ'!$B:$B,VLOOKUP(H$40,СПРАВОЧНИК!$L:$M,2,0),'БАЗА КЛИЕНТОВ'!$C:$C,$D81)) ->  | I81: =IF(H81="","",COUNTIFS('БАЗА КЛИЕНТОВ'!$B:$B,VLOOKUP(I$40,СПРАВОЧНИК!$L:$M,2,0),'БАЗА КЛИЕНТОВ'!$C:$C,$D81)) ->  | J81: =IF(I81="","",COUNTIFS('БАЗА КЛИЕНТОВ'!$B:$B,VLOOKUP(J$40,СПРАВОЧНИК!$L:$M,2,0),'БАЗА КЛИЕНТОВ'!$C:$C,$D81)) ->  | K81: =IF(J81="","",COUNTIFS('БАЗА КЛИЕНТОВ'!$B:$B,VLOOKUP(K$40,СПРАВОЧНИК!$L:$M,2,0),'БАЗА КЛИЕНТОВ'!$C:$C,$D81)) ->  | L81: =IF(K81="","",COUNTIFS('БАЗА КЛИЕНТОВ'!$B:$B,VLOOKUP(L$40,СПРАВОЧНИК!$L:$M,2,0),'БАЗА КЛИЕНТОВ'!$C:$C,$D81)) ->  | M81: =IF(L81="","",COUNTIFS('БАЗА КЛИЕНТОВ'!$B:$B,VLOOKUP(M$40,СПРАВОЧНИК!$L:$M,2,0),'БАЗА КЛИЕНТОВ'!$C:$C,$D81)) ->  | N81: =IF(M81="","",COUNTIFS('БАЗА КЛИЕНТОВ'!$B:$B,VLOOKUP(N$40,СПРАВОЧНИК!$L:$M,2,0),'БАЗА КЛИЕНТОВ'!$C:$C,$D81)) ->  | O81: =IF(N81="","",COUNTIFS('БАЗА КЛИЕНТОВ'!$B:$B,VLOOKUP(O$40,СПРАВОЧНИК!$L:$M,2,0),'БАЗА КЛИЕНТОВ'!$C:$C,$D81)) ->  | P81: =IF(O81="","",COUNTIFS('БАЗА КЛИЕНТОВ'!$B:$B,VLOOKUP(P$40,СПРАВОЧНИК!$L:$M,2,0),'БАЗА КЛИЕНТОВ'!$C:$C,$D81)) -> 
E82: =IF(D82="","",COUNTIFS('БАЗА КЛИЕНТОВ'!$B:$B,VLOOKUP(E$40,СПРАВОЧНИК!$L:$M,2,0),'БАЗА КЛИЕНТОВ'!$C:$C,$D82)) ->  | F82: =IF(E82="","",COUNTIFS('БАЗА КЛИЕНТОВ'!$B:$B,VLOOKUP(F$40,СПРАВОЧНИК!$L:$M,2,0),'БАЗА КЛИЕНТОВ'!$C:$C,$D82)) ->  | G82: =IF(F82="","",COUNTIFS('БАЗА КЛИЕНТОВ'!$B:$B,VLOOKUP(G$40,СПРАВОЧНИК!$L:$M,2,0),'БАЗА КЛИЕНТОВ'!$C:$C,$D82)) ->  | H82: =IF(G82="","",COUNTIFS('БАЗА КЛИЕНТОВ'!$B:$B,VLOOKUP(H$40,СПРАВОЧНИК!$L:$M,2,0),'БАЗА КЛИЕНТОВ'!$C:$C,$D82)) ->  | I82: =IF(H82="","",COUNTIFS('БАЗА КЛИЕНТОВ'!$B:$B,VLOOKUP(I$40,СПРАВОЧНИК!$L:$M,2,0),'БАЗА КЛИЕНТОВ'!$C:$C,$D82)) ->  | J82: =IF(I82="","",COUNTIFS('БАЗА КЛИЕНТОВ'!$B:$B,VLOOKUP(J$40,СПРАВОЧНИК!$L:$M,2,0),'БАЗА КЛИЕНТОВ'!$C:$C,$D82)) ->  | K82: =IF(J82="","",COUNTIFS('БАЗА КЛИЕНТОВ'!$B:$B,VLOOKUP(K$40,СПРАВОЧНИК!$L:$M,2,0),'БАЗА КЛИЕНТОВ'!$C:$C,$D82)) ->  | L82: =IF(K82="","",COUNTIFS('БАЗА КЛИЕНТОВ'!$B:$B,VLOOKUP(L$40,СПРАВОЧНИК!$L:$M,2,0),'БАЗА КЛИЕНТОВ'!$C:$C,$D82)) ->  | M82: =IF(L82="","",COUNTIFS('БАЗА КЛИЕНТОВ'!$B:$B,VLOOKUP(M$40,СПРАВОЧНИК!$L:$M,2,0),'БАЗА КЛИЕНТОВ'!$C:$C,$D82)) ->  | N82: =IF(M82="","",COUNTIFS('БАЗА КЛИЕНТОВ'!$B:$B,VLOOKUP(N$40,СПРАВОЧНИК!$L:$M,2,0),'БАЗА КЛИЕНТОВ'!$C:$C,$D82)) ->  | O82: =IF(N82="","",COUNTIFS('БАЗА КЛИЕНТОВ'!$B:$B,VLOOKUP(O$40,СПРАВОЧНИК!$L:$M,2,0),'БАЗА КЛИЕНТОВ'!$C:$C,$D82)) ->  | P82: =IF(O82="","",COUNTIFS('БАЗА КЛИЕНТОВ'!$B:$B,VLOOKUP(P$40,СПРАВОЧНИК!$L:$M,2,0),'БАЗА КЛИЕНТОВ'!$C:$C,$D82)) -> 
E83: =IF(D83="","",COUNTIFS('БАЗА КЛИЕНТОВ'!$B:$B,VLOOKUP(E$40,СПРАВОЧНИК!$L:$M,2,0),'БАЗА КЛИЕНТОВ'!$C:$C,$D83)) ->  | F83: =IF(E83="","",COUNTIFS('БАЗА КЛИЕНТОВ'!$B:$B,VLOOKUP(F$40,СПРАВОЧНИК!$L:$M,2,0),'БАЗА КЛИЕНТОВ'!$C:$C,$D83)) ->  | G83: =IF(F83="","",COUNTIFS('БАЗА КЛИЕНТОВ'!$B:$B,VLOOKUP(G$40,СПРАВОЧНИК!$L:$M,2,0),'БАЗА КЛИЕНТОВ'!$C:$C,$D83)) ->  | H83: =IF(G83="","",COUNTIFS('БАЗА КЛИЕНТОВ'!$B:$B,VLOOKUP(H$40,СПРАВОЧНИК!$L:$M,2,0),'БАЗА КЛИЕНТОВ'!$C:$C,$D83)) ->  | I83: =IF(H83="","",COUNTIFS('БАЗА КЛИЕНТОВ'!$B:$B,VLOOKUP(I$40,СПРАВОЧНИК!$L:$M,2,0),'БАЗА КЛИЕНТОВ'!$C:$C,$D83)) ->  | J83: =IF(I83="","",COUNTIFS('БАЗА КЛИЕНТОВ'!$B:$B,VLOOKUP(J$40,СПРАВОЧНИК!$L:$M,2,0),'БАЗА КЛИЕНТОВ'!$C:$C,$D83)) ->  | K83: =IF(J83="","",COUNTIFS('БАЗА КЛИЕНТОВ'!$B:$B,VLOOKUP(K$40,СПРАВОЧНИК!$L:$M,2,0),'БАЗА КЛИЕНТОВ'!$C:$C,$D83)) ->  | L83: =IF(K83="","",COUNTIFS('БАЗА КЛИЕНТОВ'!$B:$B,VLOOKUP(L$40,СПРАВОЧНИК!$L:$M,2,0),'БАЗА КЛИЕНТОВ'!$C:$C,$D83)) ->  | M83: =IF(L83="","",COUNTIFS('БАЗА КЛИЕНТОВ'!$B:$B,VLOOKUP(M$40,СПРАВОЧНИК!$L:$M,2,0),'БАЗА КЛИЕНТОВ'!$C:$C,$D83)) ->  | N83: =IF(M83="","",COUNTIFS('БАЗА КЛИЕНТОВ'!$B:$B,VLOOKUP(N$40,СПРАВОЧНИК!$L:$M,2,0),'БАЗА КЛИЕНТОВ'!$C:$C,$D83)) ->  | O83: =IF(N83="","",COUNTIFS('БАЗА КЛИЕНТОВ'!$B:$B,VLOOKUP(O$40,СПРАВОЧНИК!$L:$M,2,0),'БАЗА КЛИЕНТОВ'!$C:$C,$D83)) ->  | P83: =IF(O83="","",COUNTIFS('БАЗА КЛИЕНТОВ'!$B:$B,VLOOKUP(P$40,СПРАВОЧНИК!$L:$M,2,0),'БАЗА КЛИЕНТОВ'!$C:$C,$D83)) -> 
E84: =IF(D84="","",COUNTIFS('БАЗА КЛИЕНТОВ'!$B:$B,VLOOKUP(E$40,СПРАВОЧНИК!$L:$M,2,0),'БАЗА КЛИЕНТОВ'!$C:$C,$D84)) ->  | F84: =IF(E84="","",COUNTIFS('БАЗА КЛИЕНТОВ'!$B:$B,VLOOKUP(F$40,СПРАВОЧНИК!$L:$M,2,0),'БАЗА КЛИЕНТОВ'!$C:$C,$D84)) ->  | G84: =IF(F84="","",COUNTIFS('БАЗА КЛИЕНТОВ'!$B:$B,VLOOKUP(G$40,СПРАВОЧНИК!$L:$M,2,0),'БАЗА КЛИЕНТОВ'!$C:$C,$D84)) ->  | H84: =IF(G84="","",COUNTIFS('БАЗА КЛИЕНТОВ'!$B:$B,VLOOKUP(H$40,СПРАВОЧНИК!$L:$M,2,0),'БАЗА КЛИЕНТОВ'!$C:$C,$D84)) ->  | I84: =IF(H84="","",COUNTIFS('БАЗА КЛИЕНТОВ'!$B:$B,VLOOKUP(I$40,СПРАВОЧНИК!$L:$M,2,0),'БАЗА КЛИЕНТОВ'!$C:$C,$D84)) ->  | J84: =IF(I84="","",COUNTIFS('БАЗА КЛИЕНТОВ'!$B:$B,VLOOKUP(J$40,СПРАВОЧНИК!$L:$M,2,0),'БАЗА КЛИЕНТОВ'!$C:$C,$D84)) ->  | K84: =IF(J84="","",COUNTIFS('БАЗА КЛИЕНТОВ'!$B:$B,VLOOKUP(K$40,СПРАВОЧНИК!$L:$M,2,0),'БАЗА КЛИЕНТОВ'!$C:$C,$D84)) ->  | L84: =IF(K84="","",COUNTIFS('БАЗА КЛИЕНТОВ'!$B:$B,VLOOKUP(L$40,СПРАВОЧНИК!$L:$M,2,0),'БАЗА КЛИЕНТОВ'!$C:$C,$D84)) ->  | M84: =IF(L84="","",COUNTIFS('БАЗА КЛИЕНТОВ'!$B:$B,VLOOKUP(M$40,СПРАВОЧНИК!$L:$M,2,0),'БАЗА КЛИЕНТОВ'!$C:$C,$D84)) ->  | N84: =IF(M84="","",COUNTIFS('БАЗА КЛИЕНТОВ'!$B:$B,VLOOKUP(N$40,СПРАВОЧНИК!$L:$M,2,0),'БАЗА КЛИЕНТОВ'!$C:$C,$D84)) ->  | O84: =IF(N84="","",COUNTIFS('БАЗА КЛИЕНТОВ'!$B:$B,VLOOKUP(O$40,СПРАВОЧНИК!$L:$M,2,0),'БАЗА КЛИЕНТОВ'!$C:$C,$D84)) ->  | P84: =IF(O84="","",COUNTIFS('БАЗА КЛИЕНТОВ'!$B:$B,VLOOKUP(P$40,СПРАВОЧНИК!$L:$M,2,0),'БАЗА КЛИЕНТОВ'!$C:$C,$D84)) -> 
E85: =IF(D85="","",COUNTIFS('БАЗА КЛИЕНТОВ'!$B:$B,VLOOKUP(E$40,СПРАВОЧНИК!$L:$M,2,0),'БАЗА КЛИЕНТОВ'!$C:$C,$D85)) ->  | F85: =IF(E85="","",COUNTIFS('БАЗА КЛИЕНТОВ'!$B:$B,VLOOKUP(F$40,СПРАВОЧНИК!$L:$M,2,0),'БАЗА КЛИЕНТОВ'!$C:$C,$D85)) ->  | G85: =IF(F85="","",COUNTIFS('БАЗА КЛИЕНТОВ'!$B:$B,VLOOKUP(G$40,СПРАВОЧНИК!$L:$M,2,0),'БАЗА КЛИЕНТОВ'!$C:$C,$D85)) ->  | H85: =IF(G85="","",COUNTIFS('БАЗА КЛИЕНТОВ'!$B:$B,VLOOKUP(H$40,СПРАВОЧНИК!$L:$M,2,0),'БАЗА КЛИЕНТОВ'!$C:$C,$D85)) ->  | I85: =IF(H85="","",COUNTIFS('БАЗА КЛИЕНТОВ'!$B:$B,VLOOKUP(I$40,СПРАВОЧНИК!$L:$M,2,0),'БАЗА КЛИЕНТОВ'!$C:$C,$D85)) ->  | J85: =IF(I85="","",COUNTIFS('БАЗА КЛИЕНТОВ'!$B:$B,VLOOKUP(J$40,СПРАВОЧНИК!$L:$M,2,0),'БАЗА КЛИЕНТОВ'!$C:$C,$D85)) ->  | K85: =IF(J85="","",COUNTIFS('БАЗА КЛИЕНТОВ'!$B:$B,VLOOKUP(K$40,СПРАВОЧНИК!$L:$M,2,0),'БАЗА КЛИЕНТОВ'!$C:$C,$D85)) ->  | L85: =IF(K85="","",COUNTIFS('БАЗА КЛИЕНТОВ'!$B:$B,VLOOKUP(L$40,СПРАВОЧНИК!$L:$M,2,0),'БАЗА КЛИЕНТОВ'!$C:$C,$D85)) ->  | M85: =IF(L85="","",COUNTIFS('БАЗА КЛИЕНТОВ'!$B:$B,VLOOKUP(M$40,СПРАВОЧНИК!$L:$M,2,0),'БАЗА КЛИЕНТОВ'!$C:$C,$D85)) ->  | N85: =IF(M85="","",COUNTIFS('БАЗА КЛИЕНТОВ'!$B:$B,VLOOKUP(N$40,СПРАВОЧНИК!$L:$M,2,0),'БАЗА КЛИЕНТОВ'!$C:$C,$D85)) ->  | O85: =IF(N85="","",COUNTIFS('БАЗА КЛИЕНТОВ'!$B:$B,VLOOKUP(O$40,СПРАВОЧНИК!$L:$M,2,0),'БАЗА КЛИЕНТОВ'!$C:$C,$D85)) ->  | P85: =IF(O85="","",COUNTIFS('БАЗА КЛИЕНТОВ'!$B:$B,VLOOKUP(P$40,СПРАВОЧНИК!$L:$M,2,0),'БАЗА КЛИЕНТОВ'!$C:$C,$D85)) -> 
E86: =IF(D86="","",COUNTIFS('БАЗА КЛИЕНТОВ'!$B:$B,VLOOKUP(E$40,СПРАВОЧНИК!$L:$M,2,0),'БАЗА КЛИЕНТОВ'!$C:$C,$D86)) ->  | F86: =IF(E86="","",COUNTIFS('БАЗА КЛИЕНТОВ'!$B:$B,VLOOKUP(F$40,СПРАВОЧНИК!$L:$M,2,0),'БАЗА КЛИЕНТОВ'!$C:$C,$D86)) ->  | G86: =IF(F86="","",COUNTIFS('БАЗА КЛИЕНТОВ'!$B:$B,VLOOKUP(G$40,СПРАВОЧНИК!$L:$M,2,0),'БАЗА КЛИЕНТОВ'!$C:$C,$D86)) ->  | H86: =IF(G86="","",COUNTIFS('БАЗА КЛИЕНТОВ'!$B:$B,VLOOKUP(H$40,СПРАВОЧНИК!$L:$M,2,0),'БАЗА КЛИЕНТОВ'!$C:$C,$D86)) ->  | I86: =IF(H86="","",COUNTIFS('БАЗА КЛИЕНТОВ'!$B:$B,VLOOKUP(I$40,СПРАВОЧНИК!$L:$M,2,0),'БАЗА КЛИЕНТОВ'!$C:$C,$D86)) ->  | J86: =IF(I86="","",COUNTIFS('БАЗА КЛИЕНТОВ'!$B:$B,VLOOKUP(J$40,СПРАВОЧНИК!$L:$M,2,0),'БАЗА КЛИЕНТОВ'!$C:$C,$D86)) ->  | K86: =IF(J86="","",COUNTIFS('БАЗА КЛИЕНТОВ'!$B:$B,VLOOKUP(K$40,СПРАВОЧНИК!$L:$M,2,0),'БАЗА КЛИЕНТОВ'!$C:$C,$D86)) ->  | L86: =IF(K86="","",COUNTIFS('БАЗА КЛИЕНТОВ'!$B:$B,VLOOKUP(L$40,СПРАВОЧНИК!$L:$M,2,0),'БАЗА КЛИЕНТОВ'!$C:$C,$D86)) ->  | M86: =IF(L86="","",COUNTIFS('БАЗА КЛИЕНТОВ'!$B:$B,VLOOKUP(M$40,СПРАВОЧНИК!$L:$M,2,0),'БАЗА КЛИЕНТОВ'!$C:$C,$D86)) ->  | N86: =IF(M86="","",COUNTIFS('БАЗА КЛИЕНТОВ'!$B:$B,VLOOKUP(N$40,СПРАВОЧНИК!$L:$M,2,0),'БАЗА КЛИЕНТОВ'!$C:$C,$D86)) ->  | O86: =IF(N86="","",COUNTIFS('БАЗА КЛИЕНТОВ'!$B:$B,VLOOKUP(O$40,СПРАВОЧНИК!$L:$M,2,0),'БАЗА КЛИЕНТОВ'!$C:$C,$D86)) ->  | P86: =IF(O86="","",COUNTIFS('БАЗА КЛИЕНТОВ'!$B:$B,VLOOKUP(P$40,СПРАВОЧНИК!$L:$M,2,0),'БАЗА КЛИЕНТОВ'!$C:$C,$D86)) -> 
E87: =IF(D87="","",COUNTIFS('БАЗА КЛИЕНТОВ'!$B:$B,VLOOKUP(E$40,СПРАВОЧНИК!$L:$M,2,0),'БАЗА КЛИЕНТОВ'!$C:$C,$D87)) ->  | F87: =IF(E87="","",COUNTIFS('БАЗА КЛИЕНТОВ'!$B:$B,VLOOKUP(F$40,СПРАВОЧНИК!$L:$M,2,0),'БАЗА КЛИЕНТОВ'!$C:$C,$D87)) ->  | G87: =IF(F87="","",COUNTIFS('БАЗА КЛИЕНТОВ'!$B:$B,VLOOKUP(G$40,СПРАВОЧНИК!$L:$M,2,0),'БАЗА КЛИЕНТОВ'!$C:$C,$D87)) ->  | H87: =IF(G87="","",COUNTIFS('БАЗА КЛИЕНТОВ'!$B:$B,VLOOKUP(H$40,СПРАВОЧНИК!$L:$M,2,0),'БАЗА КЛИЕНТОВ'!$C:$C,$D87)) ->  | I87: =IF(H87="","",COUNTIFS('БАЗА КЛИЕНТОВ'!$B:$B,VLOOKUP(I$40,СПРАВОЧНИК!$L:$M,2,0),'БАЗА КЛИЕНТОВ'!$C:$C,$D87)) ->  | J87: =IF(I87="","",COUNTIFS('БАЗА КЛИЕНТОВ'!$B:$B,VLOOKUP(J$40,СПРАВОЧНИК!$L:$M,2,0),'БАЗА КЛИЕНТОВ'!$C:$C,$D87)) ->  | K87: =IF(J87="","",COUNTIFS('БАЗА КЛИЕНТОВ'!$B:$B,VLOOKUP(K$40,СПРАВОЧНИК!$L:$M,2,0),'БАЗА КЛИЕНТОВ'!$C:$C,$D87)) ->  | L87: =IF(K87="","",COUNTIFS('БАЗА КЛИЕНТОВ'!$B:$B,VLOOKUP(L$40,СПРАВОЧНИК!$L:$M,2,0),'БАЗА КЛИЕНТОВ'!$C:$C,$D87)) ->  | M87: =IF(L87="","",COUNTIFS('БАЗА КЛИЕНТОВ'!$B:$B,VLOOKUP(M$40,СПРАВОЧНИК!$L:$M,2,0),'БАЗА КЛИЕНТОВ'!$C:$C,$D87)) ->  | N87: =IF(M87="","",COUNTIFS('БАЗА КЛИЕНТОВ'!$B:$B,VLOOKUP(N$40,СПРАВОЧНИК!$L:$M,2,0),'БАЗА КЛИЕНТОВ'!$C:$C,$D87)) ->  | O87: =IF(N87="","",COUNTIFS('БАЗА КЛИЕНТОВ'!$B:$B,VLOOKUP(O$40,СПРАВОЧНИК!$L:$M,2,0),'БАЗА КЛИЕНТОВ'!$C:$C,$D87)) ->  | P87: =IF(O87="","",COUNTIFS('БАЗА КЛИЕНТОВ'!$B:$B,VLOOKUP(P$40,СПРАВОЧНИК!$L:$M,2,0),'БАЗА КЛИЕНТОВ'!$C:$C,$D87)) -> 
E88: =IF(D88="","",COUNTIFS('БАЗА КЛИЕНТОВ'!$B:$B,VLOOKUP(E$40,СПРАВОЧНИК!$L:$M,2,0),'БАЗА КЛИЕНТОВ'!$C:$C,$D88)) ->  | F88: =IF(E88="","",COUNTIFS('БАЗА КЛИЕНТОВ'!$B:$B,VLOOKUP(F$40,СПРАВОЧНИК!$L:$M,2,0),'БАЗА КЛИЕНТОВ'!$C:$C,$D88)) ->  | G88: =IF(F88="","",COUNTIFS('БАЗА КЛИЕНТОВ'!$B:$B,VLOOKUP(G$40,СПРАВОЧНИК!$L:$M,2,0),'БАЗА КЛИЕНТОВ'!$C:$C,$D88)) ->  | H88: =IF(G88="","",COUNTIFS('БАЗА КЛИЕНТОВ'!$B:$B,VLOOKUP(H$40,СПРАВОЧНИК!$L:$M,2,0),'БАЗА КЛИЕНТОВ'!$C:$C,$D88)) ->  | I88: =IF(H88="","",COUNTIFS('БАЗА КЛИЕНТОВ'!$B:$B,VLOOKUP(I$40,СПРАВОЧНИК!$L:$M,2,0),'БАЗА КЛИЕНТОВ'!$C:$C,$D88)) ->  | J88: =IF(I88="","",COUNTIFS('БАЗА КЛИЕНТОВ'!$B:$B,VLOOKUP(J$40,СПРАВОЧНИК!$L:$M,2,0),'БАЗА КЛИЕНТОВ'!$C:$C,$D88)) ->  | K88: =IF(J88="","",COUNTIFS('БАЗА КЛИЕНТОВ'!$B:$B,VLOOKUP(K$40,СПРАВОЧНИК!$L:$M,2,0),'БАЗА КЛИЕНТОВ'!$C:$C,$D88)) ->  | L88: =IF(K88="","",COUNTIFS('БАЗА КЛИЕНТОВ'!$B:$B,VLOOKUP(L$40,СПРАВОЧНИК!$L:$M,2,0),'БАЗА КЛИЕНТОВ'!$C:$C,$D88)) ->  | M88: =IF(L88="","",COUNTIFS('БАЗА КЛИЕНТОВ'!$B:$B,VLOOKUP(M$40,СПРАВОЧНИК!$L:$M,2,0),'БАЗА КЛИЕНТОВ'!$C:$C,$D88)) ->  | N88: =IF(M88="","",COUNTIFS('БАЗА КЛИЕНТОВ'!$B:$B,VLOOKUP(N$40,СПРАВОЧНИК!$L:$M,2,0),'БАЗА КЛИЕНТОВ'!$C:$C,$D88)) ->  | O88: =IF(N88="","",COUNTIFS('БАЗА КЛИЕНТОВ'!$B:$B,VLOOKUP(O$40,СПРАВОЧНИК!$L:$M,2,0),'БАЗА КЛИЕНТОВ'!$C:$C,$D88)) ->  | P88: =IF(O88="","",COUNTIFS('БАЗА КЛИЕНТОВ'!$B:$B,VLOOKUP(P$40,СПРАВОЧНИК!$L:$M,2,0),'БАЗА КЛИЕНТОВ'!$C:$C,$D88)) -> 
E89: =IF(D89="","",COUNTIFS('БАЗА КЛИЕНТОВ'!$B:$B,VLOOKUP(E$40,СПРАВОЧНИК!$L:$M,2,0),'БАЗА КЛИЕНТОВ'!$C:$C,$D89)) ->  | F89: =IF(E89="","",COUNTIFS('БАЗА КЛИЕНТОВ'!$B:$B,VLOOKUP(F$40,СПРАВОЧНИК!$L:$M,2,0),'БАЗА КЛИЕНТОВ'!$C:$C,$D89)) ->  | G89: =IF(F89="","",COUNTIFS('БАЗА КЛИЕНТОВ'!$B:$B,VLOOKUP(G$40,СПРАВОЧНИК!$L:$M,2,0),'БАЗА КЛИЕНТОВ'!$C:$C,$D89)) ->  | H89: =IF(G89="","",COUNTIFS('БАЗА КЛИЕНТОВ'!$B:$B,VLOOKUP(H$40,СПРАВОЧНИК!$L:$M,2,0),'БАЗА КЛИЕНТОВ'!$C:$C,$D89)) ->  | I89: =IF(H89="","",COUNTIFS('БАЗА КЛИЕНТОВ'!$B:$B,VLOOKUP(I$40,СПРАВОЧНИК!$L:$M,2,0),'БАЗА КЛИЕНТОВ'!$C:$C,$D89)) ->  | J89: =IF(I89="","",COUNTIFS('БАЗА КЛИЕНТОВ'!$B:$B,VLOOKUP(J$40,СПРАВОЧНИК!$L:$M,2,0),'БАЗА КЛИЕНТОВ'!$C:$C,$D89)) ->  | K89: =IF(J89="","",COUNTIFS('БАЗА КЛИЕНТОВ'!$B:$B,VLOOKUP(K$40,СПРАВОЧНИК!$L:$M,2,0),'БАЗА КЛИЕНТОВ'!$C:$C,$D89)) ->  | L89: =IF(K89="","",COUNTIFS('БАЗА КЛИЕНТОВ'!$B:$B,VLOOKUP(L$40,СПРАВОЧНИК!$L:$M,2,0),'БАЗА КЛИЕНТОВ'!$C:$C,$D89)) ->  | M89: =IF(L89="","",COUNTIFS('БАЗА КЛИЕНТОВ'!$B:$B,VLOOKUP(M$40,СПРАВОЧНИК!$L:$M,2,0),'БАЗА КЛИЕНТОВ'!$C:$C,$D89)) ->  | N89: =IF(M89="","",COUNTIFS('БАЗА КЛИЕНТОВ'!$B:$B,VLOOKUP(N$40,СПРАВОЧНИК!$L:$M,2,0),'БАЗА КЛИЕНТОВ'!$C:$C,$D89)) ->  | O89: =IF(N89="","",COUNTIFS('БАЗА КЛИЕНТОВ'!$B:$B,VLOOKUP(O$40,СПРАВОЧНИК!$L:$M,2,0),'БАЗА КЛИЕНТОВ'!$C:$C,$D89)) ->  | P89: =IF(O89="","",COUNTIFS('БАЗА КЛИЕНТОВ'!$B:$B,VLOOKUP(P$40,СПРАВОЧНИК!$L:$M,2,0),'БАЗА КЛИЕНТОВ'!$C:$C,$D89)) -> 
D91: Всего | E91: =SUM(E41:E89) -> 1 | F91: =SUM(F41:F89) -> 0 | G91: 1 | H91: 2 | I91: 3 | J91: 1 | K91: 1 | L91: 1 | M91: 0 | N91: 0 | O91: 0 | P91: 0

Sheet СПРАВОЧНИК
A1: 1 | C1: Заходы - отклики | F1: Прибыль, руб. | I1: Месяц | L1: Январь | M1: 1 | N1: =ВОРОНКА!D7 -> 31 | Q1: ФИО менеджера | R1: Комментарий | S1: Результат | U1: Январь | V1: 31 | X1: Сумма за период | AB1: MANUAL
A2: 2 | C2: Отклики - продажи | F2: Затраты (реклама), руб. | I2: Неделя 1 | L2: Февраль | M2: 2 | N2: =ВОРОНКА!D94 -> 28 | Q2: Менеджер 1 | S2: Оплатили | U2: Февраль | V2: 28 | X2: Прогноз по средним
A3: 3 | C3: Заходы-продажи | F3: Прибыль (- реклама) | I3: Неделя 2 | L3: Март | M3: 3 | N3: =ВОРОНКА!D181 -> 31 | Q3: Менеджер 2 | S3: Отказ | U3: Март | V3: 31 | X3: Прогноз по минимумам | AC3: ВАЖНО! Не удаляйте этот лист, без него работа файла будет некорректной.
A4: 4 | F4: Чистая прибыль | I4: Неделя 3 | L4: Апрель | M4: 4 | N4: =ВОРОНКА!D268 -> 30 | Q4: Менеджер 3 | S4: Не дозвон. | U4: Апрель | V4: 30 | X4: Прогноз по максимумам
A5: 5 | I5: Неделя 4 | L5: Май | M5: 5 | N5: =ВОРОНКА!D355 -> 31 | S5: Подумаю (коммент.) | U5: Май | V5: 31 | AC5: Воронка продаж 4.0 © – Это инструмент для контроля и моделирования показателей бизнеса.
A6: 6 | L6: Июнь | M6: 6 | N6: =ВОРОНКА!D442 -> 30 | S6: Хотят, но (коммент.) | U6: Июнь | V6: 30
A7: 7 | L7: Июль | M7: 7 | N7: =ВОРОНКА!D529 -> 31 | AF7: Периоды
A8: 8 | L8: Август | M8: 8 | N8: =ВОРОНКА!D616 -> 31 | U8: Июль | V8: 31
A9: 9 | L9: Сентябрь | M9: 9 | N9: =ВОРОНКА!D703 -> 30 | U9: Август | V9: 31 | AC9: Каждый месяц воронки разбит на 4 периода, условно называемые неделями. Поскольку в месяце не строго 7*4 =28 дней, а как правило 30 или 31, то одна из недель будет длинной. Определяется наименьшим из первая календарная + вторая календарная. Либо последняя + предпоследняя для данного месяца. Пример для апреля 2014. Чтоб получить 4 периода надо разбить месяц. Будет либо 6,7,7,10 либо 13,7,7,3. Первый вариант более равномерный. В файле периоды уже проставлены, но если вы хотите поменять на свои – это легко можно сделать. Просто вставьте в соответствующую ячейку число дней для данного периода. (Важно! Следите, чтоб суммарное число дней в месяце сошлось, иначе прогнозы могут сбиться)
A10: 10 | L10: Октябрь | M10: 10 | N10: =ВОРОНКА!D790 -> 31 | U10: Сентябрь | V10: 30
A11: 11 | L11: Ноябрь | M11: 11 | N11: =ВОРОНКА!D877 -> 30 | U11: Октябрь | V11: 31
A12: 12 | L12: Декабрь | M12: 12 | N12: =ВОРОНКА!D964 -> 31 | U12: Ноябрь | V12: 30
A13: 13 | U13: Декабрь | V13: 31
A14: 14
A15: 15
A16: 16
A17: 17
A18: 18
A19: 19
A20: 20
A21: 21
A22: 22
A23: 23
A24: 24 | AF24: Как заносить данные
A25: 25
A26: 26 | AC26: Чтобы пользоваться файлом, нужно, во-первых знать свои рекламные каналы. Во-вторых заполнить данные на странице «Воронка». Конкретно: показы, заходы, отклики, продажи, прибыль, затраты на рекламу и доп. расходы. Как узнать свои рекламные каналы в случае онлайн бизнеса: • Зайдите в Яндекс метирка (metrika.yandex.ru; если у вас еще не стоит счетчик – поставьте его на свой сайт и подождите пока накопится статистика) • Выберите свой сайт и зайдите в источники – сводка • Все источники, что ниже и будут источниками трафика на сайт. В нашем файле это колонки. Если вам не хватает источников – добавьте их, нажав на соответствующую кнопку. • ВАЖНО! Не переименовывайте и не заполняйте столбец с именем ". . ." Если вам нужен новый канал, после нажатия на кнопку "добавить канал" у вас появится копия столбца с именем ". . ." его можно переименовывать. Количество откликов это количество звонков либо заявок через сайт. Для сопоставления отклика на сайте каналу воспользуйтесь простым способом - настройте цель. (редактор счетчика - цели - добавить цель - URL содержит - далее внесите ссылку, на которую можно попасть в случае оформления заказа)
A27: 27
A28: 28
A29: 29
A30: 30
A31: 31
A32: 32
A33: 33 | Q33: БОНУС!
A34: 34 | Q34: Каждый пользователь воронки продаж 4.0 получает скидку 500р на обучающий видео курс по яндекс директ.
A35: 35
A36: 36
A37: 37 | Q37: Информация о курсе:
A38: 38 | Q38: http://kursdirect.ru/
A39: 39 | Q39: Отзывы
A40: 40
A41: 41 | Q41: Для получения скидки свяжитесь с автором.
A42: 42 | Q42: evgeny.novikov@mail.ru
A43: 43 | Q43: http://vk.com/truejacko
A44: 44
A45: 45 | Q45: ВОРОНКА ОНЛАЙН
A46: 46 | Q46: Воспользуйтесь также онлайн сервисом для ведения воронки. (доступно с любых устройств)
A47: 47
A48: 48 | Q48: http://voronki.com/
A49: 49
A50: 50
A51: 51
A52: 52
A53: 53
A54: 54
A55: 55 | AF55: Особенности заполняемых полей
A56: 56
A57: 57 | AC57: • Показы – не обязательное поле. Данные о нем предоставляются статистиками рекламных площадок. • Заходы – Количество визитов для данного канала • Отклики – Количество звонков или оформлений заказов на сайте. Количество заказов на сайте можно определить через цели (см видео урок). • Продажи – Количество фактических продаж. • Получено – Сумма денег, полученных с продаж (за вычетом себестоимости продукции). К примеру если купили за 3000р, продали за 5000р. 1 продажа = 2000р получено. 10 Таких продаж = 20000р. • Затрачено – сумма затраченных на рекламу средств (за указанный отчетный период). Важно! Именно потраченных, а не положенных на рекламный кошелек. Данные о фактических затратах предоставляет статистика рекламной площадки. • Дополнительные затраты – сюда относятся все не рекламные затраты. Например зарплата, аренда, расходные материалы и так далее. Особенно не важно в какой неделе месяца они находятся, но если вам важна точность прогнозов – рекомендуется внести доп. затраты сразу на весь месяц вперед (если конечно они известны). Как понять к какому каналу отнести продажу – смотрите в видео уроке.
A58: 58
A59: 59
A60: 60
A61: 61
A62: 62
A63: 63
A64: 64
A65: 65
A66: 66
A67: 67
A68: 68
A69: 69
A70: 70
A71: 71
A72: 72
A73: 73
A74: 74
A75: 75 | AF75: Страница "Динамика"
A76: 76
A77: 77 | AC77: Страница «Динамика» - это сводная информация по вашему бизнесу. Глядя на графики, можно определить, почему в бизнесе произошел всплеск или спад. Изменения в чистой прибыли – это всегда изменения или в конверсиях или в охвате или в чеке или в затратах. Любое внедренное действие, которое сказалось на чистой прибыли, так или иначе скажется на одном из показателей.
A78: 78
A79: 79
A80: 80
A81: 81 | AC81: Слева вверху есть индикатор вашего текущего положения относительно цели. К примеру, если идет вторая неделя месяца, вы можете видеть насколько вы близки к цели. Правее находится индикатор относительно прогнозов. Прогноз по средним усредняет воронку по заполненному периоду и достраивает до месяца. Прогноз по минимумам сравнивает 2 соседние недели, выделяет наименьшие значения показателей воронки и достраивает до месяца исходя из этих минимумов. Прогноз по максимумам действует наоборот. Таким образом, находясь, к примеру, на второй неделе, правый индикатор поможет сориентироваться каким будет ваше положение относительно цели исходя из прогнозируемой суммы на конец месяца.
A82: 82
A83: 83
A84: 84
A85: 85
A86: 86
A87: 87
A88: 88
A89: 89
A90: 90
A91: 91
A92: 92
A93: 93
A94: 94
A95: 95
A96: 96
A97: 97 | AF97: Страница "Моделирование"
A98: 98
A99: 99 | AC99: Факт-прогнозы Фактические данные за месяц отражают важнейшие показатели по неделям по факту. При переключении на прогноз – вам покажутся прогнозируемые величины. Анализ что если Анализ «что если» помогает прикинуть, как изменение в одном из показателей сказался бы на прибыли. Все расчеты ведутся на основе вашей сложившейся воронки. Если в верхнем списке стоит «сумма за период», значит отобразится, что было бы к текущему моменту. Если в положении прогноза – что может быть к концу месяца. Декомпозиция на основе воронки, и или Декомпозиция чистой прибыли на основе воронки позволяет понять шаги для реализации задуманной суммы денег. Декомпозиция строится на основе вашей фактической воронки и отображает информацию в двух режимах. «И» - режим связанной воронки, он закрепляет значение среднего чека (а средний чек в данном файле в значении средняя прибыль с одной продажи). Вам выводятся показатели, сколько нужно сделать трафика, как это скажется на продажах, затратах и прибыли. Всё работает в связке, декомпозиция учитывает стоимость добавочного трафика и тоже принимает его в расчет. Режим «ИЛИ» представляет информацию о показателях в отрыве друг от друга. Иными словами он подсказывает 7 путей для достижения цели. Любой из них должен привести к цели. Опять же обращайте внимание на то, в каком положении стоит вывод информации. Строятся ли данные относительно текущего момента или же прогноза. В день Если вы нажмете на галочку «в день» - вам отобразится информация для 1 дня. Вы будете знать к примеру сколько вам нужно сделать трафика, или продаж за 1 день. Калькулятор свободных данных Калькулятор свободных данных позволяет спроектировать бизнес и оценить его прибыльность. В табличку слева введите предполагаемые данные о бизнесе. В левой воронке будут просчитаны все показатели в конкретных величинах. Правая воронка нужна для сравнения проектируемых данных с новым вариантом в зависимости от цены клика. Предположим, вы просчитываете гипотезу для своего бизнеса, где уже крутится реклама. Введите показатели затраченных денег и количества кликов по двум периодам и новую цену клика. Правая воронка отобразит информацию о том, насколько выгодней новая цена по сравнению с исходной. Этот инструмент поможет вам сориентироваться, стоит ли повышать цену клика или же нет. Важно! При повышении цены клика – зависимость может меняться. Поэтому обновляйте зависимости затрат и количества кликов почаще. Реклама, как правило, в определенной точке имеет пик эффективности. Если до определенного значения цены клика денег будет больше, то, при дальнейшем увеличении, денег будет становиться меньше.
A100: 100
A101: 101
A102: 102
A103: 103
A104: 104
A105: 105
A106: 106
A107: 107
A108: 108
A109: 109
A110: 110
A111: 111
A112: 112
A113: 113
A114: 114
A115: 115
A116: 116
A117: 117
A118: 118
A119: 119
A120: 120
A121: 121
A122: 122
A123: 123
A124: 124
A125: 125
A126: 126
A127: 127
A128: 128
A129: 129 | AF129: Страницы "База клиентов" + "Статистика базы"
A130: 130
A131: 131 | AC131: Как заполнять статистику базы + менеджеры Листы «Статистика базы» и «База клиентов» связаны между собой. В статистике базы вы можете видеть информацию об успехах ваших менеджеров, а также сводную информацию о том, какая из ваших услуг в каком месяце пользовалась наибольшим спросом. В таблице с кодами услуг введите новое наименование в столбец C, ему автоматически присвоится код. Далее на листе база клиентов, при введении новой строчки вы можете указать что именно он закал, выбрав соответствующий код услуги из выпадающего списка (или написав цифру вручную). К сожалению, необходимо держать в голове или сверяться по таблице, какой услуге какой код соответствует. В рамках Excel другой стандарт крайне сложен. Значения полей базы клиентов: • Номер заказа – произвольной число , к примеру номер присвоенный при оформлении на сайте. • Месяц – календарный месяц, в который был сделан заказ (числом) • Код услуги – Обозначение самой услуги (присваивается на листе статистика базы, в таблице с кодами услуг) • Теплота клиента – условное обозначение заинтересованности, где 1 – почти не интересно, 10 – уже отдал деньги. • Первый контакт – дата первого взаимодействия. • Канал лидгена – канал с которого пришел клиент. (эти данные не связаны с воронкой продаж) • Телефон, мейл, адрес – данные о клиенте • Менеджер – Тот менеджер, который работает с клиентом. Указывая менеджера, далее можно просматривать статистику по каждому. Это делается на листе «статистика базы» , выбирая из списка и указывая отчетный период. • Следующий шаг – дата следующего запланированного взаимодействия. Просроченные, не закрытые знаком Х даты подсвечиваются красным. Зеленым подсвечиваются даты за 2 дня до наступления следующего шага.
A132: 132
A133: 133
A134: 134
A135: 135
A136: 136
A137: 137
A138: 138
A139: 139
A140: 140
A141: 141
A142: 142
A143: 143
A144: 144
A145: 145
A146: 146
A147: 147
A148: 148
A149: 149
A150: 150
A151: 151
A152: 152
A153: 153
A154: 154
A155: 155
A156: 156
A157: 157
A158: 158 | AC158: Как менять имена менеджеров • На листе справочник слева есть таблица, где вы можете переименовать менеджеров, указав произвольный комментарий. Далее они будут присутствовать для выбора в выпадающем списке.
A159: 159
A160: 160
A161: 161
A162: 162
A163: 163 | AF163: Информация об авторе и правообладателе
A164: 164
A165: 165 | AC165: Данный файл защищен авторским правом. Все права принадлежат автору. Название «Воронка продаж 4.х» зарегистрировано и принадлежит автору. Право продажи принадлежит автору (исключение – партнеры, зарегистрированные по партнерской ссылке: http://truejacko.e-autopay.com/affreg/ Право на распространение утверждается автором)
A166: 166
A167: 167
A168: 168
A169: 169
A170: 170 | AC170: Политика распространения
A171: 171 | AC171: Продукт распространяется только через официальную группу в контакте: http://vk.com/voronkaprodazh а также по ссылкам на непосредственную оплату, имеющие в своем составе адрес http://truejacko.e-autopay.com (в случае обнаружения других источников – сообщите автору) Любые случаи нелегального распространения (в том числе продажа и передача третьим лицам без соответствующего разрешения автора) строго запрещены и приравниваются к пиратству в соответствии со статьей 146 УК РФ.
A172: 172
A173: 173
A174: 174
A175: 175
A176: 176
A177: 177 | AF177: Автор: Евгений Новиков | AJ177: Контакты:
A178: 178 | AJ178: Вконтакте: vk.com/truejacko
A179: 179 | AJ179: mail: evgeny.novikov@mail.ru
A180: 180 | AJ180: телефон: +79851745518
A181: 181
A182: 182
A183: 183
A184: 184
A185: 185
A186: 186
A187: 187
A188: 188
A189: 189
A190: 190
A191: 191
A192: 192
A193: 193
A194: 194
A195: 195
A196: 196
A197: 197
A198: 198
A199: 199
A200: 200
... 100 more rows
